Workbook

Sheet Table 1.1 Annual Svgs_
B1: Table 1.1 - 2013-2015 GROSS Annual Savings Impacts by Year
B2: 2013 Claim (preliminary) | F2: 2014 Forecast | I2: 2015 Forecast
C3: Total | D3: CPUC Goal | E3: % of 2013 Goal | F3: Total | G3: CPUC Goal | H3: % of 2014 Goal | I3: Total | J3: CPUC Goal | K3: % of 2015 Goal
B4: Energy Savings (Gross GWh) | C4: 259.035296 | D4: 221 | E4: 1.172105412 | F4: 321.1207413 | G4: 212 | H4: 1.514720478 | I4: 253.488869 | J4: 239.748869 | K4: 1.057309968
B5: Demand Reduction (Gross MW) | C5: 42.2383556 | D5: 43 | E5: 0.9822873395 | F5: 51.71386438 | G5: 41 | H5: 1.261313765 | I5: 41.963 | J5: 39.543 | K5: 1.061199201
B6: Gas Savings (Gross MMTh) | C6: 2.969628312 | D6: 2.2 | E6: 1.349831051 | G6: 2.2 | H6: 1.326813834 | I6: 2.77462 | J6: 2.42562 | K6: 1.14388074
B7: 1. 2013 and 2014 IOU Totals are based on the Q4 2013 claims and 13-14 compliance filings respectively; 2014 values may be adjusted for updated savings.
B8: 2. Forecasting of annual savings from installations made during the 2014 - 2015 program funding periods.
B9: 3. Codes & Standards and Low Income ESAP Savings are included.

Sheet Table 1.2 Svgs by End Use
B2: Table 1.2 - 2015 Total Requested Budget and Projected Gross Portfolio Savings Impacts By Sector and End Use
B3: Total Portfolio | C3: Budget (millions) 1 | E3: Energy Savings (Gross GWh) | G3: Demand Reduction (Gross MW) | I3: Gas Savings (Gross MMTh) 5
C4: Total | D4: % of Total | E4: Total | F4: % of Total | G4: Total | H4: % of Total | I4: Total | J4: % of Total
B5: Residential | C5: =SUM(C6:C11) -> 21.25396883 | D5: =C5/C30 -> 0.3631027489 | E5: =SUM(E6:E11) -> 57.28204784 | F5: =E5/E30 -> 0.2260128571 | G5: =SUM(G6:G11) -> 10.28515037 | H5: =G5/G30 -> 0.2453665815 | I5: =SUM(I6:I11) -> 0.3849080865 | J5: =I5/I30 -> 0.1449679834
B6: AppPlug | C6: 4.9192125 | D6: =C6/C$5 -> 0.2314491255 | E6: 17.5092695 | F6: =E6/E$5 -> 0.3056676596 | G6: 3.096131955 | H6: =G6/G$5 -> 0.3010293329 | I6: -0.06965119901 | J6: =I6/I$5 -> -0.1809554059 | L6: RES
B7: BldgEnv | C7: 1.313712185 | D7: 0.06181020569 | E7: 0.1710052925 | F7: 0.002985320864 | G7: 0.1392877485 | H7: 0.01354260691 | I7: 0.06447401762 | J7: 0.1675049704 | L7: RES
B8: HVAC | C8: 7.556919274 | D8: 0.3555533243 | E8: 6.165705892 | F8: 0.1076376653 | G8: 3.449600681 | H8: 0.3353962322 | I8: 0.3309951026 | J8: 0.8599328366 | L8: RES
B9: Lighting | C9: 5.278494806 | D9: 0.248353371 | E9: 27.27843512 | F9: 0.4762126382 | G9: 2.737891622 | H9: 0.2661985021 | I9: -0.4450865296 | J9: -1.15634497 | L9: RES
B10: Recreate/Swim Pools | C10: 1 | D10: 0.04705003606 | E10: 5.845 | F10: 0.1020389497 | G10: 0.83 | H10: 0.08069886878 | I10: 0 | J10: 0 | L10: RES
B11: Water Heating | C11: 1.185630068 | D11: 0.05578393745 | E11: 0.3126320308 | F11: 0.005457766309 | G11: 0.03223836254 | H11: 0.003134457095 | I11: 0.5041766949 | J11: 1.309862569 | L11: RES
B12: Nonresidential | C12: =SUM(C13:C26) -> 37.28034108 | D12: =C12/C30 -> 0.6368972511 | E12: =SUM(E13:E26) -> 122.1439223 | F12: =E12/E30 -> 0.4819327853 | G12: =SUM(G13:G26) -> 19.40233613 | H12: =G12/G30 -> 0.4628697413 | I12: =SUM(I13:I26) -> 1.980216703 | J12: =I12/I30 -> 0.7458092783
B13: BldgEnv | C13: 0.0303578 | D13: =C13/C$12 -> 0.0008143112192 | E13: 0.05433520402 | F13: =E13/E$12 -> 0.0004448457441 | G13: 0.03070065 | H13: =G13/G$12 -> 0.001582317191 | I13: 0.02806242294 | J13: =I13/I$12 -> 0.01417138987 | L13: NON_RES
B14: CompAir | C14: 0.34587588 | D14: 0.009277701597 | E14: 16.44732729 | F14: 0.1346553064 | G14: 0 | H14: 0 | I14: 0 | J14: 0 | L14: NON_RES
B15: ComRefrig | C15: 0.42064381 | D15: 0.01128326077 | E15: 0.7741193056 | F15: 0.006337763606 | G15: 0.07542336034 | H15: 0.00388733397 | I15: 0.01329278526 | J15: 0.006712793217
B16: FoodServ | C16: 0.078975 | D16: 0.00211840873 | E16: 0.093096 | F16: 0.0007621828268 | G16: 0.02043 | H16: 0.001052965986 | I16: 0.068172 | J16: 0.03442653518
B17: HVAC | C17: 11.22906158 | D17: 0.3012059776 | E17: 51.45986265 | F17: 0.4213051429 | G17: 10.10079917 | H17: 0.5205970614 | I17: 0.2157105109 | J17: 0.1089327802
B18: Irrigate | C18: 0.00053935 | D18: 1.446741055e-05 | E18: 0.0035175 | F18: 2.879799447e-05 | G18: 0.002814 | H18: 0.0001450340815 | I18: 0 | J18: 0
B19: Lighting | C19: 18.09949914 | D19: 0.4854971444 | E19: 38.77470944 | F19: 0.3174509931 | G19: 8.155924064 | H19: 0.4203578378 | I19: -0.09720791307 | J19: -0.04908953293
B20: Office | C20: 0.30438441 | D20: 0.008164743164 | E20: 3.882532667 | F20: 0.03178653996 | G20: 0.4110454004 | H20: 0.02118535611 | I20: -0.000157400005 | J20: -7.948625253e-05
B21: ProcDist | C21: 0.18574389 | D21: 0.004982354898 | E21: 0.7265862 | F21: 0.005948607071 | G21: 0.073629 | H21: 0.003794852305 | I21: 0 | J21: 0
B22: ProcHeat | C22: 0.5194413 | D22: 0.01393338379 | E22: 0.953648 | F22: 0.007807576356 | G22: 0.15318 | H22: 0.007894925588 | I22: 0.2541524097 | J22: 0.1283457559
B23: ProcRefrig | C23: 0.1753993 | D23: 0.004704873799 | E23: 0.4738545 | F23: 0.003879476694 | G23: 0.06372 | H23: 0.003284140609 | I23: 0 | J23: 0 | L23: NON_RES
B24: Recreate/Swim Pools | C24: 0.1407718 | D24: 0.003776033049 | E24: 0.894888 | F24: 0.007326504528 | G24: 0.10908 | H24: 0.005622003415 | I24: 0.032256 | J24: 0.01628912631 | L24: NON_RES
B25: Service & Retro Comm | C25: 3.85824492 | D25: 0.1034927473 | E25: 7.5261474 | F25: 0.0616170437 | G25: 0.205578 | H25: 0.01059552822 | I25: 1.0554948 | J25: 0.5330198448 | L25: NON_RES
B26: Water Heating | C26: 1.891402905 | D26: 0.05073459228 | E26: 0.07929816787 | F26: 0.0006492191045 | G26: 1.248310013e-05 | H26: 6.433812942e-07 | I26: 0.4104410877 | J26: 0.2072707936 | L26: NON_RES
B27: Government Partnerships 2 | D27: =C27/C30 -> 0 | F27: =E27/E30 -> 0 | H27: =G27/G30 -> 0 | J27: =I27/I30 -> 0
B28: Low Income Energy Efficiency | E28: 7.92 | F28: =E28/E30 -> 0.03124926388 | G28: 1.93 | H28: =G28/G30 -> 0.04604283704 | I28: 0.28 | J28: =I28/I30 -> 0.1054564369
B29: Codes & Standards | C29: 0 | D29: =C29/C30 -> 0 | E29: 66.1 | F29: =E29/E30 -> 0.2608050937 | G29: 10.3 | H29: =G29/G30 -> 0.2457208402 | I29: 0.01 | J29: =I29/I30 -> 0.00376630132
B30: Total | C30: =SUM(C5,C12,C28,C29,C27) -> 58.53430992 | E30: =SUM(E5,E12,E28,E29,E27) -> 253.4459702 | G30: =SUM(G5,G12,G28,G29,G27) -> 41.9174865 | I30: =SUM(I5,I12,I28,I29,I27) -> 2.65512479
B32: CPUC 2015 Goal (including C&S) | E32: 239.7 | G32: 39.6 | I32: 2.5
B33: 1 - The total budget by market sector and end use includes only the incentive budgets.
B34: 2 - Savings and incentive budgets associated with Government Partnerships are included in core programs.
B35: 3 - Negative gas therm savings are due to interactive effects.

Sheet Table 1.3 Svgs By MrktSec
C2: Table 1.3 - 2015 Requested Budget and Projected Savings Impacts of Resource Programs by Market Sector
C3: Market Sector | D3: Budget (millions) 1 | E3: % of Total | F3: Energy Savings (Gross GWh) | G3: % of Total | H3: Demand Reduction (Gross MW) | I3: % of Total | J3: Gas Savings (Gross MMTh) 3 | K3: % of Total
C4: Residential | D4: 42.52824063 | E4: 0.3466762988 | F4: 57.28204784 | G4: 0.2260162869 | H4: 10.28515037 | I4: 0.245354875 | J4: 0.3849080865 | K4: 0.144764777
C5: Commercial | D5: 64.20119457 | E5: 0.5233471261 | F5: 113.9630137 | G5: 0.4496609 | H5: 18.66317988 | I5: 0.4452148975 | J5: 1.845604737 | K5: 0.6941359967
C6: Industrial | D6: 3.996593424 | E6: 0.03257892157 | F6: 5.454228949 | G6: 0.02152060936 | H6: 0.493086248 | I6: 0.01176269771 | J6: 0.08932989944 | K6: 0.03359717145
C7: Agricultural | D7: 1.600719473 | E7: 0.01304854126 | F7: 2.726679724 | G7: 0.01075858929 | H7: 0.2460699995 | I7: 0.005870062352 | J7: 0.04528206684 | K7: 0.01703068483
C8: Government Partnerships 2 | D8: 10.34746061 | E8: 0.08434911236 | F8: 0 | G8: 0 | H8: 0 | I8: 0 | J8: 0 | K8: 0
C9: Low Income Energy Efficiency | D9: NA | E9: NA | F9: 7.916154 | G9: 0.03123456302 | H9: 1.932 | I9: 0.04608835082 | J9: 0.283727 | K9: 0.1067103481
C10: Codes & Standards | D10: 0 | E10: 0 | F10: 66.1 | G10: 0.2608090514 | H10: 10.3 | I10: 0.2457091167 | J10: 0.01 | K10: 0.003761021971
C11: Total 3 | D11: 122.6742087 | F11: 253.4421242 | H11: 41.9194865 | J11: 2.65885179
C13: CPUC 2015 Goal (including C&S) | F13: 239.7 | H13: 39.6 | J13: 2.5
C14: 1 - The total budget by market sector is the sum of all administrative, marketing and direct implementation incentive and incentive costs. Cross cutting core and third party programs are allocated to the appropriate market sector where energy savings are expected to be realized. M&V is allocated to the sectors based on the sector's percentage of the total budget.
C15: 2 - Includes all Local and Statewide Government Partnership programs.

Sheet Table 2.1 Bill Payer Impacts
B2: Table 2.1 -Bill Payer Impacts - Rates by Customer Class
C3: Electric Average Rate (Res and Non-Res) $/kwh | D3: Gas Average Rate (Res and Non-Res) $/therm | E3: Total Average Bill Savings by Year ($) | F3: Total Average Lifecycle Bill Savings ($)
B4: Present Rates - System Average
B5: 2013 | C5: 0.1695 | D5: 0.9717046538
B6: 2014 | C6: 0.1813 | D6: 1.16373
B7: 2015 | C7: 0.1813 | D7: 1.16373
B9: Notes: (Consistent with SPM TRC/PAC/RIM tests, all savings used from actuals and forecasts in this table are net not gross)
B10: 1) Average first year electric bill savings is calculated by multiplying an average electric rate with first year net kWh energy savings.
B11: 2) Average first year gas bill savings is calculated by multiplying an average gas rate with first year net therm energy savings.
B12: 3) Total average first year bill savings is the sum of Notes 1 and 2.
B13: 4) Average lifecycle electric bill savings is calculated by multiplying an average electric rate with lifecycle net kWh energy savings.
B14: 5) Average lifecycle gas bill savings is calculated by multiplying an average gas rate with lifecycle net therm energy savings.
B15: 6) Total average lifecycle bill savings is the sum of Notes 4 and 5.

Sheet Table 2.1a-b Rates Rev
B1: Note: customer class list is specific to the utility for each utility filing
B3: Table 2.1a - Electric Bill Payer Impacts - Current and Proposed Revenues and Rates, Total and Energy Efficiency, by Customer Class
B4: Customer Classes | C4: 2014 Total Electric Annual Revenue $000 | D4: 2014 Energy Efficiency Portion of Total Electric Annual Revenue $000 | E4: 2015 Proposed Energy Efficiency Electric Annual Revenue Change $000 | F4: 2015 Proposed Percentage Change In Electric Revenue and Rates (3) | G4: 2014 Electric Average Rate $/kwh | H4: 2014 Energy Efficiency Portion of Electric Average Rate $/kwh | I4: 2015 Proposed Electric Average Rate Change $/kwh | J4: 2015 Proposed Percentage Change In Electric Revenue and Rates (3)
B5: Bundled 1
B6: Residential | C6: 32942 | E6: 0 | G6: 0.00421 | I6: 0
B7: Commercial - Small | C7: 14439 | E7: 0 | G7: 0.00686 | I7: 0
B8: Commercial - Medium & Large | C8: 47033 | E8: 0 | G8: 0.00437 | I8: 0
B9: Streetlights | C9: 446 | E9: 0 | G9: 0.00402 | I9: 0
B10: Standby
B11: Agricultural | C11: 575 | E11: 0 | G11: 0.00612 | I11: 0
B12: Agricultural
B13: Industrial
B14: Direct Access Service 2
B15: Residential
B16: Commercial - Small
B17: Commercial - Medium
B18: Commercial - Large
B19: Agricultural
B20: Industrial
B21: Departed Load
B23: Table 2.1b - Gas Bill Payer Impacts - Current and Proposed Revenues and Rates, Total and Energy Efficiency, by Customer Class
B24: Customer Classes | C24: 2014 Total Gas Annual Revenue $000 | D24: 2014 Energy Efficiency Portion of Total Gas Annual Revenue $000 | E24: 2015 Proposed Energy Efficiency Gas Annual Revenue Change $000 | F24: 2015 Proposed Percentage Change In Gas Revenue and Rates (3) | G24: 2014 Gas Average Rate $/kwh | H24: 2014 Energy Efficiency Portion of Gas Average Rate $/kwh | I24: 2015 Proposed Gas Average Rate Change $/kwh | J24: 2015 Proposed Percentage Change In Gas Revenue and Rates (3)
B26: Core Retail Bundled 1
B27: Residential - Non-CARE | C27: -4604 | E27: 0 | G27: -0.01416 | I27: 0
B28: Residential - CARE
B29: Commercial - Small
B30: Commercial/Industrial | C30: -10013 | E30: 0 | G30: -0.06653 | I30: 0
B31: Core Retail - Transportation Only 2
B32: Residential - Non-CARE
B33: Residential - CARE
B34: Commercial - Small
B35: Commercial - Large
B36: Noncore- Transportation Only 2
B37: Industrial - Distribution
B38: Commercial/Industrial | C38: -2407 | E38: 0 | G38: -0.06485 | I38: 0
B40: 1 Customers who receive gas procurement as well as transportation service from SDG&E.
B41: 2 Customers who purchase gas from non-SDG&E suppliers.
B42: 3 Proposed revenue and rate changes compare to total revenues and rates effective January 1, 2014.

Sheet Table 2.2 Funding Source
A1: Table 2.2 - Budget and Cost Recovery by Funding Source
C2: 2015
A3: 2015 EE Portfolio Budget | C3: 119419590.9
A4: Unspent/Uncommitted EM&V Carryover Funds | C4: 0
A5: Unspent/Uncommitted Program Carryover Funds | C5: 13381054.05
A6: Total Funding Request for 2015 EE Portfolio | C6: 106038536.8
A9: Budget by Funding Source
A11: 2015 Authorized (Before Carryonver) | B11: 2015 Budget | C11: Allocation
A13: Electric Procurement EE Funds | B13: 107477631.8 | C13: 0.9
A14: Gas PPP Surcharge Funds | B14: 11941959.09 | C14: 0.1
A15: Total Funds | B15: 119419590.9
A18: Revenue Requirement for Cost Recovery by Funding Source
A20: 2015 Authorized Funding in Rates (including Carryonver ) | B20: 2015 Revenue Requirement | C20: Allocation after Carryover adjustment
A22: Procurement EE Funds | B22: 95434683.13 | C22: 0.9
A23: Gas PPP Surcharge Funds | B23: 10603853.68 | C23: 0.1
A24: Total Funds | B24: 106038536.8
A26: Unspent/Uncommitted Carryover Funds (in positive $ amonts)
A28: Total Unspent/Uncommitted Funds | B28: Electric PGC | C28: Electric Procurement | D28: Total Electric | E28: Gas | F28: Total
A29: 2013-2014 | B29: 0 | C29: 12042948.65 | D29: 12042948.65 | E29: 1338105.405 | F29: 13381054.05
A30: 2010-2012 | B30: 0 | C30: 0 | D30: 0 | E30: 0 | F30: 0
A31: Total pre-2010 (2009, 2006-2008, 1998-2005) | B31: 0 | C31: 0 | D31: 0 | E31: 0 | F31: 0
A32: Total Pre-2015 | B32: 0 | C32: 12042948.65 | D32: 12042948.65 | E32: 1338105.405 | F32: 13381054.05
A34: EM&V Unspent/Uncommitted Funds | B34: Electric PGC | C34: Electric Procurement | D34: Electric | E34: Gas | F34: Total
A35: 2013-2014 | B35: 0 | C35: 0 | D35: 0 | E35: 0 | F35: 0
A36: 2010-2012 | B36: 0 | C36: 0 | D36: 0 | E36: 0 | F36: 0
A37: Total pre-2010 (2009, 2006-2008, 1998-2005) | B37: 0 | C37: 0 | D37: 0 | E37: 0 | F37: 0
A38: Total Pre-2015 | B38: 0 | C38: 0 | D38: 0 | E38: 0 | F38: 0
A40: Program Unspent/Uncommitted Funds | B40: Electric PGC | C40: Electric Procurement | D40: Electric | E40: Gas | F40: Total
A41: 2013-2014 | B41: 0 | C41: 12042948.65 | D41: 12042948.65 | E41: 1338105.405 | F41: 13381054.05
A42: 2010-2012 | B42: 0 | C42: 0 | D42: 0 | E42: 0 | F42: 0
A43: Total pre-2010 (2009, 2006-2008, 1998-2005) | B43: 0 | C43: 0 | D43: 0 | E43: 0 | F43: 0
A44: Total Pre-2015 | B44: 0 | C44: 12042948.65 | D44: 12042948.65 | E44: 1338105.405 | F44: 13381054.05

Sheet T1 Goals
B1: Table 1. Commission Adopted and Proposed Energy Savings Goals.
B2: 2013‑15 Electric Goals | C2: Program Administrator/Utility
C3: 2010-12 Annualized1 | D3: 20132 | E3: 20142 | F3: 20153
B4: Annual electricity savings (GWh/yr)
B5: IOU program targets | C5: 180 | D5: 162 | E5: 156 | F5: 173.6
B6: Codes and Standards Advocacy | D6: 59 | E6: 56 | F6: 66.1
B7: Total Annual Targets | C7: 180 | D7: 221 | E7: 212 | F7: 239.7
B8: Annual peak savings (MW)
B9: IOU program targets | C9: 35.66666667 | D9: 36 | E9: 33 | F9: 29.2
B10: Codes and Standards Advocacy | D10: 7 | E10: 8 | F10: 10.3
B11: Total Peak Savings Targets | C11: 35.66666667 | D11: 43 | E11: 41 | F11: 39.6
B12: Annual natural gas savings with interactive effects (MMTherms/yr)
B13: IOU program targets | C13: 3.8 | D13: 2.2 | E13: 2.1 | F13: 2.3
B14: Codes and Standards Advocacy | D14: 0 | E14: 0.1 | F14: 0.1
B15: Total Gas Targets | C15: 3.8 | D15: 2.2 | E15: 2.2 | F15: 2.5
B16: 1 2010-12 Annualized is the sum of the adopted CPUC goals in D. 09-09-047 Table 2 for the three years divided by three including C&S.
B17: 2 2013 and 2014 are IOU savings targets approved in Table 5 of D. 12-11-015.
B18: 3 2015 is based on the Ruling in R.13-11-05 dated 3/3/2014 Figure 1; IOU owned street lights included in IOU program targets

Sheet T2 Budget Request
B1: Table 2. Total 2015 Requested and 2010-2014 Authorized Budgets ($000).
B2: Category (2010-14 Authorized1 and 2015 Request) | C2: Electric Demand Response Funds | D2: Electric Energy Efficiency Funds | E2: Natural Gas Public Purpose Funds | F2: Total Energy Efficiency Funds
B3: 2010-12 Annualized Programs | D3: 65237.33326 | E3: 16309.33332 | F3: 81546.66658
B4: 2010-12 Annualized EM&V | D4: 8896.000072 | E4: 2224.000018 | F4: 11120.00009
B5: 2010-2012 Annualized Total | D5: 74133.33333 | E5: 18533.33333 | F5: 92666.66667
B6: 2013-2014 Annualized Program Funds - Utility | C6: 4944 | D6: 91191.57012 | E6: 10132.39668 | F6: 101323.9668
B7: 2013-2014 Annualized Program Funds - REN
B8: 2013-2014 Annualized Program Funds - CCA
B9: 2013-2014 Annualized EM&V | D9: 3837.15 | E9: 426.35 | F9: 4263.5
B10: 2013-2014 Total Annualized Portfolio | C10: 4944 | D10: 95028.72012 | E10: 10558.74668 | F10: 105587.4668
B11: 2015 Program Funds - Utility | C11: 4640 | D11: 103178.5262 | E11: 11464.28069 | F11: 114642.8069
B12: 2015 Program Funds - REN
B13: 2015 Program Funds - CCA
B14: 2015 EM&V | D14: 4299.1056 | E14: 477.6784 | F14: 4776.784
B15: 2015 Total Portfolio Request | C15: 4640 | D15: 107477.6318 | E15: 11941.95909 | F15: 119419.5909
B16: 2015 Programs | G16: delete
B17: 2015 EM&V | G17: delete
B18: 2015 Total | G18: delete
B19: 1 Authorized budget excludes reductions from past unspent funds, carryover and is consistent with funding approved in D. 09-09-047 and D. 12-11-015.

Sheet T3 Request by Area
B1: Table 3. Past and Requested Energy Efficiency Budgets
B2: Annualized Budget by Program Area ($000).1 | C2: 2010-2012 Authorized1 Annualized | D2: 2010-2012 Authorized Spent1 Annualized | E2: Carryover Spent in 2010-2012 Annualized | F2: 2013-2014 Authorized1 Annualized | G2: 2013 Authorized Spent2 (preliminary) | H2: Carryover Spent in 2013 (preliminary) | I2: 2015 request
B3: Statewide Resource Programs
B4: Residential | C4: 18204.61 | D4: 15519.12 | E4: 2685.49 | F4: 21801.31 | G4: 13350.77 | H4: 8450.54 | I4: 26009.06858
B5: Commercial | C5: 23095.15 | D5: 24818.76 | E5: -1723.61 | F5: 23737.98 | G5: 16957.96 | H5: 6780.02 | I5: 21611.42824
B6: Industrial | C6: 5986.64 | D6: 1685.01 | E6: 4301.63 | F6: 2538.95 | G6: 1608.44 | H6: 930.51 | I6: 2518.592602
B7: Agricultural | C7: 1805.17 | D7: 567.91 | E7: 1237.26 | F7: 1150.17 | G7: 278.7 | H7: 871.47 | I7: 994.2798115
B8: Codes and Standards | C8: 734.76 | D8: 679.54 | E8: 55.22 | F8: 1049.23 | G8: 319.89 | H8: 729.34 | I8: 1051.136775
B9: Financing | C9: 875 | D9: 379.91 | E9: 495.09 | F9: 7499.98 | G9: 1013.73 | H9: 6486.25 | I9: 284.1410669
B10: Subtotal Statewide Resource Programs | C10: 50701.33 | D10: 43650.25 | E10: 7051.08 | F10: 57777.62 | G10: 33529.49 | H10: 24248.13 | I10: 52468.64708
B11: Other Resource Programs
B12: Third Party Programs (competitively bid) | C12: 16140.3 | D12: 17378.35 | E12: -1238.05 | F12: 19309.04 | G12: 22375.31 | H12: -3066.27 | I12: 36393.24807
B13: Local Government Partnerships
B14: Subtotal Other Resource Programs | C14: 16140.3 | D14: 17378.35 | E14: -1238.05 | F14: 19309.04 | G14: 22375.31 | H14: -3066.27 | I14: 36393.24807
B15: Statewide Non-Resource Programs
B16: Third Party Programs (competitively bid) | C16: 2257.32 | D16: 2423.76 | E16: -166.44 | F16: 2895.91 | G16: 2889.84 | H16: 6.07 | I16: 3729.713719
B17: Local Government Partnerships | C17: 9895.22 | D17: 7399.03 | E17: 2496.19 | F17: 8788.74 | G17: 5661.14 | H17: 3127.6 | I17: 8725.184426
B18: Emerging Technologies | C18: 1350.28 | D18: 1373.31 | E18: -23.03 | F18: 1147.54 | G18: 429.61 | H18: 717.93 | I18: 1288.543633
B19: Workforce, Education, and Training | C19: 5390.76 | D19: 4588.24 | E19: 802.52 | F19: 5108.4 | G19: 3307.41 | H19: 1800.99 | I19: 5494.244262
B20: Integrated Demand Side Management | C20: 200.04 | D20: 260.78 | E20: -60.74 | F20: 2265.94 | G20: 1679.327 | H20: 586.613 | I20: 2510.340986
B21: Other (explain each entry in text)
B22: Subtotal Statewide Non-Resource Programs | C22: 19093.62 | D22: 16045.12 | E22: 3048.5 | F22: 20206.53 | G22: 13967.327 | H22: 6239.203 | I22: 21748.02703
B23: Subtotal Utility Programs | C23: 85935.25 | D23: 77073.72 | E23: 8861.53 | F23: 97293.19 | G23: 69872.127 | H23: 27421.063 | I23: 110609.9222
B24: Non-Utility Programs
B25: Other | F25: 1057.53 | G25: 1613.27 | H25: -555.74 | I25: 1057.54922
B26: Other
B27: Other
B28: Subtotal Non-Utility Programs | C28: 0 | D28: 0 | E28: 0 | F28: 1057.53 | G28: 1613.27 | H28: -555.74 | I28: 1057.54922
B29: TOTAL NEW BUDGET REQUEST
B30: Evaluation, Measurement, and Verification | C30: 3706.67 | D30: 1894.67 | E30: 1812 | F30: 4263.5 | G30: 467.67 | H30: 3795.83 | I30: 4776.784
B31: TOTAL ALL PROGRAMS PLUS ME&O
B32: Marketing, Education, and Outreach | C32: 3024.74 | D32: 506.83 | E32: 2517.91 | F32: 2973.23 | G32: 1441.64 | H32: 1531.59 | I32: 2975.335381
B33: GRAND TOTAL 2015 PORTFOLIO | C33: 92666.66 | D33: 79475.22 | E33: 13191.44 | F33: 105587.45 | G33: 73394.707 | H33: 32192.743 | I33: 119419.5908
B34: 1. Authorized means the total authorized budget for the program cycle for programs irrespective of the source of funds as either from past unspent or new collections. Spent means actual funds expensed, including accruals, for activities completed during the period.
B35: 2. 2013 Spent means funds expensed for program activities occurring through 12/31/13.

Sheet T4 Unspent
B1: Table 4. Unspent Energy Efficiency Program Funding
B2: Previous Unspent Offset to 2015 Revenue Requirements ($000). | C2: Electric Former PGC Funds | D2: Electric Procurement Funds | E2: Natural Gas Public Purpose Funds
B3: Category | F3: Total
B4: 1998-2009 EM&V Funds | C4: 0 | D4: 0 | E4: 0 | F4: 0
B5: 1998-2009 Program Funds | C5: 0 | D5: 0 | E5: 0 | F5: 0
B6: 2010-2012 EM&V Funds | C6: 0 | D6: 0 | E6: 0 | F6: 0
B7: 2010-2012 Program Funds - Utility | C7: 0 | D7: 0 | E7: 0 | F7: 0
B8: 2012 Program Funds - CCA | C8: 0 | D8: 0 | E8: 0 | F8: 0
B9: 2013-2014 EM&V Funds | C9: 0 | D9: 0 | E9: 0 | F9: 0
B10: 2013-2014 Program Funds - Utility | C10: 0 | D10: 12042.94865 | E10: 1338.105405 | F10: 13381.05405
B11: 2013-2014 Program Funds - REN | F11: 0
B12: 2013-2014 Program Funds - CCA | F12: 0
B13: Total | C13: 0 | D13: 12042.94865 | E13: 1338.105405 | F13: 13381.05405
B15: Table 4b. Carryover Energy Efficiency Program Funding Not Yet Spent
B16: Previous carryover funds not yet spent ($000). | C16: Electric Former PGC Funds | D16: Electric Procurement Funds | E16: Natural Gas Public Purpose Funds
B17: Category | F17: Total
B18: 1998-2009 EM&V Funds
B19: 1998-2009 Program Funds
B20: 2010-2012 EM&V Funds | D20: 2982.592072 | E20: 745.648018 | F20: 3728.24009
B21: 2010-2012 Program Funds - Utility | D21: 3215.118192 | E21: 803.779548 | F21: 4018.89774
B22: 2012 Program Funds - CCA
B23: 2013-2014 EM&V Funds | D23: 7253.39754 | E23: 805.93306 | F23: 8059.3306
B24: 2013-2014 Program Funds - Utility | D24: 23038.78983 | E24: 2559.865537 | F24: 25598.65537
B25: 2013-2014 Program Funds - REN
B26: 2013-2014 Program Funds - CCA
B27: Total | C27: 0 | D27: 36489.89764 | E27: 4915.226163 | F27: 41405.1238

Sheet T5 2013 Spent-Unspent
B1: Table 5. 2013 Authorized and Spent/Unspent Detail
B2: Authorized, spent and unspent program funds (excludes EM&V) ($000) | C2: Electric Former PGC Funds (delete column - no longer applicable post 2011) | D2: Electric Procurement Funds | E2: Natural Gas Public Purpose Funds
B3: Category | F3: Total
B4: 2013-14 Annualized Authorized Program Budget | D4: 95028.72012 | E4: 10558.74668 | F4: 105587.4668
B5: 2013 Actual Spent1 (Preliminary) | D5: 67001.86098 | E5: 6392.842021 | F5: 73394.703
B6: 2013 Unspent
B7: 2013 Committed and/or encumbered funds 2
B8: 2013 Unspent - planned for use in 2014 | D8: 28026.85914 | E8: 4165.904659 | F8: 32192.7638
B9: 2013 Unspent - estimated available for 20153 | D9: 12042.94865 | E9: 1338.105405 | F9: 13381.05405
B10: 1. Actual spent means funds expensed, including accruals, for program activities occurring from 1/1/13 through 12/31/13.
B11: 2. 2013 Committed and/or encumbered funds means funds that are associated with individual customer projects and/or contained within contracts or purchase order for authorized activities after 12/31/2013
B12: 3. 2013 Unspent - available for 2015 are total unspent uncommitted funds and not planned for use in 2014.

Sheet T6 Savings Estimates and Cl
B1: Table 6.1 Estimated and Claimed Savings 2010-2015.
C3: Compliance Filing Forecast1 | F3: Claimed
B4: Category | C4: GWh | D4: Mw | E4: MM Therm | F4: GWh | G4: Mw | H4: MM Therm
B6: 2010-12 Annualized | C6: 264.8135714 | D6: 52.42349166 | E6: 3.886306428 | F6: 313.1509764 | G6: 51.08056282 | H6: 1.236009581
B7: 2013 | C7: 201.3479131 | D7: 34.86142566 | E7: 2.934000959 | F7: 154.5679912 | G7: 25.48848887 | H7: 0.3837550857
B8: 2014 | C8: 263.4333583 | D8: 44.33693445 | E8: 2.883363081
B9: 2015 | C9: 187.34 | D9: 31.62 | E9: 2.649
B10: 1. Compliance Filing Forecast based on CPUC approved compliance filing savings estimates; may be adjusted for updated savings values. C&S savings are included as net for 2010-12 and excluded for 2013-15. Energy Savings Assistance savings are included in all years.
B13: Table 6.2 CPUC Authorized Goals for 2010-2015.
C14: CPUC Goals1
B15: Category | C15: GWh | D15: Mw | E15: MM Therm
B17: 2010-12 Annualized | C17: 180 | D17: 35.7 | E17: 3.8
B18: 2013 | C18: 162 | D18: 36 | E18: 2.2
B19: 2014 | C19: 156 | D19: 33 | E19: 2.1
B20: 2015 | C20: 173.6 | D20: 29.2 | E20: 2.3
B21: 1 - Goals are taken from D. 09-09-047 Table 2 for 2010-2012, D. 12-11-015 Table 5 for 2013-2014 and Ruling in R.13-11-05 dated 3/3/2014 Figure 1 for 2015. 2010-12 include C&S, 2013-2015 exclude C&S and all years include ESAP.
B23: Table 6.3 Comparison of Forecast and Claimed Savings to CPUC Authorized Goals
C24: Compliance Filing Forecast Compared to Goals | F24: Claimed Savings Compared to Goals
B25: Category | C25: GWh % of goal | D25: Mw % of goal | E25: MM Therm % of goal | F25: GWh % of goal | G25: Mw % of goal | H25: MM Therm % of goal
B27: 2010-12 Annualized | C27: 1.471186508 | D27: 1.468445144 | E27: 1.022712218 | F27: 1.739727647 | G27: 1.43082809 | H27: 0.3252656792
B28: 2013 | C28: 1.242888352 | D28: 0.968372935 | E28: 1.333636799 | F28: 0.9541234023 | G28: 0.7080135798 | H28: 0.1744341299
B29: 2014 | C29: 1.688675374 | D29: 1.343543468 | E29: 1.373030038
B30: 2015 | C30: 1.079147465 | D30: 1.082876712 | E30: 1.15173913

Sheet T7 CE results
A1: Table 7.1 TRC Cost-Effectiveness Scenario Results.1
B2: 2010-2012 Claimed | C2: 2013 Claimed | D2: 2013-2014 forecast | E2: 2015 forecast
A3: Resource Portfolio (less C&S and less ME2) | C3: 1.3 | D3: 1.2 | E3: 1.4
A4: Resource and Nonresource Portfolios (less C&S and less ME) | C4: 1 | D4: 0.9 | E4: 1
A5: Portfolio with C&S, ME (2013-15 only) and ESPI3 | C5: 1.2 | D5: 1.1 | E5: 1.4
A6: 1. Does not include Emerging Technology, OBF revolving loan pool, credit enhancements.
A7: 2. ME is Market Effects. Only applies to 2013-2015 pursuant to D. 12-11-015 that adopted 5% spillover for resource programs.
A8: 3. Estimated or awarded Energy Savings Performance Incentive payments.
A11: Table 7.2 PAC Cost-Effectiveness Scenario Results.1
B12: 2010-2012 Claimed | C12: 2013 Claimed | D12: 2013-2014 forecast | E12: 2015 forecast | H12: `
A13: Resource Portfolio (less C&S and less ME2) | C13: 2 | D13: 1.6 | E13: 1.7
A14: Resource and Nonresource Portfolios (less C&S and less ME) | C14: 1.4 | D14: 1.2 | E14: 1.2
A15: Portfolio with C&S, ME (2013-15 only) and ESPI3 | C15: 1.8 | D15: 1.5 | E15: 1.8
A16: 1. Does not include Emerging Technology, OBF revolving loan pool, credit enhancements.
A17: 2. ME is Market Effects. Only applies to 2013-2015 pursuant to D. 12-11-015 that adopted 5% spillover for resource programs.
A18: 3. Estimated or awarded Energy Savings Performance Incentive payments.

Sheet App B.1 Budget_
A1: Appendix B.1 – Budget Placemat Table | C1: Total Administrative Cost | G1: Total Marketing & Outreach | K1: Total Direct Implementation (NonIncentives or Rebates) | O1: Direct Implementation (Incentives & Rebates) | S1: Total Direct Implementation | W1: Total
A2: ProgramCode | B2: Main Program Name / Sub-Programs | C2: 2013-14 Budget Annualized | D2: 2013 Spent (Preliminary) | E2: pre 2013-2014 Carryover spent in 2013 | F2: 2015 Request [2] | G2: 2013-14 Budget Annualized | H2: 2013 Spent (Preliminary) | I2: pre 2013-2014 Carryover spent in 2013 | J2: 2015 Request [2] | K2: 2013-14 Budget Annualized | L2: 2013 Spent (Preliminary) | M2: pre 2013-2014 Carryover spent in 2013 | N2: 2015 Request [2] | O2: 2013-14 Budget Annualized | P2: 2013 Spent (Preliminary) | Q2: pre 2013-2014 Carryover spent in 2013 | R2: 2015 Request [2] | S2: 2013-14 Budget Annualized | T2: 2013 Spent (Preliminary) | U2: pre 2013-2014 Carryover spent in 2013 | V2: 2015 Request [2] | W2: 2013-14 Budget Annualized | X2: 2013 Spent (Preliminary) | Y2: pre 2013-2014 Carryover spent in 2013 | Z2: 2015 Request [2] | AA2: Program Type | AB2: Market Sector | AC2: Pilot Program | AD2: Program Status | AE2: Utility Grouping | AF2: pre 2013 CARRYOVER to 2014 and beyond | AG2: 2013 CARRYOVER to 2014 and beyond | AH2: TOTAL CARRYOVER
B3: SW CALSPREE | C3: 1655.7055 | D3: 1040.06132 | E3: 0 | F3: 1332.267238 | G3: 1512.52915 | H3: 616.12891 | I3: 0 | J3: 1687.251247 | K3: 6528.553835 | L3: 6085.79602 | M3: 0 | N3: 6491.962877 | O3: 10408.3976 | P3: 4821.60077 | Q3: 0 | R3: 15361.04821 | S3: 16936.95144 | T3: 10907.39679 | U3: 0 | V3: 21853.01109 | W3: 20105.18609 | X3: 12563.58702 | Y3: 253.709 | Z3: 24872.52957 | AF3: 0 | AG3: 0 | AH3: 0
A4: SDGE3201 | B4: SW-CALS-Energy Advisor-HEES, UAT | C4: 47.941595 | D4: 46.47083 | E4: 0 | F4: 33.2370695 | G4: 12.06809 | H4: 186.36276 | I4: 0 | J4: 239.726 | K4: 350.046135 | L4: 127.20408 | M4: 0 | N4: 198.0035278 | O4: 0 | P4: 0 | Q4: 0 | R4: 0 | S4: 350.046135 | T4: 127.20408 | U4: 0 | V4: 198.0035278 | W4: 410.05582 | X4: 360.03767 | Y4: 0 | Z4: 470.9665973 | AA4: Core - SW | AB4: Residential | AC4: No | AD4: Revised | AE4: Residential Programs
A5: SDGE3203 | B5: SW-CALS-Plug Load and Appliances-HEER | C5: 269.411985 | D5: 121.39586 | E5: 0 | F5: 300.3001131 | G5: 131.33362 | H5: 13.31723 | I5: 0 | J5: 148.2444761 | K5: 383.61313 | L5: 244.89775 | M5: 0 | N5: 370.3372534 | O5: 1620.976025 | P5: 885.7636 | Q5: 0 | R5: 3402.493297 | S5: 2004.589155 | T5: 1130.66135 | U5: 0 | V5: 3772.83055 | W5: 2405.33476 | X5: 1265.37444 | Y5: 0 | Z5: 4221.375139 | AA5: Core - SW | AB5: Residential | AC5: No | AD5: New | AE5: Residential Programs
A6: SDGE3204 | B6: SW-CALS-Plug Load and Appliances-POS Rebates | C6: 135.5282 | D6: 45.07778 | E6: 0 | F6: 24.0318574 | G6: 25.1068 | H6: 29.48926 | I6: 0 | J6: 25.5637422 | K6: 195.17089 | L6: 305.80815 | M6: 0 | N6: 74.8932508 | O6: 74.975 | P6: 238.6985 | Q6: 0 | R6: 379.75 | S6: 270.14589 | T6: 544.50665 | U6: 0 | V6: 454.6432508 | W6: 430.78089 | X6: 619.07369 | Y6: 0 | Z6: 504.2388504 | AA6: Core - SW | AB6: Residential | AC6: No | AD6: New | AE6: Residential Programs
A7: SDGE3205 | B7: SW-CALS-Plug Load and Appliances-BCE | C7: 54.55228 | D7: 22.79408 | E7: 0 | F7: 0 | G7: 56.54744 | H7: -0.06733 | I7: 0 | J7: 0 | K7: 118.93493 | L7: 54.34598 | M7: 0 | N7: 0 | O7: 170.25 | P7: 0 | Q7: 0 | R7: 0 | S7: 289.18493 | T7: 54.34598 | U7: 0 | V7: 0 | W7: 400.28465 | X7: 77.07273 | Y7: 0 | Z7: 0 | AA7: Core - SW | AB7: Residential | AC7: No | AD7: New | AE7: Residential Programs
A8: SDGE3206 | B8: SW-CALS-Plug Load and Appliances-ARP | C8: 80.58449 | D8: 41.66681 | E8: 0 | F8: 23.3422501 | G8: 25 | H8: 196.63488 | I8: 0 | J8: 16.5 | K8: 585.9068 | L8: 1126.73395 | M8: 0 | N8: 457.8443225 | O8: 2211 | P8: 276.185 | Q8: 0 | R8: 3634.6 | S8: 2796.9068 | T8: 1402.91895 | U8: 0 | V8: 4092.444322 | W8: 2902.49129 | X8: 1641.22064 | Y8: 0 | Z8: 4132.286573 | AA8: 3P | AB8: Residential | AC8: No | AD8: New | AE8: Residential Programs
A9: SDGE3207 | B9: SW-CALS-MFEER | C9: 130.216215 | D9: 99.22376 | E9: 0 | F9: 132.630542 | G9: 16.18842 | H9: 6.08306 | I9: 0 | J9: 4 | K9: 129.67533 | L9: 199.95627 | M9: 0 | N9: 122.1645493 | O9: 1425.214605 | P9: 882.61375 | Q9: 0 | R9: 1924.947009 | S9: 1554.889935 | T9: 1082.57002 | U9: 0 | V9: 2047.111558 | W9: 1701.29457 | X9: 1187.87684 | Y9: 0 | Z9: 2183.7421 | AA9: Core - SW | AB9: Residential | AC9: No | AD9: Revised | AE9: Residential Programs
A10: SDGE3208 | B10: SW-CALS - EUC WHRP - Basic | C10: 0 | D10: 0 | E10: 0 | F10: 0 | G10: 0 | H10: 0 | I10: 0 | J10: 0 | K10: 0 | L10: 0 | M10: 0 | N10: 0 | O10: 0 | P10: 0 | Q10: 0 | R10: 0 | S10: 0 | T10: 0 | U10: 0 | V10: 0 | W10: 0 | X10: 0 | Y10: 0 | Z10: 0 | AA10: Core - SW | AB10: Residential | AC10: No | AD10: New | AE10: Residential Programs
A11: SDGE3209 | B11: SW-CALS - EUC WHRP - Advanced | C11: 394.815425 | D11: 323.28553 | E11: 0 | F11: 401.6821443 | G11: 960.8099 | H11: 114.36614 | I11: 0 | J11: 1003.456358 | K11: 1625.73211 | L11: 2482.42247 | M11: 0 | N11: 1777.633642 | O11: 2680.93971 | P11: 413.07117 | Q11: 0 | R11: 2699.883354 | S11: 4306.67182 | T11: 2895.49364 | U11: 0 | V11: 4477.516996 | W11: 5662.297145 | X11: 3333.14531 | Y11: 0 | Z11: 5882.655498 | AA11: Core - SW | AB11: Residential | AC11: No | AD11: New | AE11: Residential Programs
A12: SDGE3210 | B12: SW-CALS - EUC WHRP - Multifamily | C12: 0 | D12: 0 | E12: 0 | F12: 0 | G12: 0 | H12: 0 | I12: 0 | J12: 0 | K12: 0 | L12: 0 | M12: 0 | N12: 0 | O12: 0 | P12: 0 | Q12: 0 | R12: 0 | S12: 0 | T12: 0 | U12: 0 | V12: 0 | W12: 0 | X12: 0 | Y12: 0 | Z12: 0 | AA12: Core - SW | AB12: Residential | AC12: No | AD12: Revised | AE12: Residential Programs
A13: SDGE3211 | B13: Local-CALS - Middle Income Direct Install (MIDI) | C13: 140.76739 | D13: 11.94888 | E13: 0 | F13: 73.0857736 | G13: 101.7074 | H13: 14.67744 | I13: 0 | J13: 47.5303978 | K13: 905.15179 | L13: 509.42313 | M13: 0 | N13: 545.3567429 | O13: 1051.82237 | P13: 0 | Q13: 0 | R13: 1745.865692 | S13: 1956.97416 | T13: 509.42313 | U13: 0 | V13: 2291.222435 | W13: 2199.44895 | X13: 536.04945 | Y13: 0 | Z13: 2411.838606 | AA13: Core - Local | AB13: Residential | AC13: No | AD13: New | AE13: Residential Programs
A14: SDGE3212 | B14: SW-CALS – Residential HVAC-QI/QM | C14: 185.82778 | D14: 95.13153 | E14: 0 | F14: 105.1243244 | G14: 70.31392 | H14: 5.1769 | I14: 0 | J14: 61.9625918 | K14: 671.14932 | L14: 583.96854 | M14: 0 | N14: 527.8386974 | O14: 326.348045 | P14: 492.83575 | Q14: 0 | R14: 483.231 | S14: 997.497365 | T14: 1076.80429 | U14: 0 | V14: 1011.069697 | W14: 1253.639065 | X14: 1177.11272 | Y14: 0 | Z14: 1178.156614 | AA14: 3P | AB14: Residential | AC14: No | AD14: Revised | AE14: HVAC
A15: SDGE3213 | B15: SW-CALS - CAHP/ESMH-CA Advanced Homes | C15: 193.51757 | D15: 218.65144 | E15: 0 | F15: 185.6492778 | G15: 101.46248 | H15: 50.08857 | I15: 0 | J15: 104.0906814 | K15: 1398.8618 | L15: 418.30368 | M15: 0 | N15: 1463.058661 | O15: 822.871845 | P15: 1629.433 | Q15: 0 | R15: 1072.77786 | S15: 2221.733645 | T15: 2047.73668 | U15: 0 | V15: 2535.836521 | W15: 2516.713695 | X15: 2316.47669 | Y15: 253.709 | Z15: 2825.57648 | AA15: Core - SW | AB15: Residential | AC15: No | AD15: Revised | AE15: New Construction
A16: SDGE3214 | B16: SW-CALS - CAHP/ESMH-E Star Manufactured Homes | C16: 4.24182 | D16: 4.1147 | E16: 0 | F16: 1.9004372 | G16: 0 | H16: 0 | I16: 0 | J16: 0 | K16: 32.94199 | L16: 12.96165 | M16: 0 | N16: 10.498658 | O16: 24 | P16: 3 | Q16: 0 | R16: 17.5 | S16: 56.94199 | T16: 15.96165 | U16: 0 | V16: 27.998658 | W16: 61.18381 | X16: 20.07635 | Y16: 0 | Z16: 29.8990952 | AA16: Core - SW | AB16: Residential | AC16: No | AD16: Revised | AE16: New Construction
A17: SDGE3293 | B17: SW-CALS – Residential HVAC-HVAC Core | C17: 18.30075 | D17: 10.30012 | E17: 0 | F17: 5.2261697 | G17: 11.99108 | H17: 0 | I17: 0 | J17: 0 | K17: 131.36961 | L17: 19.77037 | M17: 0 | N17: 110.9973159 | O17: 0 | P17: 0 | Q17: 0 | R17: 0 | S17: 131.36961 | T17: 19.77037 | U17: 0 | V17: 110.9973159 | W17: 161.66144 | X17: 30.07049 | Y17: 0 | Z17: 116.2234856 | AA17: Core - SW | AB17: Residential | AC17: No | AD17: Revised | AE17: HVAC
A18: SDGE3302 | B18: RES Upstream HVAC Incentive Program | C18: 0 | D18: 0 | E18: 0 | F18: 24.2247109 | G18: 0 | H18: 0 | I18: 0 | J18: 21.42 | K18: 0 | L18: 0 | M18: 0 | N18: 448.4440951 | O18: 0 | P18: 0 | Q18: 0 | R18: 0 | S18: 0 | T18: 0 | U18: 0 | V18: 448.4440951 | W18: 0 | X18: 0 | Y18: 0 | Z18: 494.088806 | AA18: Core - SW | AB18: Residential | AC18: No | AD18: New | AE18: HVAC
A19: SDGE3303 | B19: HVAC To Code Compliance Incentive Program | C19: 0 | D19: 0 | E19: 0 | F19: 21.8325685 | G19: 0 | H19: 0 | I19: 0 | J19: 14.757 | K19: 0 | L19: 0 | M19: 0 | N19: 384.8921612 | O19: 0 | P19: 0 | Q19: 0 | R19: 0 | S19: 0 | T19: 0 | U19: 0 | V19: 384.8921612 | W19: 0 | X19: 0 | Y19: 0 | Z19: 421.4817297 | AA19: Core - SW | AB19: Residential | AC19: yes | AD19: New | AE19: HVAC
B20: SW Commercial EE Program | C20: 2286.61521 | D20: 1893.75236 | E20: 0 | F20: 1799.280975 | G20: 412.02357 | H20: 217.19689 | I20: 0 | J20: 355.1178193 | K20: 9603.36045 | L20: 22325.76321 | M20: 0 | N20: 10360.21876 | O20: 25818.29096 | P20: 11633.81428 | Q20: 0 | R20: 37376.40256 | S20: 35421.65141 | T20: 33959.57749 | U20: 0 | V20: 47736.62132 | W20: 38120.29019 | X20: 36070.52674 | Y20: 1844.898 | Z20: 49891.02011 | AF20: 0 | AG20: 0 | AH20: 0
A21: SDGE3215 | B21: SW-COM-Continuous Energy Improvement | C21: 50.93281 | D21: 29.4254 | E21: 0 | F21: 23.5836604 | G21: 11.5 | H21: 2.6995 | I21: 0 | J21: 4 | K21: 319.40984 | L21: 116.99731 | M21: 0 | N21: 222.8786952 | O21: 0 | P21: 0 | Q21: 0 | R21: 0 | S21: 319.40984 | T21: 116.99731 | U21: 0 | V21: 222.8786952 | W21: 381.84265 | X21: 149.12221 | Y21: 0 | Z21: 250.4623556 | AA21: Core - SW | AB21: Commercial | AC21: Yes | AD21: Revised | AE21: Commercial Programs
A22: SDGE3216 | B22: SW-COM-Customer Services-Benchmarking | C22: 11.0875 | D22: 5.21534 | E22: 0 | F22: 5.4042851 | G22: 2 | H22: 0 | I22: 0 | J22: 1 | K22: 117.45949 | L22: 79.57674 | M22: 0 | N22: 59.4235647 | O22: 0 | P22: 0 | Q22: 0 | R22: 0 | S22: 117.45949 | T22: 79.57674 | U22: 0 | V22: 59.4235647 | W22: 130.54699 | X22: 84.79208 | Y22: 0 | Z22: 65.8278498 | AA22: Core - SW | AB22: Commercial | AC22: No | AD22: New | AE22: Commercial Programs
A23: SDGE3217 | B23: SW-COM-Customer Services- Audits NonRes | C23: 89.90953 | D23: 28.21213 | E23: 0 | F23: 149.6726871 | G23: 33.92592 | H23: 0.06528 | I23: 0 | J23: 43.2391567 | K23: 421.61856 | L23: 136.01942 | M23: 0 | N23: 1705.349383 | O23: 0 | P23: 0 | Q23: 0 | R23: 0 | S23: 421.61856 | T23: 136.01942 | U23: 0 | V23: 1705.349383 | W23: 545.45401 | X23: 164.29683 | Y23: 0 | Z23: 1898.261227 | AA23: Core - SW | AB23: Commercial | AC23: No | AD23: Revised | AE23: Commercial Programs
A24: SDGE3218 | B24: SW-COM-Customer Services-Audits Healthcare Energy Efficiency (HEEP) | C24: 28.58012 | D24: 31.06276 | E24: 0 | F24: 62.6312973 | G24: 2.2 | H24: 1.5 | I24: 0 | J24: 1.5 | K24: 652.04017 | L24: 781.23943 | M24: 0 | N24: 580.3375604 | O24: 0 | P24: 0 | Q24: 0 | R24: 0 | S24: 652.04017 | T24: 781.23943 | U24: 0 | V24: 580.3375604 | W24: 682.82029 | X24: 813.80219 | Y24: 0 | Z24: 644.4688577 | AA24: 3P | AB24: Commercial | AC24: No | AD24: Revised | AE24: Commercial Programs
A25: SDGE3219 | B25: SW-COM-Customer Services-Audits Lodging Energy Efficiency (LEEP) | C25: 28.33007 | D25: 43.63568 | E25: 0 | F25: 64.6312973 | G25: 2.6 | H25: 3.135 | I25: 0 | J25: 1.5 | K25: 691.89107 | L25: 1138.96488 | M25: 0 | N25: 620.3375804 | O25: 0 | P25: 0 | Q25: 0 | R25: 0 | S25: 691.89107 | T25: 1138.96488 | U25: 0 | V25: 620.3375804 | W25: 722.82114 | X25: 1185.73556 | Y25: 0 | Z25: 686.4688777 | AA25: 3P | AB25: Commercial | AC25: No | AD25: Revised | AE25: Commercial Programs
A26: SDGE3220 | B26: SW-COM-Calculated Incentives-Calculated | C26: 1005.446965 | D26: 659.36364 | E26: 0 | F26: 627.3975834 | G26: 50.11914 | H26: 9.93781 | I26: 0 | J26: 41.5 | K26: 1816.04699 | L26: 2619.95248 | M26: 0 | N26: 2223.624435 | O26: 7959.748875 | P26: 5324.97581 | Q26: 0 | R26: 8190.209756 | S26: 9775.795865 | T26: 7944.92829 | U26: 0 | V26: 10413.83419 | W26: 10831.36197 | X26: 8614.22974 | Y26: 1698.415 | Z26: 11082.73177 | AA26: Core - SW | AB26: Commercial | AC26: No | AD26: Revised | AE26: Commercial Programs
A27: SDGE3221 | B27: SW-COM-Calculated Incentives-RCx | C27: 4.24025 | D27: 107.56329 | E27: 0 | F27: 12.4820845 | G27: 0 | H27: 23.40505 | I27: 0 | J27: 0 | K27: 175.53119 | L27: 1340.85569 | M27: 0 | N27: 218.6200877 | O27: 1000 | P27: 349.05754 | Q27: 0 | R27: 3000.858 | S27: 1175.53119 | T27: 1689.91323 | U27: 0 | V27: 3219.478088 | W27: 1179.77144 | X27: 1820.88157 | Y27: 0 | Z27: 3231.960172 | AA27: 3P | AB27: Commercial | AC27: No | AD27: Revised | AE27: Commercial Programs
A28: SDGE3222 | B28: SW-COM-Calculated Incentives-Savings by Design | C28: 394.89601 | D28: 328.72869 | E28: 0 | F28: 368.6745596 | G28: 128.66232 | H28: 51.02967 | I28: 0 | J28: 75.8105357 | K28: 1631.01024 | L28: 996.02652 | M28: 0 | N28: 1697.954106 | O28: 3211.63662 | P28: 2868.468 | Q28: 0 | R28: 3097.596694 | S28: 4842.64686 | T28: 3864.49452 | U28: 0 | V28: 4795.5508 | W28: 5366.20519 | X28: 4244.25288 | Y28: 146.483 | Z28: 5240.035895 | AA28: Core - SW | AB28: Commercial | AC28: No | AD28: Revised | AE28: New Construction
A29: SDGE3223 | B29: SW-COM-Deemed Incentives-Commercial Rebates | C29: 425.869305 | D29: 281.80959 | E29: 0 | F29: 222.9633101 | G29: 100.0961 | H29: 30.51519 | I29: 0 | J29: 87.5681269 | K29: 1985.444275 | L29: 760.20684 | M29: 0 | N29: 956.0087372 | O29: 3548.90405 | P29: 2353.77978 | Q29: 0 | R29: 1539.63785 | S29: 5534.348325 | T29: 3113.98662 | U29: 0 | V29: 2495.646587 | W29: 6060.31373 | X29: 3426.3114 | Y29: 0 | Z29: 2806.178024 | AA29: Core - SW | AB29: Commercial | AC29: No | AD29: Revised | AE29: Commercial Programs
A30: SDGE3224 | B30: SW-COM-Deemed Incentives-HVAC Commercial | C30: 123.50343 | D30: 198.54401 | E30: 0 | F30: 197.4452142 | G30: 55.93681 | H30: 89.37428 | I30: 0 | J30: 87 | K30: 1025.94166 | L30: 1861.55857 | M30: 0 | N30: 1109.082506 | O30: 1619.245545 | P30: 737.53315 | Q30: 0 | R30: 2215.216954 | S30: 2645.187205 | T30: 2599.09172 | U30: 0 | V30: 3324.29946 | W30: 2824.627445 | X30: 2887.01001 | Y30: 0 | Z30: 3608.744674 | AA30: 3P | AB30: Commercial | AC30: No | AD30: Revised | AE30: HVAC
A31: SDGE3225 | B31: SW-COM-Deemed Incentives-HVAC Core | C31: 67.57591 | D31: 13.97215 | E31: 0 | F31: 15.0389816 | G31: 6.5 | H31: 0 | I31: 0 | J31: 0.5 | K31: 145.68084 | L31: 34.31058 | M31: 0 | N31: 184.569092 | O31: 0 | P31: 0 | Q31: 0 | R31: 0 | S31: 145.68084 | T31: 34.31058 | U31: 0 | V31: 184.569092 | W31: 219.75675 | X31: 48.28273 | Y31: 0 | Z31: 200.1080736 | AA31: Core - SW | AB31: Commercial | AC31: No | AD31: Revised | AE31: HVAC
A32: SDGE3226 | B32: SW-COM Direct Install | C32: 29.30989 | D32: 126.56608 | E32: 0 | F32: 11.1546121 | G32: 16.98328 | H32: 0.51 | I32: 0 | J32: 0 | K32: 416.46529 | L32: 12253.57753 | M32: 0 | N32: 418.2805289 | O32: 8478.75587 | P32: 0 | Q32: 0 | R32: 19332.88331 | S32: 8895.22116 | T32: 12253.57753 | U32: 0 | V32: 19751.16384 | W32: 8941.51433 | X32: 12380.65361 | Y32: 0 | Z32: 19762.31845 | AA32: 3P | AB32: Commercial | AC32: No | AD32: Revised | AE32: Commercial Programs
A33: SDGE3227 | B33: SW-IND-Continuous Energy Improvement | C33: 26.29539 | D33: 31.94008 | E33: 0 | F33: 23.5836604 | G33: 1.5 | H33: 0 | I33: 0 | J33: 5.5 | K33: 169.54134 | L33: 174.80731 | M33: 0 | N33: 224.9786952 | O33: 0 | P33: 0 | Q33: 0 | R33: 0 | S33: 169.54134 | T33: 174.80731 | U33: 0 | V33: 224.9786952 | W33: 197.33673 | X33: 206.74739 | Y33: 0 | Z33: 254.0623556 | AA33: Core - SW | AB33: Industrial | AC33: Yes | AD33: Revised | AE33: Industrial Programs
A34: SDGE3292 | B34: SW-Com-Customer Services-Pump Test Services | C34: 0.63803 | D34: 7.71352 | E34: 0 | F34: 14.6177422 | G34: 0 | H34: 5.02511 | I34: 0 | J34: 6 | K34: 35.279495 | L34: 31.66991 | M34: 0 | N34: 138.7737845 | O34: 0 | P34: 0 | Q34: 0 | R34: 0 | S34: 35.279495 | T34: 31.66991 | U34: 0 | V34: 138.7737845 | W34: 35.917525 | X34: 44.40854 | Y34: 0 | Z34: 159.3915267 | AA34: 3P | AB34: Commercial | AC34: No | AD34: Revised | AE34: Commercial Programs
B35: SW Industrial Programs | C35: 223.961465 | D35: 222.73282 | E35: 0 | F35: 236.4096277 | G35: 61.31002 | H35: 28.92521 | I35: 0 | J35: 60.6892643 | K35: 1269.15163 | L35: 1311.10763 | M35: 0 | N35: 1580.294915 | O35: 1324.669405 | P35: 439.49949 | Q35: 0 | R35: 988.468046 | S35: 2593.821035 | T35: 1750.60712 | U35: 0 | V35: 2568.762961 | W35: 2879.09252 | X35: 2002.26515 | Y35: 0 | Z35: 2865.861853 | AF35: 0 | AG35: 0 | AH35: 0
A36: SDGE3228 | B36: SW-IND-Customer Services-Benchmarking | C36: 2.07412 | D36: 0 | E36: 0 | F36: 1.0298969 | G36: 1 | H36: 0 | I36: 0 | J36: 0.5 | K36: 25.15245 | L36: 0 | M36: 0 | N36: 13.2242789 | O36: 0 | P36: 0 | Q36: 0 | R36: 0 | S36: 25.15245 | T36: 0 | U36: 0 | V36: 13.2242789 | W36: 28.22657 | X36: 0 | Y36: 0 | Z36: 14.7541758 | AA36: Core - SW | AB36: Industrial | AC36: No | AD36: New | AE36: Industrial Programs
A37: SDGE3229 | B37: SW-IND-Customer Services-Audits NonRes | C37: 15.4218 | D37: 20.9113 | E37: 0 | F37: 22.3724578 | G37: 9.70769 | H37: 0.01224 | I37: 0 | J37: 9.7340184 | K37: 56.91738 | L37: 77.97155 | M37: 0 | N37: 208.4826047 | O37: 0 | P37: 0 | Q37: 0 | R37: 0 | S37: 56.91738 | T37: 77.97155 | U37: 0 | V37: 208.4826047 | W37: 82.04687 | X37: 98.89509 | Y37: 0 | Z37: 240.5890809 | AA37: Core - SW | AB37: Industrial | AC37: No | AD37: Revised | AE37: Industrial Programs
A38: SDGE3230 | B38: SW-IND-Customer Services-Audits CIEEP | C38: 8.833065 | D38: 32.50902 | E38: 0 | F38: 28.0812973 | G38: 0.5 | H38: 13.64601 | I38: 0 | J38: 1.845 | K38: 388.3397 | L38: 438.85812 | M38: 0 | N38: 410.9323904 | O38: 0 | P38: 0 | Q38: 0 | R38: 0 | S38: 388.3397 | T38: 438.85812 | U38: 0 | V38: 410.9323904 | W38: 397.672765 | X38: 485.01315 | Y38: 0 | Z38: 440.8586877 | AA38: 3P | AB38: Industrial | AC38: No | AD38: Revised | AE38: Industrial Programs
A39: SDGE3231 | B39: SW-IND-Calculated Incentives-Calculated | C39: 142.813825 | D39: 97.80257 | E39: 0 | F39: 121.4205002 | G39: 26.60469 | H39: 0.52994 | I39: 0 | J39: 25.647 | K39: 418.13843 | L39: 444.25517 | M39: 0 | N39: 487.9667251 | O39: 908.23868 | P39: 370.43799 | Q39: 0 | R39: 809.558396 | S39: 1326.37711 | T39: 814.69316 | U39: 0 | V39: 1297.525121 | W39: 1495.795625 | X39: 913.02567 | Y39: 0 | Z39: 1444.592621 | AA39: Core - SW | AB39: Industrial | AC39: No | AD39: Revised | AE39: Industrial Programs
A40: SDGE3233 | B40: SW-IND-Deemed Incentives | C40: 51.97004 | D40: 57.5412 | E40: 0 | F40: 48.7706567 | G40: 23.49764 | H40: 0.47736 | I40: 0 | J40: 16.9632459 | K40: 243.64704 | L40: 262.69429 | M40: 0 | N40: 319.9508156 | O40: 416.430725 | P40: 69.0615 | Q40: 0 | R40: 178.90965 | S40: 660.077765 | T40: 331.75579 | U40: 0 | V40: 498.8604656 | W40: 735.545445 | X40: 389.77435 | Y40: 0 | Z40: 564.5943682 | AA40: Core - SW | AB40: Industrial | AC40: No | AD40: Revised | AE40: Industrial Programs
A41: SDGE3291 | B41: SW-IND-Customer Services-Pump Test Services | C41: 2.848615 | D41: 13.96873 | E41: 0 | F41: 14.7348188 | G41: 0 | H41: 14.25966 | I41: 0 | J41: 6 | K41: 136.95663 | L41: 87.3285 | M41: 0 | N41: 139.7381004 | O41: 0 | P41: 0 | Q41: 0 | R41: 0 | S41: 136.95663 | T41: 87.3285 | U41: 0 | V41: 139.7381004 | W41: 139.805245 | X41: 115.55689 | Y41: 0 | Z41: 160.4729192 | AA41: 3P | AB41: Industrial | AC41: No | AD41: Revised | AE41: Industrial Programs
B42: SW Agricultural Programs | C42: 128.69192 | D42: 58.57759 | E42: 0 | F42: 116.8475039 | G42: 31.27604 | H42: 7.31172 | I42: 0 | J42: 38.1468484 | K42: 370.0508 | L42: 225.05333 | M42: 0 | N42: 482.1884593 | O42: 676.14449 | P42: 10.71 | Q42: 0 | R42: 495.403848 | S42: 1046.19529 | T42: 235.76333 | U42: 0 | V42: 977.5923073 | W42: 1206.16325 | X42: 301.65264 | Y42: 0 | Z42: 1132.58666 | AF42: 0 | AG42: 0 | AH42: 0
A43: SDGE3234 | B43: SW-AG-Customer Services-Benchmarking | C43: 0.91832 | D43: 0 | E43: 0 | F43: 0.480187 | G43: 1 | H43: 0 | I43: 0 | J43: 0.5 | K43: 10.392415 | L43: 0 | M43: 0 | N43: 5.5527821 | O43: 0 | P43: 0 | Q43: 0 | R43: 0 | S43: 10.392415 | T43: 0 | U43: 0 | V43: 5.5527821 | W43: 12.310735 | X43: 0 | Y43: 0 | Z43: 6.5329691 | AA43: Core - SW | AB43: Agricultural | AC43: No | AD43: New | AE43: Agricultural Programs
A44: SDGE3235 | B44: SW-AG-Customer Services-Pump Test Services | C44: 0.63853 | D44: 3.33418 | E44: 0 | F44: 12.5710636 | G44: 0 | H44: 7.275 | I44: 0 | J44: 5 | K44: 55.35437 | L44: 12.34145 | M44: 0 | N44: 120.7357845 | O44: 0 | P44: 0 | Q44: 0 | R44: 0 | S44: 55.35437 | T44: 12.34145 | U44: 0 | V44: 120.7357845 | W44: 55.9929 | X44: 22.95063 | Y44: 0 | Z44: 138.3068481 | AA44: 3P | AB44: Agricultural | AC44: No | AD44: Revised | AE44: Agricultural Programs
A45: SDGE3236 | B45: SW-AG-Customer Services-Audits | C45: 5.33443 | D45: 5.31415 | E45: 0 | F45: 8.7928566 | G45: 4.12312 | H45: 0 | I45: 0 | J45: 4.12312 | K45: 18.34921 | L45: 11.43568 | M45: 0 | N45: 93.6833951 | O45: 0 | P45: 0 | Q45: 0 | R45: 0 | S45: 18.34921 | T45: 11.43568 | U45: 0 | V45: 93.6833951 | W45: 27.80676 | X45: 16.74983 | Y45: 0 | Z45: 106.5993717 | AA45: Core - SW | AB45: Agricultural | AC45: No | AD45: Revised | AE45: Agricultural Programs
A46: SDGE3237 | B46: SW-AG-Calculated Incentives-Calculated | C46: 93.696365 | D46: 29.83846 | E46: 0 | F46: 73.411477 | G46: 10.35769 | H46: 0 | I46: 0 | J46: 14.4 | K46: 145.91563 | L46: 120.46788 | M46: 0 | N46: 130.6794573 | O46: 468.21969 | P46: 10.71 | Q46: 0 | R46: 404.779198 | S46: 614.13532 | T46: 131.17788 | U46: 0 | V46: 535.4586553 | W46: 718.189375 | X46: 161.01634 | Y46: 0 | Z46: 623.2701323 | AA46: Core - SW | AB46: Agricultural | AC46: No | AD46: Revised | AE46: Agricultural Programs
A47: SDGE3239 | B47: SW-AG-Deemed Incentives | C47: 28.104275 | D47: 20.0908 | E47: 0 | F47: 21.5919197 | G47: 15.79523 | H47: 0.03672 | I47: 0 | J47: 14.1237284 | K47: 140.039175 | L47: 80.80832 | M47: 0 | N47: 131.5370403 | O47: 207.9248 | P47: 0 | Q47: 0 | R47: 90.62465 | S47: 347.963975 | T47: 80.80832 | U47: 0 | V47: 222.1616903 | W47: 391.86348 | X47: 100.93584 | Y47: 0 | Z47: 257.8773384 | AA47: Core - SW | AB47: Agricultural | AC47: No | AD47: Revised | AE47: Agricultural Programs
B48: SW Lighting Program | C48: 567.717845 | D48: 257.88077 | E48: 0 | F48: 567.4858285 | G48: 293.47129 | H48: 60.45733 | I48: 0 | J48: 296.192978 | K48: 3031.10705 | L48: 423.13926 | M48: 0 | N48: 3054.667745 | O48: 1959.9625 | P48: 2864.03549 | Q48: 0 | R48: 2528.635642 | S48: 4991.06955 | T48: 3287.17475 | U48: 0 | V48: 5583.303387 | W48: 5852.258685 | X48: 3605.51285 | Y48: 0 | Z48: 6446.982193 | AF48: 0 | AG48: 0 | AH48: 0
A49: SDGE3240 | B49: SW-Lighting-Lighting Market Transformation | C49: 103.69147 | D49: 18.7765 | E49: 0 | F49: 104.7621844 | G49: 14.20624 | H49: 21.13467 | I49: 0 | J49: 14.473159 | K49: 209.8425 | L49: 85.92798 | M49: 0 | N49: 215.2556652 | O49: 0 | P49: 0 | Q49: 0 | R49: 0 | S49: 209.8425 | T49: 85.92798 | U49: 0 | V49: 215.2556652 | W49: 327.74021 | X49: 125.83915 | Y49: 0 | Z49: 334.4910086 | AA49: Core - SW | AB49: Lighting Mkt Trans | AC49: No | AD49: New | AE49: Lighting Market Transformation
A50: SDGE3241 | B50: SW-Lighting-Lighting Innovation-ETPC MD | C50: 67.04818 | D50: 1.19425 | E50: 0 | F50: 66.2833229 | G50: 0 | H50: 0.341 | I50: 0 | J50: 0 | K50: 525.18653 | L50: 4.74544 | M50: 0 | N50: 531.8329026 | O50: 0 | P50: 0 | Q50: 0 | R50: 0 | S50: 525.18653 | T50: 4.74544 | U50: 0 | V50: 531.8329026 | W50: 592.23471 | X50: 6.28069 | Y50: 0 | Z50: 598.1162255 | AA50: Core - SW | AB50: Residential | AC50: No | AD50: New | AE50: Residential Programs
A51: SDGE3242 | B51: SW-Lighting-Lighting Innovation-ETPC Pilots | C51: 59.28288 | D51: 1.45457 | E51: 0 | F51: 58.3176493 | G51: 14.36524 | H51: 0 | I51: 0 | J51: 14.7602753 | K51: 510.65952 | L51: 4.74545 | M51: 0 | N51: 516.9064081 | O51: 0 | P51: 0 | Q51: 0 | R51: 0 | S51: 510.65952 | T51: 4.74545 | U51: 0 | V51: 516.9064081 | W51: 584.30764 | X51: 6.20002 | Y51: 0 | Z51: 589.9843327 | AA51: Core - SW | AB51: Commercial | AC51: No | AD51: New | AE51: Commercial Programs
A52: SDGE3243 | B52: SW-Lighting-Lighting Innovation-ETPC Advanced LED | C52: 56.88063 | D52: 16.69719 | E52: 0 | F52: 56.0861368 | G52: 14.36524 | H52: 2.76645 | I52: 0 | J52: 14.7602753 | K52: 462.61452 | L52: 53.37639 | M52: 0 | N52: 468.8614081 | O52: 0 | P52: 0 | Q52: 0 | R52: 0 | S52: 462.61452 | T52: 53.37639 | U52: 0 | V52: 468.8614081 | W52: 533.86039 | X52: 72.84003 | Y52: 0 | Z52: 539.7078202 | AA52: Core - SW | AB52: Commercial | AC52: No | AD52: New | AE52: Commercial Programs
A53: SDGE3244 | B53: SW-Lighting-Lighting Innovation-ETPC Plug-In Lamp Exchange | C53: 0 | D53: 0 | E53: 0 | F53: 0 | G53: 0 | H53: 0 | I53: 0 | J53: 0 | K53: 0 | L53: 0 | M53: 0 | N53: 0 | O53: 0 | P53: 0 | Q53: 0 | R53: 0 | S53: 0 | T53: 0 | U53: 0 | V53: 0 | W53: 0 | X53: 0 | Y53: 0 | Z53: 0 | AA53: Core - SW | AB53: Residential | AC53: No | AD53: Revised | AE53: Residential Programs
A54: SDGE3245 | B54: SW-Lighting-Primary Lighting | C54: 280.814685 | D54: 219.75826 | E54: 0 | F54: 282.0365351 | G54: 250.53457 | H54: 36.21521 | I54: 0 | J54: 252.1992684 | K54: 1322.80398 | L54: 274.344 | M54: 0 | N54: 1321.811361 | O54: 1959.9625 | P54: 2864.03549 | Q54: 0 | R54: 2528.635642 | S54: 3282.76648 | T54: 3138.37949 | U54: 0 | V54: 3850.447003 | W54: 3814.115735 | X54: 3394.35296 | Y54: 0 | Z54: 4384.682806 | AA54: Core - SW | AB54: Cross Cutting | AC54: No | AD54: New | AE54: Residential Programs
B55: Local Partnerships | C55: 1371.59783 | D55: 1060.74301 | E55: 0 | F55: 1126.642847 | G55: 509.84085 | H55: 324.26331 | I55: 0 | J55: 564.3552717 | K55: 6907.300915 | L55: 4226.45112 | M55: 0 | N55: 7034.186307 | O55: 0 | P55: 49.68123 | Q55: 0 | R55: 0 | S55: 6907.300915 | T55: 4276.13235 | U55: 0 | V55: 7034.186307 | W55: 8788.739595 | X55: 5661.13867 | Y55: 0 | Z55: 8725.184426 | AF55: 0 | AG55: 0 | AH55: 0
A56: SDGE3266 | B56: LInstP-CA Department of Corrections Partnership | C56: 55.64842 | D56: 22.60503 | E56: 0 | F56: 25.7814774 | G56: 1.72124 | H56: 1.16782 | I56: 0 | J56: 1.7685736 | K56: 89.31885 | L56: 44.6868 | M56: 0 | N56: 105.875577 | O56: 0 | P56: 0 | Q56: 0 | R56: 0 | S56: 89.31885 | T56: 44.6868 | U56: 0 | V56: 105.875577 | W56: 146.68851 | X56: 68.45965 | Y56: 0 | Z56: 133.425628 | AA56: Core - Local | AB56: Govt Partnerships | AC56: No | AD56: Revised | AE56: Commercial Programs
A57: SDGE3267 | B57: LInstP-California Community College Partnership | C57: 75.92167 | D57: 72.95723 | E57: 0 | F57: 56.48328 | G57: 30.11873 | H57: -53.85648 | I57: 0 | J57: 23.7363644 | K57: 249.18684 | L57: 133.02784 | M57: 0 | N57: 273.7959154 | O57: 0 | P57: 0 | Q57: 0 | R57: 0 | S57: 249.18684 | T57: 133.02784 | U57: 0 | V57: 273.7959154 | W57: 355.22724 | X57: 152.12859 | Y57: 0 | Z57: 354.0155598 | AA57: Core - SW | AB57: Govt Partnerships | AC57: No | AD57: Revised | AE57: Government Partnerships
A58: SDGE3268 | B58: LInstP-UC/CSU/IOU Partnership | C58: 234.1816 | D58: 145.79876 | E58: 0 | F58: 110.602319 | G58: 49.84623 | H58: 12.34884 | I58: 0 | J58: 50.3266862 | K58: 418.04829 | L58: 177.23773 | M58: 0 | N58: 538.7848848 | O58: 0 | P58: 0 | Q58: 0 | R58: 0 | S58: 418.04829 | T58: 177.23773 | U58: 0 | V58: 538.7848848 | W58: 702.07612 | X58: 335.38533 | Y58: 0 | Z58: 699.71389 | AA58: Core - SW | AB58: Govt Partnerships | AC58: No | AD58: Revised | AE58: Government Partnerships
A59: SDGE3269 | B59: LInstP-State of California /IOU | C59: 42.58478 | D59: 19.83797 | E59: 0 | F59: 28.1734977 | G59: 4.75424 | H59: 1.17211 | I59: 0 | J59: 3.7685736 | K59: 128.59194 | L59: 42.04405 | M59: 0 | N59: 125.0714543 | O59: 0 | P59: 0 | Q59: 0 | R59: 0 | S59: 128.59194 | T59: 42.04405 | U59: 0 | V59: 125.0714543 | W59: 175.93096 | X59: 63.05413 | Y59: 0 | Z59: 157.0135256 | AA59: Core - SW | AB59: Govt Partnerships | AC59: No | AD59: Revised | AE59: Commercial Programs
A60: SDGE3270 | B60: LInstP-University of San Diego Partnership | C60: 35.61121 | D60: 21.78857 | E60: 0 | F60: 25.7411019 | G60: 22.9 | H60: 43.34702 | I60: 0 | J60: 61.3251137 | K60: 205.17676 | L60: 101.94625 | M60: 0 | N60: 176.832699 | O60: 0 | P60: 0 | Q60: 0 | R60: 0 | S60: 205.17676 | T60: 101.94625 | U60: 0 | V60: 176.832699 | W60: 263.68797 | X60: 167.08184 | Y60: 0 | Z60: 263.8989146 | AA60: Core - Local | AB60: Govt Partnerships | AC60: No | AD60: Revised | AE60: Commercial Programs
A61: SDGE3271 | B61: LInstP-San Diego County Water Authority Partnership | C61: 89.213075 | D61: 21.05595 | E61: 0 | F61: 68.5882112 | G61: 24.13312 | H61: 5.67137 | I61: 0 | J61: 21.4919477 | K61: 347.97633 | L61: 14.41708 | M61: 0 | N61: 369.9980945 | O61: 0 | P61: 49.68123 | Q61: 0 | R61: 0 | S61: 347.97633 | T61: 64.09831 | U61: 0 | V61: 369.9980945 | W61: 461.322525 | X61: 90.82563 | Y61: 0 | Z61: 460.0782534 | AA61: Core - Local | AB61: Govt Partnerships | AC61: No | AD61: Revised | AE61: Residential Programs
A62: SDGE3272 | B62: LGP- City of Chula Vista Partnership | C62: 287.606225 | D62: 212.61357 | E62: 0 | F62: 245.4368468 | G62: 89.37432 | H62: 64.01975 | I62: 0 | J62: 90.1836182 | K62: 1405.221695 | L62: 1005.82553 | M62: 0 | N62: 1441.132603 | O62: 0 | P62: 0 | Q62: 0 | R62: 0 | S62: 1405.221695 | T62: 1005.82553 | U62: 0 | V62: 1441.132603 | W62: 1782.20224 | X62: 1282.45885 | Y62: 0 | Z62: 1776.753068 | AA62: Govt Partnerships | AB62: Govt Partnerships | AC62: No | AD62: Revised | AE62: Government Partnerships
A63: SDGE3273 | B63: LGP- City of San Diego Partnership | C63: 191.43474 | D63: 212.81832 | E63: 0 | F63: 202.464125 | G63: 96.80585 | H63: 153.80255 | I63: 0 | J63: 97.6667622 | K63: 1201.08271 | L63: 737.44198 | M63: 0 | N63: 1179.420793 | O63: 0 | P63: 0 | Q63: 0 | R63: 0 | S63: 1201.08271 | T63: 737.44198 | U63: 0 | V63: 1179.420793 | W63: 1489.3233 | X63: 1104.06285 | Y63: 0 | Z63: 1479.55168 | AA63: Govt Partnerships | AB63: Govt Partnerships | AC63: No | AD63: Revised | AE63: Government Partnerships
A64: SDGE3274 | B64: LGP- County of San Diego Partnership | C64: 82.62519 | D64: 99.5048 | E64: 0 | F64: 123.8179628 | G64: 25.63372 | H64: 44.57737 | I64: 0 | J64: 51.2148916 | K64: 1120.86629 | L64: 626.09463 | M64: 0 | N64: 1049.933161 | O64: 0 | P64: 0 | Q64: 0 | R64: 0 | S64: 1120.86629 | T64: 626.09463 | U64: 0 | V64: 1049.933161 | W64: 1229.1252 | X64: 770.1768 | Y64: 0 | Z64: 1224.966016 | AA64: Govt Partnerships | AB64: Govt Partnerships | AC64: No | AD64: Revised | AE64: Government Partnerships
A65: SDGE3275 | B65: LGP- Port of San Diego Partnership | C65: 101.9158 | D65: 86.29354 | E65: 0 | F65: 93.4797515 | G65: 67.7806 | H65: 28.55928 | I65: 0 | J65: 66.7283121 | K65: 695.41129 | L65: 584.42545 | M65: 0 | N65: 701.9714896 | O65: 0 | P65: 0 | Q65: 0 | R65: 0 | S65: 695.41129 | T65: 584.42545 | U65: 0 | V65: 701.9714896 | W65: 865.10769 | X65: 699.27827 | Y65: 0 | Z65: 862.1795532 | AA65: Govt Partnerships | AB65: Govt Partnerships | AC65: No | AD65: Revised | AE65: Government Partnerships
A66: SDGE3276 | B66: LGP- SANDAG Partnership | C66: 99.52942 | D66: 104.71777 | E66: 0 | F66: 94.9838961 | G66: 58.62621 | H66: 12.12851 | I66: 0 | J66: 58.8749843 | K66: 607.76679 | L66: 529.17745 | M66: 0 | N66: 609.4717329 | O66: 0 | P66: 0 | Q66: 0 | R66: 0 | S66: 607.76679 | T66: 529.17745 | U66: 0 | V66: 609.4717329 | W66: 765.92242 | X66: 646.02373 | Y66: 0 | Z66: 763.3306133 | AA66: Govt Partnerships | AB66: Govt Partnerships | AC66: No | AD66: Revised | AE66: Government Partnerships
A67: SDGE3277 | B67: LGP- SEEC Partnership | C67: 25.71819 | D67: 25.88249 | E67: 0 | F67: 24.6950069 | G67: 12.11149 | H67: 7.76138 | I67: 0 | J67: 12.1424564 | K67: 134.68926 | L67: 159.77493 | M67: 0 | N67: 135.0984354 | O67: 0 | P67: 0 | Q67: 0 | R67: 0 | S67: 134.68926 | T67: 159.77493 | U67: 0 | V67: 135.0984354 | W67: 172.51894 | X67: 193.4188 | Y67: 0 | Z67: 171.9358987 | AA67: Govt Partnerships | AB67: Govt Partnerships | AC67: No | AD67: Revised | AE67: Government Partnerships
A68: SDGE3278 | B68: LGP- Emerging Cities Partnership | C68: 49.60751 | D68: 14.86901 | E68: 0 | F68: 26.3953708 | G68: 26.0351 | H68: 3.56379 | I68: 0 | J68: 25.1269877 | K68: 303.96387 | L68: 70.3514 | M68: 0 | N68: 326.7994669 | O68: 0 | P68: 0 | Q68: 0 | R68: 0 | S68: 303.96387 | T68: 70.3514 | U68: 0 | V68: 326.7994669 | W68: 379.60648 | X68: 88.7842 | Y68: 0 | Z68: 378.3218254 | AA68: Govt Partnerships | AB68: Govt Partnerships | AC68: No | AD68: Revised | AE68: Government Partnerships
B69: SDG&E Third Party Programs | C69: 119.71907 | D69: 191.41886 | E69: 0 | F69: 258.0173478 | G69: 90.160215 | H69: 129.09388 | I69: 0 | J69: 131.4039872 | K69: 1188.37702 | L69: 415.63167 | M69: 0 | N69: 1870.830951 | O69: 1242.149705 | P69: 1738.83973 | Q69: 0 | R69: 3719.2753 | S69: 2430.526725 | T69: 2154.4714 | U69: 0 | V69: 5590.106251 | W69: 2640.40601 | X69: 2474.98414 | Y69: 0 | Z69: 5979.527586 | AF69: 0 | AG69: 0 | AH69: 0
A70: SDGE3279 | B70: 3P-Res-Comprehensive Manufactured-Mobile Home | C70: 102.54819 | D70: 184.8633 | E70: 0 | F70: 182.7920893 | G70: 70.160215 | H70: 129.09388 | I70: 0 | J70: 131.4039872 | K70: 792.13959 | L70: 415.63167 | M70: 0 | N70: 40.6723148 | O70: 1242.149705 | P70: 1738.83973 | Q70: 0 | R70: 3719.2753 | S70: 2034.289295 | T70: 2154.4714 | U70: 0 | V70: 3759.947615 | W70: 2206.9977 | X70: 2468.42858 | Y70: 0 | Z70: 4074.143691 | AA70: 3P | AB70: Residential | AC70: No | AD70: Revised | AE70: Residential Programs
A71: SDGE3280 | B71: 3P-IDEA | C71: 17.17088 | D71: 6.55556 | E71: 0 | F71: 22.5753653 | G71: 20 | H71: 0 | I71: 0 | J71: 0 | K71: 396.23743 | L71: 0 | M71: 0 | N71: 1477.170636 | O71: 0 | P71: 0 | Q71: 0 | R71: 0 | S71: 396.23743 | T71: 0 | U71: 0 | V71: 1477.170636 | W71: 433.40831 | X71: 6.55556 | Y71: 0 | Z71: 1499.746001 | AA71: 3P | AB71: Cross Cutting | AC71: No | AD71: New | AE71: Commercial Programs
A72: SDGE3290 | B72: 3P-Res-Electric Resistance Heating Thermostat | C72: 0 | D72: 0 | E72: 0 | F72: 0 | G72: 0 | H72: 0 | I72: 0 | J72: 0 | K72: 0 | L72: 0 | M72: 0 | N72: 0 | O72: 0 | P72: 0 | Q72: 0 | R72: 0 | S72: 0 | T72: 0 | U72: 0 | V72: 0 | W72: 0 | X72: 0 | Y72: 0 | Z72: 0 | AA72: 3P | AB72: Residential | AC72: No | AD72: Revised | AE72: Residential Programs
A73: SDGE3306 | B73: 3P-RES-Splash | C73: 0 | D73: 0 | E73: 0 | F73: 52.6498932 | G73: 0 | H73: 0 | I73: 0 | J73: 0 | K73: 0 | L73: 0 | M73: 0 | N73: 352.988 | O73: 0 | P73: 0 | Q73: 0 | R73: 0 | S73: 0 | T73: 0 | U73: 0 | V73: 352.988 | W73: 0 | X73: 0 | Y73: 0 | Z73: 405.6378932 | AA73: 3P | AB73: Residential | AC73: No | AD73: New | AE73: Residential Programs
B74: SW Emerging Technologies Programs | C74: 203.67725 | D74: 95.30033 | E74: 0 | F74: 202.5163206 | G74: 10.95 | H74: 21.32866 | I74: 0 | J74: 10.95 | K74: 1135.41275 | L74: 539.65219 | M74: 0 | N74: 1142.900355 | O74: 0 | P74: 0 | Q74: 0 | R74: 0 | S74: 1135.41275 | T74: 539.65219 | U74: 0 | V74: 1142.900355 | W74: 1350.04 | X74: 656.28118 | Y74: 0 | Z74: 1356.366676 | AF74: 0 | AG74: 0 | AH74: 0
A75: SDGE3246 | B75: SW-ET-Technology Introduction Support | C75: 111.29996 | D75: 12.57865 | E75: 0 | F75: 110.6614887 | G75: 8.25 | H75: 0 | I75: 0 | J75: 8.25 | K75: 298.95004 | L75: 58.84322 | M75: 0 | N75: 627.0791952 | O75: 0 | P75: 0 | Q75: 0 | R75: 0 | S75: 298.95004 | T75: 58.84322 | U75: 0 | V75: 627.0791952 | W75: 418.5 | X75: 71.42187 | Y75: 0 | Z75: 745.9906839 | AA75: Core - SW | AB75: Cross Cutting | AC75: No | AD75: Revised | AE75: Emerging Technology Programs
A76: SDGE3247 | B76: SW-ET-Technology Assessment Support | C76: 82.0552 | D76: 37.5118 | E76: 0 | F76: 81.5908069 | G76: 2.4 | H76: 0 | I76: 0 | J76: 2.4 | K76: 644.5848 | L76: 320.67335 | M76: 0 | N76: 458.562142 | O76: 0 | P76: 0 | Q76: 0 | R76: 0 | S76: 644.5848 | T76: 320.67335 | U76: 0 | V76: 458.562142 | W76: 729.04 | X76: 358.18515 | Y76: 0 | Z76: 542.5529489 | AA76: Core - SW | AB76: Cross Cutting | AC76: No | AD76: Revised | AE76: Emerging Technology Programs
A77: SDGE3248 | B77: SW-ET-Technology Deployment Support | C77: 10.32209 | D77: 45.20988 | E77: 0 | F77: 10.264025 | G77: 0.3 | H77: 21.32866 | I77: 0 | J77: 0.3 | K77: 191.87791 | L77: 160.13562 | M77: 0 | N77: 57.2590178 | O77: 0 | P77: 0 | Q77: 0 | R77: 0 | S77: 191.87791 | T77: 160.13562 | U77: 0 | V77: 57.2590178 | W77: 202.5 | X77: 226.67416 | Y77: 0 | Z77: 67.8230428 | AA77: Core - SW | AB77: Cross Cutting | AC77: No | AD77: Revised | AE77: Emerging Technology Programs
B78: SW Finance | C78: 182.014 | D78: 98.01307 | E78: 0 | F78: 45.0160679 | G78: 40.9 | H78: 0.60239 | I78: 0 | J78: 10.4 | K78: 1277.07052 | L78: 915.11099 | M78: 0 | N78: 228.724999 | O78: 6000 | P78: 0 | Q78: 0 | R78: 0 | S78: 7277.07052 | T78: 915.11099 | U78: 0 | V78: 228.724999 | W78: 7499.98452 | X78: 1013.72645 | Y78: 0 | Z78: 284.1410669 | AF78: 0 | AG78: 0 | AH78: 0
A79: SDGE3262 | B79: SW-FIN-On-Bill Finance | C79: 70.757145 | D79: 35.15655 | E79: 0 | F79: 45.0160679 | G79: 10.4 | H79: 0.60239 | I79: 0 | J79: 10.4 | K79: 267.560605 | L79: 182.93409 | M79: 0 | N79: 228.724999 | O79: 0 | P79: 0 | Q79: 0 | R79: 0 | S79: 267.560605 | T79: 182.93409 | U79: 0 | V79: 228.724999 | W79: 348.71775 | X79: 218.69303 | Y79: 0 | Z79: 284.1410669 | AA79: Core - SW | AB79: Commercial | AC79: No | AD79: Revised | AE79: Commercial Programs
A80: SDGE3263 | B80: SW-FIN-ARRA Originated Financing | C80: 12.17198 | D80: 29.96231 | E80: 0 | F80: 0 | G80: 0 | H80: 0 | I80: 0 | J80: 0 | K80: 100.44015 | L80: 445.0609 | M80: 0 | N80: 0 | O80: 1000 | P80: 0 | Q80: 0 | R80: 0 | S80: 1100.44015 | T80: 445.0609 | U80: 0 | V80: 0 | W80: 1112.61213 | X80: 475.02321 | Y80: 0 | Z80: 0 | AA80: Core - SW | AB80: Commercial | AC80: Yes | AD80: New | AE80: Commercial Programs
A81: SDGE3264 | B81: SW-FIN-New Finance Offerings | C81: 99.084875 | D81: 32.89421 | E81: 0 | F81: 0 | G81: 30.5 | H81: 0 | I81: 0 | J81: 0 | K81: 909.069765 | L81: 287.116 | M81: 0 | N81: 0 | O81: 5000 | P81: 0 | Q81: 0 | R81: 0 | S81: 5909.069765 | T81: 287.116 | U81: 0 | V81: 0 | W81: 6038.65464 | X81: 320.01021 | Y81: 0 | Z81: 0 | AA81: Core - SW | AB81: Commercial | AC81: Yes | AD81: New | AE81: Commercial Programs
A82: SDGE3296 | B82: Small Business Lease Off-Bill | C82: 0 | D82: 0 | E82: 0 | F82: 0 | G82: 0 | H82: 0 | I82: 0 | J82: 0 | K82: 0 | L82: 0 | M82: 0 | N82: 0 | O82: 0 | P82: 0 | Q82: 0 | R82: 0 | S82: 0 | T82: 0 | U82: 0 | V82: 0 | W82: 0 | X82: 0 | Y82: 0 | Z82: 0 | AA82: Core - SW | AB82: Commercial | AC82: No | AD82: New | AE82: Commercial Programs
A83: SDGE3297 | B83: Single-family Loan Program | C83: 0 | D83: 0 | E83: 0 | F83: 0 | G83: 0 | H83: 0 | I83: 0 | J83: 0 | K83: 0 | L83: 0 | M83: 0 | N83: 0 | O83: 0 | P83: 0 | Q83: 0 | R83: 0 | S83: 0 | T83: 0 | U83: 0 | V83: 0 | W83: 0 | X83: 0 | Y83: 0 | Z83: 0 | AA83: Core - SW | AB83: Residential | AC83: No | AD83: New | AE83: Residential Programs
A84: SDGE3298 | B84: Medium/Large OBR | C84: 0 | D84: 0 | E84: 0 | F84: 0 | G84: 0 | H84: 0 | I84: 0 | J84: 0 | K84: 0 | L84: 0 | M84: 0 | N84: 0 | O84: 0 | P84: 0 | Q84: 0 | R84: 0 | S84: 0 | T84: 0 | U84: 0 | V84: 0 | W84: 0 | X84: 0 | Y84: 0 | Z84: 0 | AA84: Core - SW | AB84: Commercial | AC84: No | AD84: New | AE84: Commercial Programs
A85: SDGE3299 | B85: Master Metered Multifamily OBR | C85: 0 | D85: 0 | E85: 0 | F85: 0 | G85: 0 | H85: 0 | I85: 0 | J85: 0 | K85: 0 | L85: 0 | M85: 0 | N85: 0 | O85: 0 | P85: 0 | Q85: 0 | R85: 0 | S85: 0 | T85: 0 | U85: 0 | V85: 0 | W85: 0 | X85: 0 | Y85: 0 | Z85: 0 | AA85: Core - SW | AB85: Residential | AC85: No | AD85: New | AE85: Residential Programs
A86: SDGE3300 | B86: Small Business Lease OBR | C86: 0 | D86: 0 | E86: 0 | F86: 0 | G86: 0 | H86: 0 | I86: 0 | J86: 0 | K86: 0 | L86: 0 | M86: 0 | N86: 0 | O86: 0 | P86: 0 | Q86: 0 | R86: 0 | S86: 0 | T86: 0 | U86: 0 | V86: 0 | W86: 0 | X86: 0 | Y86: 0 | Z86: 0 | AA86: Core - SW | AB86: Commercial | AC86: No | AD86: New | AE86: Commercial Programs
A87: SDGE3301 | B87: Small Business Loan OBR | C87: 0 | D87: 0 | E87: 0 | F87: 0 | G87: 0 | H87: 0 | I87: 0 | J87: 0 | K87: 0 | L87: 0 | M87: 0 | N87: 0 | O87: 0 | P87: 0 | Q87: 0 | R87: 0 | S87: 0 | T87: 0 | U87: 0 | V87: 0 | W87: 0 | X87: 0 | Y87: 0 | Z87: 0 | AA87: Core - SW | AB87: Commercial | AC87: No | AD87: New | AE87: Commercial Programs
B88: SW Codes & Standards | C88: 100.30563 | D88: 43.64282 | E88: 0 | F88: 97.3279645 | G88: 0 | H88: 0.26305 | I88: 0 | J88: 0 | K88: 948.92413 | L88: 275.98309 | M88: 0 | N88: 953.8088102 | O88: 0 | P88: 0 | Q88: 0 | R88: 0 | S88: 948.92413 | T88: 275.98309 | U88: 0 | V88: 953.8088102 | W88: 1049.22976 | X88: 319.88896 | Y88: 0 | Z88: 1051.136775 | AF88: 0 | AG88: 0 | AH88: 0
A89: SDGE3249 | B89: SW C&S - Building Codes & Compliance Advocacy | C89: 25.73891 | D89: 10.28003 | E89: 0 | F89: 24.9651731 | G89: 0 | H89: 0 | I89: 0 | J89: 0 | K89: 245.23103 | L89: 88.00208 | M89: 0 | N89: 246.4522025 | O89: 0 | P89: 0 | Q89: 0 | R89: 0 | S89: 245.23103 | T89: 88.00208 | U89: 0 | V89: 246.4522025 | W89: 270.96994 | X89: 98.28211 | Y89: 0 | Z89: 271.4173756 | AA89: Core - SW | AB89: Cross Cutting | AC89: No | AD89: Revised | AE89: Codes and Standards
A90: SDGE3250 | B90: SW C&S - Appliance Standards Advocacy | C90: 20.40162 | D90: 12.07954 | E90: 0 | F90: 19.7968177 | G90: 0 | H90: 0 | I90: 0 | J90: 0 | K90: 192.18483 | L90: 103.6122 | M90: 0 | N90: 193.1617621 | O90: 0 | P90: 0 | Q90: 0 | R90: 0 | S90: 192.18483 | T90: 103.6122 | U90: 0 | V90: 193.1617621 | W90: 212.58645 | X90: 115.69174 | Y90: 0 | Z90: 212.9585798 | AA90: Core - SW | AB90: Cross Cutting | AC90: No | AD90: Revised | AE90: Codes and Standards
A91: SDGE3251 | B91: SW C&S - Compliance Enhancement | C91: 30.66569 | D91: 11.04262 | E91: 0 | F91: 29.7514936 | G91: 0 | H91: 0.26305 | I91: 0 | J91: 0 | K91: 290.27724 | L91: 61.37933 | M91: 0 | N91: 291.7426431 | O91: 0 | P91: 0 | Q91: 0 | R91: 0 | S91: 290.27724 | T91: 61.37933 | U91: 0 | V91: 291.7426431 | W91: 320.94293 | X91: 72.685 | Y91: 0 | Z91: 321.4941367 | AA91: Core - SW | AB91: Cross Cutting | AC91: No | AD91: Revised | AE91: Codes and Standards
A92: SDGE3252 | B92: SW C&S - Reach Codes | C92: 8.66656 | D92: 4.4871 | E92: 0 | F92: 8.4031963 | G92: 0 | H92: 0 | I92: 0 | J92: 0 | K92: 86.09241 | L92: 10.79092 | M92: 0 | N92: 86.580881 | O92: 0 | P92: 0 | Q92: 0 | R92: 0 | S92: 86.09241 | T92: 10.79092 | U92: 0 | V92: 86.580881 | W92: 94.75897 | X92: 15.27802 | Y92: 0 | Z92: 94.9840773 | AA92: Core - SW | AB92: Cross Cutting | AC92: No | AD92: Revised | AE92: Codes and Standards
A93: SDGE3253 | B93: SW C&S - Planning Coordination | C93: 14.83285 | D93: 5.75353 | E93: 0 | F93: 14.4112838 | G93: 0 | H93: 0 | I93: 0 | J93: 0 | K93: 135.13862 | L93: 12.19856 | M93: 0 | N93: 135.8713215 | O93: 0 | P93: 0 | Q93: 0 | R93: 0 | S93: 135.13862 | T93: 12.19856 | U93: 0 | V93: 135.8713215 | W93: 149.97147 | X93: 17.95209 | Y93: 0 | Z93: 150.2826053 | AA93: Core - SW | AB93: Cross Cutting | AC93: No | AD93: New | AE93: Codes and Standards
B94: SW Integrated Demand Side Management | C94: 235.97631 | D94: 591.87465 | E94: 0 | F94: 229.4664557 | G94: 855.41434 | H94: 303.26829 | I94: 0 | J94: 868.0103747 | K94: 1174.54522 | L94: 784.18126 | M94: 0 | N94: 1412.864156 | O94: 0 | P94: 0 | Q94: 0 | R94: 0 | S94: 1174.54522 | T94: 784.18126 | U94: 0 | V94: 1412.864156 | W94: 2265.93587 | X94: 1679.3242 | Y94: 0 | Z94: 2510.340986 | AF94: 0 | AG94: 0 | AH94: 0
A95: SDGE3260 | B95: Local-IDSM-ME&O-Local Marketing (EE) | C95: 90.96927 | D95: 329.00755 | E95: 0 | F95: 89.2449235 | G95: 855.41434 | H95: 303.26829 | I95: 0 | J95: 868.0103747 | K95: 0 | L95: 73.7708 | M95: 0 | N95: 0 | O95: 0 | P95: 0 | Q95: 0 | R95: 0 | S95: 0 | T95: 73.7708 | U95: 0 | V95: 0 | W95: 946.38361 | X95: 706.04664 | Y95: 0 | Z95: 957.2552982 | AA95: Core - Local | AB95: Cross Cutting | AC95: No | AD95: New | AE95: ME&O Programs
A96: SDGE3261 | B96: Local-IDSM-ME&O-Behavioral Programs (EE) | C96: 114.5444 | D96: 48.54659 | E96: 0 | F96: 110.1479079 | G96: 0 | H96: 0 | I96: 0 | J96: 0 | K96: 997.48284 | L96: 657.46314 | M96: 0 | N96: 1233.132566 | O96: 0 | P96: 0 | Q96: 0 | R96: 0 | S96: 997.48284 | T96: 657.46314 | U96: 0 | V96: 1233.132566 | W96: 1112.02724 | X96: 706.00973 | Y96: 0 | Z96: 1343.280474 | AA96: Core - Local | AB96: Residential | AC96: Yes | AD96: New | AE96: Residential Programs
A97: SDGE3282 | B97: SW-IDSM-IDSM | C97: 30.46264 | D97: 214.32051 | E97: 0 | F97: 30.0736243 | G97: 0 | H97: 0 | I97: 0 | J97: 0 | K97: 177.06238 | L97: 52.94732 | M97: 0 | N97: 179.7315903 | O97: 0 | P97: 0 | Q97: 0 | R97: 0 | S97: 177.06238 | T97: 52.94732 | U97: 0 | V97: 179.7315903 | W97: 207.52502 | X97: 267.26783 | Y97: 0 | Z97: 209.8052146 | AA97: Core - SW | AB97: Cross Cutting | AC97: No | AD97: Revised | AE97: DSM Integration Programs
A98: SDGE3289 | B98: Local IDSM Pilot | C98: 0 | D98: 0 | E98: 0 | F98: 0 | G98: 0 | H98: 0 | I98: 0 | J98: 0 | K98: 0 | L98: 0 | M98: 0 | N98: 0 | O98: 0 | P98: 0 | Q98: 0 | R98: 0 | S98: 0 | T98: 0 | U98: 0 | V98: 0 | W98: 0 | X98: 0 | Y98: 0 | Z98: 0 | AA98: Core - Local | AB98: Commercial | AC98: Yes | AD98: New | AE98: Commercial Programs Programs
A99: SDGE3304 | B99: Local IDSM Small Commercial Behavior Pilot | C99: 0 | D99: 0 | E99: 0 | F99: 0 | G99: 0 | H99: 0 | I99: 0 | J99: 0 | K99: 0 | L99: 0 | M99: 0 | N99: 0 | O99: 0 | P99: 0 | Q99: 0 | R99: 0 | S99: 0 | T99: 0 | U99: 0 | V99: 0 | W99: 0 | X99: 0 | Y99: 0 | Z99: 0 | AA99: Core - Local | AB99: Commercial | AC99: Yes | AD99: New | AE99: DSM Integration Program
B100: SW Marketing, Education & Outreach | C100: 85.7348 | D100: 1.65521 | E100: 0 | F100: 87.8353809 | G100: 2887.5 | H100: 1439.98798 | I100: 0 | J100: 2887.5 | K100: 0 | L100: 0 | M100: 0 | N100: 0 | O100: 0 | P100: 0 | Q100: 0 | R100: 0 | S100: 0 | T100: 0 | U100: 0 | V100: 0 | W100: 2973.2348 | X100: 1441.64319 | Y100: 0 | Z100: 2975.335381 | AF100: 0 | AG100: 0 | AH100: 0
A101: SDGE3258 | B101: SW-ME&O-Strategic Plan | C101: 0 | D101: 0 | E101: 0 | F101: 0 | G101: 0 | H101: 0 | I101: 0 | J101: 0 | K101: 0 | L101: 0 | M101: 0 | N101: 0 | O101: 0 | P101: 0 | Q101: 0 | R101: 0 | S101: 0 | T101: 0 | U101: 0 | V101: 0 | W101: 0 | X101: 0 | Y101: 0 | Z101: 0 | AA101: Core - SW | AB101: Cross Cutting | AC101: No | AD101: Revised | AE101: Commercial Programs Programs
A102: SDGE3259 | B102: SW-ME&O | C102: 85.7348 | D102: 1.65521 | E102: 0 | F102: 87.8353809 | G102: 2887.5 | H102: 1439.98798 | I102: 0 | J102: 2887.5 | K102: 0 | L102: 0 | M102: 0 | N102: 0 | O102: 0 | P102: 0 | Q102: 0 | R102: 0 | S102: 0 | T102: 0 | U102: 0 | V102: 0 | W102: 2973.2348 | X102: 1441.64319 | Y102: 0 | Z102: 2975.335381 | AA102: Core - SW | AB102: Cross Cutting | AC102: No | AD102: Revised | AE102: ME&O Programs
B103: SW Workforce Education & Training | C103: 870.41437 | D103: 584.10602 | E103: 0 | F103: 479.5857761 | G103: 608.65703 | H103: 244.73967 | I103: 0 | J103: 595.9509363 | K103: 4056.799615 | L103: 2694.38157 | M103: 0 | N103: 4418.707549 | O103: 0 | P103: 0 | Q103: 0 | R103: 0 | S103: 4056.799615 | T103: 2694.38157 | U103: 0 | V103: 4418.707549 | W103: 5535.871015 | X103: 3523.22726 | Y103: 0 | Z103: 5494.244262 | AF103: 0 | AG103: 0 | AH103: 0
A104: SDGE3254 | B104: SW-WE&T-Centergies | C104: 700.62162 | D104: 536.41515 | E104: 0 | F104: 436.3595246 | G104: 560.38503 | H104: 234.37147 | I104: 0 | J104: 557.6789363 | K104: 3355.678555 | L104: 2038.75926 | M104: 0 | N104: 3677.769361 | O104: 0 | P104: 0 | Q104: 0 | R104: 0 | S104: 3355.678555 | T104: 2038.75926 | U104: 0 | V104: 3677.769361 | W104: 4616.685205 | X104: 2809.54588 | Y104: 0 | Z104: 4671.807822 | AA104: Core - SW | AB104: Cross Cutting | AC104: No | AD104: New | AE104: WE&T Programs
A105: SDGE3255 | B105: SW-WE&T-Connections | C105: 158.95957 | D105: 65.96793 | E105: 0 | F105: 39.8542713 | G105: 38.272 | H105: 8.83869 | I105: 0 | J105: 38.272 | K105: 245.94399 | L105: 423.05556 | M105: 0 | N105: 695.9381884 | O105: 0 | P105: 0 | Q105: 0 | R105: 0 | S105: 245.94399 | T105: 423.05556 | U105: 0 | V105: 695.9381884 | W105: 443.17556 | X105: 497.86218 | Y105: 0 | Z105: 774.0644597 | AA105: Core - SW | AB105: Cross Cutting | AC105: No | AD105: New | AE105: WE&T Programs
A106: SDGE3256 | B106: SW-WE&T-Connections K-12 | C106: 7.29693 | D106: -18.27706 | E106: 0 | F106: 0 | G106: 10 | H106: 1.52951 | I106: 0 | J106: 0 | K106: 410.17707 | L106: 232.56675 | M106: 0 | N106: 0 | O106: 0 | P106: 0 | Q106: 0 | R106: 0 | S106: 410.17707 | T106: 232.56675 | U106: 0 | V106: 0 | W106: 427.474 | X106: 215.8192 | Y106: 0 | Z106: 0 | AA106: 3P | AB106: Residential | AC106: No | AD106: Revised | AE106: WE&T Programs
A107: SDGE3257 | B107: SW-WE&T-Strategic Planning | C107: 3.53625 | D107: 0 | E107: 0 | F107: 3.3719802 | G107: 0 | H107: 0 | I107: 0 | J107: 0 | K107: 45 | L107: 0 | M107: 0 | N107: 45 | O107: 0 | P107: 0 | Q107: 0 | R107: 0 | S107: 45 | T107: 0 | U107: 0 | V107: 45 | W107: 48.53625 | X107: 0 | Y107: 0 | Z107: 48.3719802 | AA107: Core - SW | AB107: Cross Cutting | AC107: No | AD107: New | AE107: WE&T Programs
A108: SDGE3288 | B108: CRM | C108: 882.8227 | D108: 1613.27 | E108: 0 | F108: 878.0323576 | G108: 0 | H108: 0 | I108: 0 | J108: 0 | K108: 174.71228 | L108: 0 | M108: 0 | N108: 179.5168627 | O108: 0 | P108: 0 | Q108: 0 | R108: 0 | S108: 174.71228 | T108: 0 | U108: 0 | V108: 179.5168627 | W108: 1057.53498 | X108: 1613.27 | Y108: 0 | Z108: 1057.54922 | AB108: Cross Cutting | AC108: No | AD108: Revised | AE108: Commercial Programs
A109: SDGE3281 | B109: EM&V-Evaluation Measurement & Verification | C109: 4263.4998 | D109: 467.669 | E109: 0 | F109: 4776.784 | G109: 0 | H109: 0 | I109: 0 | J109: 0 | K109: 0 | L109: 0 | M109: 0 | N109: 0 | O109: 0 | P109: 0 | Q109: 0 | R109: 0 | S109: 0 | T109: 0 | U109: 0 | V109: 0 | W109: 4263.4998 | X109: 467.669 | Y109: 1707.749 | Z109: 4776.784 | AB109: Cross Cutting | AE109: EM&V
A112: Low Income | B112: Low Income Energy Efficiency
B114: TOTAL | C114: 13178.4537 | D114: 8220.69783 | E114: 0 | F114: 12233.51569 | G114: 7314.032505 | H114: 3393.56729 | I114: 0 | J114: 7505.968727 | K114: 37665.36622 | L114: 40222.25134 | M114: 0 | N114: 39210.87274 | O114: 47429.61466 | P114: 21558.18099 | Q114: 0 | R114: 60469.23361 | S114: 85094.98088 | T114: 61780.43233 | U114: 0 | V114: 99680.10635 | W114: 105587.4671 | X114: 73394.69745 | Y114: 3806.356 | Z114: 119419.5908

Sheet App B.2 Savings_
A1: Appendix B.2- Savings Placemat Table and Cost Effectiveness Table | C1: Gross kWh Energy Savings [4] | I1: Gross kW Energy Savings [4] | O1: Gross Therm Energy Savings [4] | U1: TRC [3] | X1: PAC [3] | AA1: net/gross kWh Energy Savings | AD1: net/gross kW Energy Savings | AG1: net/gross Therm Energy Savings | AJ1: EUL kWH | AM1: EUL Therm
A2: ProgramCode | B2: Main Program Name / Sub-Programs | C2: 2013 Forecast (Compliance Filing) | D2: 2013 Claimed (Preliminary) | E2: 2013 Claimed from pre-2013 Carryover (Preliminary) | F2: 2014 | G2: 2015 | H2: 2015 % of Total Gross Program Savings | I2: 2013 Forecast (Compliance Filing) | J2: 2013 Claimed (Preliminary) | K2: 2013 Claimed from pre-2013 Carryover (Preliminary) | L2: 2014 | M2: 2015 | N2: 2015 % of Total Gross Program Savings | O2: 2013 Forecast (Compliance Filing) | P2: 2013 Claimed (Preliminary) | Q2: 2013 Claimed from pre-2013 Carryover (Preliminary) | R2: 2014 | S2: 2015 | T2: 2015 % of Total Gross Program Savings | U2: 2013 Claimed (Preliminary) | V2: 2013-2014 | W2: 2015 | X2: 2013 Claimed (preliminary) | Y2: 2013-2014 | Z2: 2015 | AA2: 2013 Claimed (Preliminary) | AB2: 2013-2014 | AC2: 2015 | AD2: 2013 Claimed (Preliminary) | AE2: 2013-2014 | AF2: 2015 | AG2: 2013 Claimed (Preliminary) | AH2: 2013-2014 | AI2: 2015 | AJ2: 2013 Claimed (Preliminary) | AK2: 2013-2014 | AL2: 2015 | AM2: 2013 Claimed (Preliminary) | AN2: 2013-2014 | AO2: 2015 | AP2: Program Type | AQ2: Market Sector | AR2: Pilot Program | AS2: Program Status | AT2: Utility Grouping
B3: SW CALSPREE | C3: 21582049.86 | D3: 12876118.25 | E3: 0 | F3: 21550621.67 | G3: 31002415.36 | H3: 0.1262442659 | I3: 4874.632813 | J3: 2590.760308 | K3: 0 | L3: 4888.976207 | M3: 6083.559922 | N3: 0.1519745209 | O3: 511090.5422 | P3: 144218.8495 | Q3: 0 | R3: 490090.8994 | S3: 632648.0409 | T3: 0.2539995504
A4: SDGE3201 | B4: SW-CALS-Energy Advisor-HEES, UAT | D4: 0 | E4: 0 | G4: 0 | H4: 0 | J4: 0 | K4: 0 | M4: 0 | N4: 0 | P4: 0 | Q4: 0 | S4: 0 | T4: 0 | U4: 0 | W4: 0 | X4: 0 | Z4: 0 | AC4: 0 | AF4: 0 | AI4: 0 | AL4: 0 | AO4: 0 | AP4: Core - SW | AQ4: Residential | AR4: No | AS4: Revised | AT4: Residential Programs
A5: SDGE3203 | B5: SW-CALS-Plug Load and Appliances-HEER | C5: 4401326.687 | D5: 2910760.989 | E5: 0 | F5: 4394711.983 | G5: 6774965.656 | H5: 0.02758819131 | I5: 709.5476487 | J5: 430.4375434 | K5: 0 | L5: 708.5103236 | M5: 1017.299536 | N5: 0.02541334541 | O5: 234123.0179 | P5: 102743.2838 | Q5: 0 | R5: 219616.3203 | S5: 665433.3632 | T5: 0.2671624096 | U5: 0.83408 | V5: 1.106135329 | W5: 0.90619 | X5: 1.54128 | Y5: 3.069298298 | Z5: 1.655 | AA5: 0.542190771 | AB5: 0.542190771 | AC5: 0.551548727 | AD5: 0.5350713536 | AE5: 0.5350713536 | AF5: 0.537949158 | AG5: 0.46740027 | AH5: 0.46740027 | AI5: 0.447567201 | AJ5: 10.668334 | AK5: 10.668334 | AL5: 11.04018755 | AM5: 14.89691373 | AN5: 14.89691373 | AO5: 11.0583243 | AP5: Core - SW | AQ5: Residential | AR5: No | AS5: New | AT5: Residential Programs
A6: SDGE3204 | B6: SW-CALS-Plug Load and Appliances-POS Rebates | C6: 140931.5 | D6: 404862.7 | E6: 0 | F6: 140931.5 | G6: 386320.2909 | H6: 0.001573126512 | I6: 28.5385 | J6: 24.1101 | K6: 0 | L6: 28.495 | M6: 180.4827903 | N6: 0.00450867353 | O6: 9065.44 | P6: 52597.81 | Q6: 0 | R6: 9055.66 | S6: 38379.50015 | T6: 0.01540884528 | U6: 0.4 | V6: 0.3174615577 | W6: 0.45898 | X6: 0.63 | Y6: 0.534727831 | Z6: 0.797 | AA6: 0.5262651136 | AB6: 0.5262651136 | AC6: 0.528241923 | AD6: 0.5098062542 | AE6: 0.5098062542 | AF6: 0.415296089 | AG6: 0.3025183565 | AH6: 0.3025183565 | AI6: 0.307995806 | AJ6: 13.87611926 | AK6: 13.87611926 | AL6: 10.29758125 | AM6: 11 | AN6: 11 | AO6: 11 | AP6: Core - SW | AQ6: Residential | AR6: No | AS6: New | AT6: Residential Programs
A7: SDGE3205 | B7: SW-CALS-Plug Load and Appliances-BCE | C7: 1956983.4 | D7: 0 | E7: 0 | F7: 1954226.6 | G7: 0 | H7: 0 | I7: 190.07613 | J7: 0 | K7: 0 | L7: 189.80837 | M7: 0 | N7: 0 | O7: -35948.07 | P7: 0 | Q7: 0 | R7: -35897.43 | S7: 0 | T7: 0 | U7: 0 | V7: 1.846681947 | W7: 0 | X7: 0 | Y7: 3.223022469 | Z7: 0 | AA7: 0.55 | AB7: 0.55 | AC7: 0 | AD7: 0.55 | AE7: 0.55 | AF7: 0 | AI7: 0 | AJ7: 10 | AK7: 10 | AL7: 0 | AO7: 0 | AP7: Core - SW | AQ7: Residential | AR7: No | AS7: New | AT7: Residential Programs
A8: SDGE3206 | B8: SW-CALS-Plug Load and Appliances-ARP | C8: 10389500 | D8: 6869471 | E8: 0 | F8: 10389500 | G8: 16699400 | H8: 0.06800126603 | I8: 1933 | J8: 1243.778 | K8: 0 | L8: 1933 | M8: 2953.300006 | N8: 0.07377692655 | O8: -134085 | P8: -88817.91 | Q8: 0 | R8: -134085 | S8: -334780.0093 | T8: -0.1344096027 | U8: 0.8709 | V8: 1.557513766 | W8: 0.97358 | X8: 1.06908 | Y8: 1.616174085 | Z8: 1.023 | AA8: 0.555034891 | AB8: 0.555034891 | AC8: 0.54942992 | AD8: 0.5546249353 | AE8: 0.5546249353 | AF8: 0.549442657 | AI8: 0.54936406 | AJ8: 4.852735935 | AK8: 4.852735935 | AL8: 4.758236548 | AO8: 0 | AP8: 3P | AQ8: Residential | AR8: No | AS8: New | AT8: Residential Programs
A9: SDGE3207 | B9: SW-CALS-MFEER | C9: 2084866.783 | D9: 1118615.683 | E9: 0 | F9: 2056471.305 | G9: 2456343.473 | H9: 0.0100024232 | I9: 235.900142 | J9: 72.7949397 | K9: 0 | L9: 234.4016936 | M9: 186.5999927 | N9: 0.00466148848 | O9: 85850.94463 | P9: -2508.89161 | Q9: 0 | R9: 82280.53953 | S9: 33501.87194 | T9: 0.01345054416 | U9: 0.37599 | V9: 1.180571985 | W9: 0.47613 | X9: 0.48829 | Y9: 1.670237846 | Z9: 0.695 | AA9: 0.5903115249 | AB9: 0.5903115249 | AC9: 0.55 | AD9: 0.6347080356 | AE9: 0.6347080356 | AF9: 0.55 | AG9: 0.664262847 | AH9: 0.664262847 | AI9: 0.589537198 | AJ9: 12.46140025 | AK9: 12.46140025 | AL9: 9.24 | AM9: 10.35923604 | AN9: 10.35923604 | AO9: 10 | AP9: Core - SW | AQ9: Residential | AR9: No | AS9: Revised | AT9: Residential Programs
A10: SDGE3208 | B10: SW-CALS - EUC WHRP - Basic | D10: 0 | E10: 0 | G10: 0 | H10: 0 | J10: 0 | K10: 0 | M10: 0 | N10: 0 | P10: 0 | Q10: 0 | S10: 0 | T10: 0 | U10: 0 | W10: 0 | X10: 0 | Z10: 0 | AC10: 0 | AF10: 0 | AI10: 0 | AL10: 0 | AO10: 0 | AP10: Core - SW | AQ10: Residential | AR10: No | AS10: New | AT10: Residential Programs
A11: SDGE3209 | B11: SW-CALS - EUC WHRP - Advanced | C11: 1175062.5 | D11: 137811 | E11: 0 | F11: 1197562.5 | G11: 2531782.8 | H11: 0.01030961805 | I11: 940.05 | J11: 113.062 | K11: 0 | L11: 958.05 | M11: 1362.096 | N11: 0.03402676882 | O11: 268854.3 | P11: 15583.2 | Q11: 0 | R11: 274002.3 | S11: 125323.2 | T11: 0.05031555366 | U11: 0.00814 | V11: 0.7470790227 | W11: 0.82359 | X11: 0.00955 | Y11: 1.542172844 | Z11: 1.301 | AA11: 0.85 | AB11: 0.85 | AC11: 0.85 | AD11: 0.85 | AE11: 0.85 | AF11: 0.85 | AG11: 0.85 | AH11: 0.85 | AI11: 0.85 | AJ11: 20 | AK11: 20 | AL11: 16.5 | AM11: 20 | AN11: 20 | AO11: 16.5 | AP11: Core - SW | AQ11: Residential | AR11: No | AS11: New | AT11: Residential Programs
A12: SDGE3210 | B12: SW-CALS - EUC WHRP - Multifamily | C12: 0 | D12: 0 | E12: 0 | F12: 0 | G12: 0 | H12: 0 | I12: 0 | J12: 0 | K12: 0 | L12: 0 | M12: 0 | N12: 0 | O12: 0 | P12: 0 | Q12: 0 | R12: 0 | S12: 0 | T12: 0 | U12: 0 | W12: 0 | X12: 0 | Z12: 0 | AC12: 0 | AF12: 0 | AI12: 0 | AL12: 0 | AO12: 0 | AP12: Core - SW | AQ12: Residential | AR12: No | AS12: Revised | AT12: Residential Programs
A13: SDGE3211 | B13: Local-CALS - Middle Income Direct Install (MIDI) | C13: 978392.2772 | D13: 52061.3449 | E13: 0 | F13: 978392.2772 | G13: 810142.3976 | H13: 0.003298963358 | I13: 200.4411189 | J13: 9.644993549 | K13: 0 | L13: 200.4411189 | M13: 145.2005781 | N13: 0.003627282147 | O13: 37544.222 | P13: 4993.73407 | Q13: 0 | R13: 29492.222 | S13: 48607.38823 | T13: 0.0195152027 | U13: 0.20375 | V13: 0.6283713966 | W13: 0.61074 | X13: 0.2087 | Y13: 0.6466521607 | Z13: 0.632 | AA13: 0.85 | AB13: 0.85 | AC13: 0.85 | AD13: 0.85 | AE13: 0.85 | AF13: 0.85 | AG13: 0.85 | AH13: 0.85 | AI13: 0.85 | AJ13: 7.86424638 | AK13: 7.86424638 | AL13: 16.41344959 | AM13: 15.19314543 | AN13: 15.19314543 | AO13: 15.45617838 | AP13: Core - Local | AQ13: Residential | AR13: No | AS13: New | AT13: Residential Programs
A14: SDGE3212 | B14: SW-CALS – Residential HVAC-QI/QM | C14: 71224.35794 | D14: 313305.2026 | E14: 0 | F14: 71347.75864 | G14: 332754.1956 | H14: 0.001355001172 | I14: 57.17927376 | J14: 151.5627312 | K14: 0 | L14: 57.26970118 | M14: 171.2649977 | N14: 0.004278402171 | O14: 1897.207678 | P14: 13140.35124 | Q14: 0 | R14: 1897.207545 | S14: 14143.52479 | T14: 0.00567843209 | U14: 0.45123 | V14: 0.1253041128 | W14: 0.51864 | X14: 0.46201 | Y14: 0.1270318716 | Z14: 0.529 | AA14: 0.7927183463 | AB14: 0.7927183463 | AC14: 0.701329706 | AD14: 0.7930349757 | AE14: 0.7930349757 | AF14: 0.703275633 | AG14: 0.7996697508 | AH14: 0.7996697508 | AI14: 0.699975645 | AJ14: 8.717477774 | AK14: 8.717477774 | AL14: 11.52502465 | AM14: 13.46710658 | AN14: 13.46710658 | AO14: 11.52371871 | AP14: 3P | AQ14: Residential | AR14: No | AS14: Revised | AT14: HVAC
A15: SDGE3213 | B15: SW-CALS - CAHP/ESMH-CA Advanced Homes | C15: 297000 | D15: 1060834.248 | E15: 0 | F15: 280715.4 | G15: 943786.7715 | H15: 0.003843173726 | I15: 553.5 | J15: 542.07 | K15: 0 | L15: 552.6 | M15: 48.066021 | N15: 0.001200746045 | O15: 42744.4 | P15: 46264.392 | Q15: 0 | R15: 42685 | S15: 41169.5919 | T15: 0.01652902903 | U15: 0.04952 | V15: 0.4989478139 | W15: 0.49916 | X15: 0.0728 | Y15: 0.568925426 | Z15: 0.651 | AA15: 0.36 | AB15: 0.36 | AC15: 0.55 | AD15: 0.36 | AE15: 0.36 | AF15: 0.55 | AG15: 0.3679788925 | AH15: 0.3679788925 | AI15: 0.55 | AJ15: 18 | AK15: 18 | AL15: 16.5 | AM15: 13.34810147 | AN15: 13.34810147 | AO15: 16.5 | AP15: Core - SW | AQ15: Residential | AR15: No | AS15: Revised | AT15: New Construction
A16: SDGE3214 | B16: SW-CALS - CAHP/ESMH-E Star Manufactured Homes | C16: 86762.35 | D16: 8396.08 | E16: 0 | F16: 86762.35 | G16: 66919.78 | H16: 0.0002725025906 | I16: 26.4 | J16: 3.3 | K16: 0 | L16: 26.4 | M16: 19.25 | N16: 0.000480887764 | O16: 1044.08 | P16: 222.88 | Q16: 0 | R16: 1044.08 | S16: 869.61 | T16: 0.0003491365415 | U16: 0.74654 | V16: 0.7404829762 | W16: 2.11411 | X16: 0.83628 | Y16: 1.189424224 | Z16: 3.227 | AA16: 0.55 | AB16: 0.55 | AC16: 0.55 | AD16: 0.55 | AE16: 0.55 | AF16: 0.55 | AG16: 0.55 | AH16: 0.55 | AI16: 0.55 | AJ16: 12.60822454 | AK16: 12.60822454 | AL16: 11.97142857 | AM16: 11 | AN16: 11 | AO16: 11 | AP16: Core - SW | AQ16: Residential | AR16: No | AS16: Revised | AT16: New Construction
A17: SDGE3293 | B17: SW-CALS – Residential HVAC-HVAC Core | D17: 0 | E17: 0 | G17: 0 | H17: 0 | J17: 0 | K17: 0 | M17: 0 | N17: 0 | P17: 0 | Q17: 0 | S17: 0 | T17: 0 | U17: 0 | W17: 0 | X17: 0 | Z17: 0 | AC17: 0 | AF17: 0 | AI17: 0 | AL17: 0 | AO17: 0 | AP17: Core - SW | AQ17: Residential | AR17: No | AS17: Revised | AT17: HVAC
A18: SDGE3302 | B18: RES Upstream HVAC Incentive Program | D18: 0 | E18: 0 | G18: 0 | H18: 0 | J18: 0 | K18: 0 | M18: 0 | N18: 0 | P18: 0 | Q18: 0 | S18: 0 | T18: 0 | U18: 0 | W18: 0 | X18: 0 | Z18: 0 | AC18: 0 | AF18: 0 | AI18: 0 | AL18: 0 | AO18: 0 | AP18: Core - SW | AQ18: Residential | AR18: No | AS18: New | AT18: HVAC
A19: SDGE3303 | B19: HVAC To Code Compliance Incentive Program | D19: 0 | E19: 0 | G19: 0 | H19: 0 | J19: 0 | K19: 0 | M19: 0 | N19: 0 | P19: 0 | Q19: 0 | S19: 0 | T19: 0 | U19: 0 | W19: 0 | X19: 0 | Z19: 0 | AC19: 0 | AF19: 0 | AI19: 0 | AL19: 0 | AO19: 0 | AP19: Core - SW | AQ19: Residential | AR19: yes | AS19: New | AT19: HVAC
B20: SW Commercial EE Program | C20: 103938636.8 | D20: 76037980.66 | E20: 19088189.27 | F20: 100847269.4 | G20: 107459935.5 | H20: 0.4375852824 | I20: 19189.15495 | J20: 13649.95307 | K20: 2187.70425 | L20: 18823.16893 | M20: 17235.82899 | N20: 0.4305713904 | O20: 2246994.097 | P20: 803895.571 | Q20: 43999.03222 | R20: 2153727.981 | S20: 1864946.869 | T20: 0.7487507043
A21: SDGE3215 | B21: SW-COM-Continuous Energy Improvement | D21: 0 | E21: 0 | G21: 0 | H21: 0 | J21: 0 | K21: 0 | M21: 0 | N21: 0 | P21: 0 | Q21: 0 | S21: 0 | T21: 0 | U21: 0 | W21: 0 | X21: 0 | Z21: 0 | AC21: 0 | AF21: 0 | AI21: 0 | AL21: 0 | AO21: 0 | AP21: Core - SW | AQ21: Commercial | AR21: Yes | AS21: Revised | AT21: Commercial Programs
A22: SDGE3216 | B22: SW-COM-Customer Services-Benchmarking | D22: 0 | E22: 0 | G22: 0 | H22: 0 | J22: 0 | K22: 0 | M22: 0 | N22: 0 | P22: 0 | Q22: 0 | S22: 0 | T22: 0 | U22: 0 | W22: 0 | X22: 0 | Z22: 0 | AC22: 0 | AF22: 0 | AI22: 0 | AL22: 0 | AO22: 0 | AP22: Core - SW | AQ22: Commercial | AR22: No | AS22: New | AT22: Commercial Programs
A23: SDGE3217 | B23: SW-COM-Customer Services- Audits NonRes | D23: 0 | E23: 0 | G23: 0 | H23: 0 | J23: 0 | K23: 0 | M23: 0 | N23: 0 | P23: 0 | Q23: 0 | S23: 0 | T23: 0 | U23: 0 | W23: 0 | X23: 0 | Z23: 0 | AC23: 0 | AF23: 0 | AI23: 0 | AL23: 0 | AO23: 0 | AP23: Core - SW | AQ23: Commercial | AR23: No | AS23: Revised | AT23: Commercial Programs
A24: SDGE3218 | B24: SW-COM-Customer Services-Audits Healthcare Energy Efficiency (HEEP) | D24: 0 | E24: 0 | G24: 0 | H24: 0 | J24: 0 | K24: 0 | M24: 0 | N24: 0 | P24: 0 | Q24: 0 | S24: 0 | T24: 0 | U24: 0 | W24: 0 | X24: 0 | Z24: 0 | AC24: 0 | AF24: 0 | AI24: 0 | AL24: 0 | AO24: 0 | AP24: 3P | AQ24: Commercial | AR24: No | AS24: Revised | AT24: Commercial Programs
A25: SDGE3219 | B25: SW-COM-Customer Services-Audits Lodging Energy Efficiency (LEEP) | D25: 0 | E25: 0 | G25: 0 | H25: 0 | J25: 0 | K25: 0 | M25: 0 | N25: 0 | P25: 0 | Q25: 0 | S25: 0 | T25: 0 | U25: 0 | W25: 0 | X25: 0 | Z25: 0 | AC25: 0 | AF25: 0 | AI25: 0 | AL25: 0 | AO25: 0 | AP25: 3P | AQ25: Commercial | AR25: No | AS25: Revised | AT25: Commercial Programs
A26: SDGE3220 | B26: SW-COM-Calculated Incentives-Calculated | C26: 45271630.8 | D26: 27969875.21 | E26: 18709481.87 | F26: 43483941 | G26: 44258210.96 | H26: 0.1802229049 | I26: 5405.039858 | J26: 1528.641 | K26: 2093.11425 | L26: 5190.483122 | M26: 2074.70835 | N26: 0.05182866802 | O26: 1505617.598 | P26: 661910.202 | Q26: 27242.83222 | R26: 1435857.245 | S26: 878636.34 | T26: 0.3527604938 | U26: 2.46 | V26: 3.360269331 | W26: 3.05226 | X26: 5.49 | Y26: 5.691076289 | Z26: 4.59 | AA26: 0.614936147 | AB26: 0.6 | AC26: 0.608613551 | AD26: 0.624798742 | AE26: 0.6 | AF26: 0.617654175 | AG26: 0.587458592 | AH26: 0.5 | AI26: 0.61427863 | AJ26: 14.86506991 | AK26: 7.935181777 | AL26: 14.12076655 | AM26: 14.99908599 | AN26: 17.21447995 | AO26: 13.96244206 | AP26: Core - SW | AQ26: Commercial | AR26: No | AS26: Revised | AT26: Commercial Programs
A27: SDGE3221 | B27: SW-COM-Calculated Incentives-RCx | C27: 4389500.055 | D27: 0 | E27: 0 | F27: 4389500.055 | G27: 5853670.2 | H27: 0.02383660398 | I27: 124.3564312 | J27: 0 | K27: 0 | L27: 124.3564312 | M27: 159.894 | N27: 0.003994341202 | O27: 47814.23245 | P27: 0 | Q27: 0 | R27: 47814.23245 | S27: 820940.4 | T27: 0.3295963616 | U27: 0 | V27: 4.565600148 | W27: 2.85201 | X27: 0 | Y27: 4.757708157 | Z27: 3.916 | AA27: 0.8 | AB27: 0.8 | AC27: 0.8 | AD27: 0.8 | AE27: 0.8 | AF27: 0.8 | AG27: 0.8 | AH27: 0.8 | AI27: 0.82 | AJ27: 10 | AK27: 10 | AL27: 11.92307692 | AM27: 10 | AN27: 10 | AO27: 11.92307692 | AP27: 3P | AQ27: Commercial | AR27: No | AS27: Revised | AT27: Commercial Programs
A28: SDGE3222 | B28: SW-COM-Calculated Incentives-Savings by Design | C28: 9900722.7 | D28: 10434793.5 | E28: 378707.4 | F28: 9821224.8 | G28: 12139048.85 | H28: 0.04943115861 | I28: 3933.292401 | J28: 2938.95 | K28: 94.59 | L28: 4051.045528 | M28: 3405.11643 | N28: 0.08506383512 | O28: 358394.4 | P28: 17910 | Q28: 16756.2 | R28: 352409.4 | S28: 38897.694 | T28: 0.01561689304 | U28: 2.26 | V28: 2.126810338 | W28: 2.48489 | X28: 2.95 | Y28: 2.931105508 | Z28: 2.76 | AA28: 0.606489284 | AB28: 0.6 | AC28: 0.6 | AD28: 0.6 | AE28: 0.6 | AF28: 0.6 | AG28: 0.543436459 | AH28: 0.6 | AI28: 0.6 | AJ28: 10.56344555 | AK28: 14.5391279 | AL28: 15.15157596 | AM28: 9.65356107 | AN28: 11.17348585 | AO28: 15.01531809 | AP28: Core - SW | AQ28: Commercial | AR28: No | AS28: Revised | AT28: New Construction
A29: SDGE3223 | B29: SW-COM-Deemed Incentives-Commercial Rebates | C29: 26363202.3 | D29: 16473400.63 | E29: 0 | F29: 25384454.81 | G29: 11655587.62 | H29: 0.04746246658 | I29: 5097.283756 | J29: 2414.335134 | K29: 0 | L29: 4913.431259 | M29: 1884.352674 | N29: 0.04707335812 | O29: 342636.202 | P29: 138020.4613 | Q29: 0 | R29: 324100.0502 | S29: 146512.1743 | T29: 0.05882263753 | U29: 0.9676 | V29: 1.481057558 | W29: 1.44613 | X29: 4.12033 | Y29: 4.87811264 | Z29: 3.816 | AA29: 0.6757225619 | AB29: 0.6757225619 | AC29: 0.685777113 | AD29: 0.6751047884 | AE29: 0.6751047884 | AF29: 0.703938565 | AG29: 0.5812520384 | AH29: 0.5812520384 | AI29: 0.558320361 | AJ29: 11.42771607 | AK29: 11.42771607 | AL29: 12.72476106 | AM29: 8.995047486 | AN29: 8.995047486 | AO29: 10.65631226 | AP29: Core - SW | AQ29: Commercial | AR29: No | AS29: Revised | AT29: Commercial Programs
A30: SDGE3224 | B30: SW-COM-Deemed Incentives-HVAC Commercial | C30: 2100324.974 | D30: 6693534.597 | E30: 0 | F30: 1860613.724 | G30: 5652674.893 | H30: 0.02301813533 | I30: 731.7716946 | J30: 2933.546242 | K30: 0 | L30: 647.6559896 | M30: 2386.213803 | N30: 0.0596104426 | O30: -1914.564469 | P30: -2293.913919 | Q30: 0 | R30: -2435.082259 | S30: -1970.162539 | T30: -0.0007909933592 | U30: 1.43816 | V30: 0.6111141657 | W30: 1.31746 | X30: 1.83247 | Y30: 0.7378663632 | Z30: 1.31 | AA30: 0.7202812602 | AB30: 0.7202812602 | AC30: 0.721579614 | AD30: 0.7142168851 | AE30: 0.7142168851 | AF30: 0.722344023 | AG30: 0.7981649118 | AH30: 0.7981649118 | AI30: 0.750158832 | AJ30: 9.081235772 | AK30: 9.081235772 | AL30: 7.404484289 | AM30: 5.810276286 | AN30: 5.810276286 | AO30: 0 | AP30: 3P | AQ30: Commercial | AR30: No | AS30: Revised | AT30: HVAC
A31: SDGE3225 | B31: SW-COM-Deemed Incentives-HVAC Core | D31: 0 | E31: 0 | G31: 0 | H31: 0 | J31: 0 | K31: 0 | M31: 0 | N31: 0 | P31: 0 | Q31: 0 | S31: 0 | T31: 0 | U31: 0 | W31: 0 | X31: 0 | Z31: 0 | AC31: 0 | AF31: 0 | AI31: 0 | AL31: 0 | AO31: 0 | AP31: Core - SW | AQ31: Commercial | AR31: No | AS31: Revised | AT31: HVAC
A32: SDGE3226 | B32: SW-COM Direct Install | C32: 15913255.93 | D32: 14466376.72 | E32: 0 | F32: 15907535.03 | G32: 27900743.02 | H32: 0.113614013 | I32: 3897.41081 | J32: 3834.48069 | K32: 0 | L32: 3896.196604 | M32: 7325.543738 | N32: 0.1830007453 | O32: -5553.770317 | P32: -11651.17841 | Q32: 0 | R32: -4017.864697 | S32: -18069.5767 | T32: -0.007254688326 | U32: 0.83 | V32: 1.806465811 | W32: 1.06552 | X32: 0.86 | Y32: 1.899365838 | Z32: 1.12 | AA32: 0.8535715318 | AB32: 0.8535715318 | AC32: 0.663843093 | AD32: 0.8457229218 | AE32: 0.8457229218 | AF32: 0.665453759 | AG32: 0.85 | AH32: 0.85 | AI32: 0.859754629 | AJ32: 9.933463963 | AK32: 9.933463963 | AL32: 9.883189854 | AM32: 5.590086635 | AN32: 5.590086635 | AO32: 9.576686148 | AP32: 3P | AQ32: Commercial | AR32: No | AS32: Revised | AT32: Commercial Programs
A33: SDGE3227 | B33: SW-IND-Continuous Energy Improvement | D33: 0 | E33: 0 | G33: 0 | H33: 0 | J33: 0 | K33: 0 | M33: 0 | N33: 0 | P33: 0 | Q33: 0 | S33: 0 | T33: 0 | U33: 0 | W33: 0 | X33: 0 | Z33: 0 | AC33: 0 | AF33: 0 | AI33: 0 | AL33: 0 | AO33: 0 | AP33: Core - SW | AQ33: Industrial | AR33: Yes | AS33: Revised | AT33: Industrial Programs
A34: SDGE3292 | B34: SW-Com-Customer Services-Pump Test Services | D34: 0 | E34: 0 | G34: 0 | H34: 0 | J34: 0 | K34: 0 | M34: 0 | N34: 0 | P34: 0 | Q34: 0 | S34: 0 | T34: 0 | U34: 0 | W34: 0 | X34: 0 | Z34: 0 | AC34: 0 | AF34: 0 | AI34: 0 | AL34: 0 | AO34: 0 | AP34: 3P | AQ34: Commercial | AR34: No | AS34: Revised | AT34: Commercial Programs
B35: SW Industrial Programs | C35: 8440178.767 | D35: 2216426.991 | E35: 0 | F35: 8119197.499 | G35: 5454228.949 | H35: 0.02221004789 | I35: 1240.375004 | J35: 357.1364871 | K35: 0 | L35: 1194.171151 | M35: 493.086248 | N35: 0.01231787757 | O35: 192780.2142 | P35: 4381.341401 | Q35: 0 | R35: 184650.9651 | S35: 89329.89944 | T35: 0.03586473493
A36: SDGE3228 | B36: SW-IND-Customer Services-Benchmarking | D36: 0 | E36: 0 | G36: 0 | H36: 0 | J36: 0 | K36: 0 | M36: 0 | N36: 0 | P36: 0 | Q36: 0 | S36: 0 | T36: 0 | U36: 0 | W36: 0 | X36: 0 | Z36: 0 | AC36: 0 | AF36: 0 | AI36: 0 | AL36: 0 | AO36: 0 | AP36: Core - SW | AQ36: Industrial | AR36: No | AS36: New | AT36: Industrial Programs
A37: SDGE3229 | B37: SW-IND-Customer Services-Audits NonRes | D37: 0 | E37: 0 | G37: 0 | H37: 0 | J37: 0 | K37: 0 | M37: 0 | N37: 0 | P37: 0 | Q37: 0 | S37: 0 | T37: 0 | U37: 0 | W37: 0 | X37: 0 | Z37: 0 | AC37: 0 | AF37: 0 | AI37: 0 | AL37: 0 | AO37: 0 | AP37: Core - SW | AQ37: Industrial | AR37: No | AS37: Revised | AT37: Industrial Programs
A38: SDGE3230 | B38: SW-IND-Customer Services-Audits CIEEP | D38: 0 | E38: 0 | G38: 0 | H38: 0 | J38: 0 | K38: 0 | M38: 0 | N38: 0 | P38: 0 | Q38: 0 | S38: 0 | T38: 0 | U38: 0 | W38: 0 | X38: 0 | Z38: 0 | AC38: 0 | AF38: 0 | AI38: 0 | AL38: 0 | AO38: 0 | AP38: 3P | AQ38: Industrial | AR38: No | AS38: Revised | AT38: Industrial Programs
A39: SDGE3231 | B39: SW-IND-Calculated Incentives-Calculated | C39: 5326073.1 | D39: 1266465.24 | E39: 0 | F39: 5115758.4 | G39: 4074248.07 | H39: 0.01659065756 | I39: 635.8871376 | J39: 166.887 | K39: 0 | L39: 610.6450455 | M39: 269.19 | N39: 0.006724684529 | O39: 151141.1753 | P39: 6431.4 | Q39: 0 | R39: 144150.5047 | S39: 74632.41 | T39: 0.0299638936 | U39: 1.13344 | V39: 2.902983359 | W39: 2.25863 | X39: 1.44521 | Y39: 4.588761924 | Z39: 3.234 | AA39: 0.6 | AB39: 0.6 | AC39: 0.613476164 | AD39: 0.6 | AE39: 0.6 | AF39: 0.620875092 | AG39: 0.5 | AH39: 0.5 | AI39: 0.659389544 | AJ39: 7.935181587 | AK39: 7.935181587 | AL39: 13.81057701 | AM39: 16.73558966 | AN39: 16.73558966 | AO39: 12.62296685 | AP39: Core - SW | AQ39: Industrial | AR39: No | AS39: Revised | AT39: Industrial Programs
A40: SDGE3233 | B40: SW-IND-Deemed Incentives | C40: 3114105.667 | D40: 949961.7507 | E40: 0 | F40: 3003439.099 | G40: 1379980.879 | H40: 0.005619390329 | I40: 604.4878669 | J40: 190.2494871 | K40: 0 | L40: 583.526106 | M40: 223.896248 | N40: 0.005593193042 | O40: 41639.03894 | P40: -2050.058599 | Q40: 0 | R40: 40500.46043 | S40: 14697.48944 | T40: 0.005900841333 | U40: 1.38431 | V40: 1.481114989 | W40: 1.12186 | X40: 2.24773 | Y40: 4.787201503 | Z40: 2.16 | AA40: 0.6763708245 | AB40: 0.6763708245 | AC40: 0.685222384 | AD40: 0.6757034258 | AE40: 0.6757034258 | AF40: 0.702948673 | AG40: 0.5817113995 | AH40: 0.5817113995 | AI40: 0.551108328 | AJ40: 11.55884627 | AK40: 11.55884627 | AL40: 12.73520294 | AM40: 9.124974179 | AN40: 9.124974179 | AO40: 10.45058304 | AP40: Core - SW | AQ40: Industrial | AR40: No | AS40: Revised | AT40: Industrial Programs
A41: SDGE3291 | B41: SW-IND-Customer Services-Pump Test Services | D41: 0 | E41: 0 | G41: 0 | H41: 0 | J41: 0 | K41: 0 | M41: 0 | N41: 0 | P41: 0 | Q41: 0 | S41: 0 | T41: 0 | U41: 0 | W41: 0 | X41: 0 | Z41: 0 | AC41: 0 | AF41: 0 | AI41: 0 | AL41: 0 | AO41: 0 | AP41: 3P | AQ41: Industrial | AR41: No | AS41: Revised | AT41: Industrial Programs
B42: SW Agricultural Programs | C42: 4235752.968 | D42: 0 | E42: 0 | F42: 4074167.516 | G42: 2726679.723 | H42: 0.0111032536 | I42: 623.7308176 | J42: 0 | K42: 0 | L42: 600.5666429 | M42: 246.0699995 | N42: 0.006147119576 | O42: 96738.83799 | P42: 9639 | Q42: 0 | R42: 92651.46086 | S42: 45282.06684 | T42: 0.01818013156
A43: SDGE3234 | B43: SW-AG-Customer Services-Benchmarking | D43: 0 | E43: 0 | G43: 0 | H43: 0 | J43: 0 | K43: 0 | M43: 0 | N43: 0 | P43: 0 | Q43: 0 | S43: 0 | T43: 0 | U43: 0 | W43: 0 | X43: 0 | Z43: 0 | AC43: 0 | AF43: 0 | AI43: 0 | AL43: 0 | AO43: 0 | AP43: Core - SW | AQ43: Agricultural | AR43: No | AS43: New | AT43: Agricultural Programs
A44: SDGE3235 | B44: SW-AG-Customer Services-Pump Test Services | D44: 0 | E44: 0 | G44: 0 | H44: 0 | J44: 0 | K44: 0 | M44: 0 | N44: 0 | P44: 0 | Q44: 0 | S44: 0 | T44: 0 | U44: 0 | W44: 0 | X44: 0 | Z44: 0 | AC44: 0 | AF44: 0 | AI44: 0 | AL44: 0 | AO44: 0 | AP44: 3P | AQ44: Agricultural | AR44: No | AS44: Revised | AT44: Agricultural Programs
A45: SDGE3236 | B45: SW-AG-Customer Services-Audits | D45: 0 | E45: 0 | G45: 0 | H45: 0 | J45: 0 | K45: 0 | M45: 0 | N45: 0 | P45: 0 | Q45: 0 | S45: 0 | T45: 0 | U45: 0 | W45: 0 | X45: 0 | Z45: 0 | AC45: 0 | AF45: 0 | AI45: 0 | AL45: 0 | AO45: 0 | AP45: Core - SW | AQ45: Agricultural | AR45: No | AS45: Revised | AT45: Agricultural Programs
A46: SDGE3237 | B46: SW-AG-Calculated Incentives-Calculated | C46: 2663037.9 | D46: 0 | E46: 0 | F46: 2557881 | G46: 2037124.035 | H46: 0.00829532878 | I46: 317.9434442 | J46: 0 | K46: 0 | L46: 305.3228863 | M46: 134.595 | N46: 0.003362342264 | O46: 75569.68714 | P46: 9639 | Q46: 0 | R46: 72073.9055 | S46: 37316.205 | T46: 0.0149819468 | U46: 0.35244 | V46: 3.017936566 | W46: 2.51585 | X46: 0.45109 | Y46: 4.788385634 | Z46: 3.789 | AA46: 0.6906783823 | AB46: 0.6906783823 | AC46: 0.613476164 | AD46: 0.6877998935 | AE46: 0.6877998935 | AF46: 0.620875092 | AG46: 0.685725635 | AH46: 0.685725635 | AI46: 0.659389544 | AJ46: 7.935184614 | AK46: 7.935184614 | AL46: 13.81057701 | AM46: 16.73562818 | AN46: 16.73562818 | AO46: 12.62296685 | AP46: Core - SW | AQ46: Agricultural | AR46: No | AS46: Revised | AT46: Agricultural Programs
A47: SDGE3239 | B47: SW-AG-Deemed Incentives | C47: 1572715.068 | D47: 0 | E47: 0 | F47: 1516286.516 | G47: 689555.6885 | H47: 0.002807924825 | I47: 305.7873734 | J47: 0 | K47: 0 | L47: 295.2437566 | M47: 111.4749995 | N47: 0.002784777312 | O47: 21169.15085 | P47: 0 | Q47: 0 | R47: 20577.55536 | S47: 7965.861839 | T47: 0.003198184764 | U47: 0 | V47: 1.482215216 | W47: 1.17073 | X47: 0 | Y47: 4.533358307 | Z47: 2.38 | AA47: 0.6737260255 | AB47: 0.6737260255 | AC47: 0.685176833 | AD47: 0.6758419232 | AE47: 0.6758419232 | AF47: 0.703015177 | AG47: 0.5823059812 | AH47: 0.5823059812 | AI47: 0.554978727 | AJ47: 11.5648736 | AK47: 11.5648736 | AL47: 12.70461309 | AM47: 9.193926595 | AN47: 9.193926595 | AO47: 10.55450081 | AP47: Core - SW | AQ47: Agricultural | AR47: No | AS47: Revised | AT47: Agricultural Programs
B48: SW Lighting Program | C48: 103471146 | D48: 43135874.36 | E48: 0 | F48: 171045099.2 | G48: 29972408.71 | H48: 0.1220499981 | I48: 3395.804889 | J48: 5226.011188 | K48: 0 | L48: 24000.79374 | M48: 3874.90217 | N48: 0.09679963845 | O48: -445653.4818 | P48: -643976.3821 | Q48: 0 | R48: -489073.78 | S48: -417585.0939 | T48: -0.1676547136
A49: SDGE3240 | B49: SW-Lighting-Lighting Market Transformation | D49: 0 | E49: 0 | G49: 0 | H49: 0 | J49: 0 | K49: 0 | M49: 0 | N49: 0 | P49: 0 | Q49: 0 | S49: 0 | T49: 0 | U49: 0 | W49: 0 | X49: 0 | Z49: 0 | AC49: 0 | AF49: 0 | AI49: 0 | AL49: 0 | AO49: 0 | AP49: Core - SW | AQ49: Lighting Mkt Trans | AR49: No | AS49: New | AT49: Lighting Market Transformation
A50: SDGE3241 | B50: SW-Lighting-Lighting Innovation-ETPC MD | D50: 0 | E50: 0 | G50: 0 | H50: 0 | J50: 0 | K50: 0 | M50: 0 | N50: 0 | P50: 0 | Q50: 0 | S50: 0 | T50: 0 | U50: 0 | W50: 0 | X50: 0 | Z50: 0 | AC50: 0 | AF50: 0 | AI50: 0 | AL50: 0 | AO50: 0 | AP50: Core - SW | AQ50: Residential | AR50: No | AS50: New | AT50: Residential Programs
A51: SDGE3242 | B51: SW-Lighting-Lighting Innovation-ETPC Pilots | D51: 0 | E51: 0 | G51: 0 | H51: 0 | J51: 0 | K51: 0 | M51: 0 | N51: 0 | P51: 0 | Q51: 0 | S51: 0 | T51: 0 | U51: 0 | W51: 0 | X51: 0 | Z51: 0 | AC51: 0 | AF51: 0 | AI51: 0 | AL51: 0 | AO51: 0 | AP51: Core - SW | AQ51: Commercial | AR51: No | AS51: New | AT51: Commercial Programs
A52: SDGE3243 | B52: SW-Lighting-Lighting Innovation-ETPC Advanced LED | D52: 0 | E52: 0 | G52: 0 | H52: 0 | J52: 0 | K52: 0 | M52: 0 | N52: 0 | P52: 0 | Q52: 0 | S52: 0 | T52: 0 | U52: 0 | W52: 0 | X52: 0 | Z52: 0 | AC52: 0 | AF52: 0 | AI52: 0 | AL52: 0 | AO52: 0 | AP52: Core - SW | AQ52: Commercial | AR52: No | AS52: New | AT52: Commercial Programs
A53: SDGE3244 | B53: SW-Lighting-Lighting Innovation-ETPC Plug-In Lamp Exchange | D53: 0 | E53: 0 | G53: 0 | H53: 0 | J53: 0 | K53: 0 | M53: 0 | N53: 0 | P53: 0 | Q53: 0 | S53: 0 | T53: 0 | U53: 0 | W53: 0 | X53: 0 | Z53: 0 | AC53: 0 | AF53: 0 | AI53: 0 | AL53: 0 | AO53: 0 | AP53: Core - SW | AQ53: Residential | AR53: No | AS53: Revised | AT53: Residential Programs
A54: SDGE3245 | B54: SW-Lighting-Primary Lighting | C54: 103471146 | D54: 43135874.36 | E54: 0 | F54: 171045099.2 | G54: 29972408.71 | H54: 0.1220499981 | I54: 3395.804889 | J54: 5226.011188 | K54: 0 | L54: 24000.79374 | M54: 3874.90217 | N54: 0.09679963845 | O54: -445653.4818 | P54: -643976.3821 | Q54: 0 | R54: -489073.78 | S54: -417585.0939 | T54: -0.1676547136 | U54: 2.51 | V54: 2.607102626 | W54: 1.5467 | X54: 5.48 | Y54: 6.693207171 | Z54: 2.387 | AA54: 0.5415839994 | AB54: 0.5415839994 | AC54: 0.560608513 | AD54: 0.5401545947 | AE54: 0.5401545947 | AF54: 0.556500125 | AI54: 0.565217003 | AJ54: 6.329431882 | AK54: 6.329431882 | AL54: 5.859070395 | AO54: 0 | AP54: Core - SW | AQ54: Cross Cutting | AR54: No | AS54: New | AT54: Residential Programs
B55: Local Partnerships | C55: 0 | D55: 0 | E55: 0 | F55: 0 | G55: 0 | H55: 0 | I55: 0 | J55: 0 | K55: 0 | L55: 0 | M55: 0 | N55: 0 | O55: 0 | P55: 0 | Q55: 0 | R55: 0 | S55: 0 | T55: 0
A56: SDGE3266 | B56: LInstP-CA Department of Corrections Partnership | AP56: Core - Local | AQ56: Govt Partnerships | AR56: No | AS56: Revised | AT56: Commercial Programs
A57: SDGE3267 | B57: LInstP-California Community College Partnership | AP57: Core - SW | AQ57: Govt Partnerships | AR57: No | AS57: Revised | AT57: Government Partnerships
A58: SDGE3268 | B58: LInstP-UC/CSU/IOU Partnership | AP58: Core - SW | AQ58: Govt Partnerships | AR58: No | AS58: Revised | AT58: Government Partnerships
A59: SDGE3269 | B59: LInstP-State of California /IOU | AP59: Core - SW | AQ59: Govt Partnerships | AR59: No | AS59: Revised | AT59: Commercial Programs
A60: SDGE3270 | B60: LInstP-University of San Diego Partnership | AP60: Core - Local | AQ60: Govt Partnerships | AR60: No | AS60: Revised | AT60: Commercial Programs
A61: SDGE3271 | B61: LInstP-San Diego County Water Authority Partnership | AP61: Core - Local | AQ61: Govt Partnerships | AR61: No | AS61: Revised | AT61: Residential Programs
A62: SDGE3272 | B62: LGP- City of Chula Vista Partnership | AP62: Govt Partnerships | AQ62: Govt Partnerships | AR62: No | AS62: Revised | AT62: Government Partnerships
A63: SDGE3273 | B63: LGP- City of San Diego Partnership | AP63: Govt Partnerships | AQ63: Govt Partnerships | AR63: No | AS63: Revised | AT63: Government Partnerships
A64: SDGE3274 | B64: LGP- County of San Diego Partnership | AP64: Govt Partnerships | AQ64: Govt Partnerships | AR64: No | AS64: Revised | AT64: Government Partnerships
A65: SDGE3275 | B65: LGP- Port of San Diego Partnership | AP65: Govt Partnerships | AQ65: Govt Partnerships | AR65: No | AS65: Revised | AT65: Government Partnerships
A66: SDGE3276 | B66: LGP- SANDAG Partnership | AP66: Govt Partnerships | AQ66: Govt Partnerships | AR66: No | AS66: Revised | AT66: Government Partnerships
A67: SDGE3277 | B67: LGP- SEEC Partnership | AP67: Govt Partnerships | AQ67: Govt Partnerships | AR67: No | AS67: Revised | AT67: Government Partnerships
A68: SDGE3278 | B68: LGP- Emerging Cities Partnership | AP68: Govt Partnerships | AQ68: Govt Partnerships | AR68: No | AS68: Revised | AT68: Government Partnerships
B69: SDG&E Third Party Programs | C69: 1519172.535 | D69: 1704622.39 | E69: 0 | F69: 1466286.435 | G69: 2810301.87 | H69: 0.01144376954 | I69: 1379.527959 | J69: 1348.94562 | K69: 0 | L69: 1328.618159 | M69: 1754.039166 | N69: 0.04381797259 | O69: 75428.13082 | P69: 38737.15448 | Q69: 0 | R69: 72616.74142 | S69: 150503.0075 | T69: 0.06042490257
A70: SDGE3279 | B70: 3P-Res-Comprehensive Manufactured-Mobile Home | C70: 1519172.535 | D70: 1704622.39 | E70: 0 | F70: 1466286.435 | G70: 2810301.87 | H70: 0.01144376954 | I70: 1379.527959 | J70: 1348.94562 | K70: 0 | L70: 1328.618159 | M70: 1754.039166 | N70: 0.04381797259 | O70: 75428.13082 | P70: 38737.15448 | Q70: 0 | R70: 72616.74142 | S70: 150503.0075 | T70: 0.06042490257 | U70: 0.94 | V70: 1.05235322 | W70: 1.6435 | X70: 1.04 | Y70: 1.100369798 | Z70: 1.718 | AA70: 0.8029102786 | AB70: 0.8029102786 | AC70: 0.849637619 | AD70: 0.782742093 | AE70: 0.782742093 | AF70: 0.849873264 | AG70: 0.7469653978 | AH70: 0.7469653978 | AI70: 0.850020148 | AJ70: 15.87478278 | AK70: 15.87478278 | AL70: 13.89348589 | AM70: 15.33777083 | AN70: 15.33777083 | AO70: 13.86758902 | AP70: 3P | AQ70: Residential | AR70: No | AS70: Revised | AT70: Residential Programs
A71: SDGE3280 | B71: 3P-IDEA | D71: 0 | E71: 0 | G71: 0 | H71: 0 | J71: 0 | K71: 0 | M71: 0 | N71: 0 | P71: 0 | Q71: 0 | S71: 0 | T71: 0 | U71: 0 | W71: 0 | X71: 0 | Z71: 0 | AC71: 0 | AF71: 0 | AI71: 0 | AL71: 0 | AO71: 0 | AP71: 3P | AQ71: Cross Cutting | AR71: No | AS71: New | AT71: Commercial Programs
A72: SDGE3290 | B72: 3P-Res-Electric Resistance Heating Thermostat | D72: 0 | E72: 0 | G72: 0 | H72: 0 | J72: 0 | K72: 0 | M72: 0 | N72: 0 | P72: 0 | Q72: 0 | S72: 0 | T72: 0 | U72: 0 | W72: 0 | X72: 0 | Z72: 0 | AC72: 0 | AF72: 0 | AI72: 0 | AL72: 0 | AO72: 0 | AP72: 3P | AQ72: Residential | AR72: No | AS72: Revised | AT72: Residential Programs
A73: SDGE3306 | B73: 3P-RES-Splash | D73: 0 | E73: 0 | G73: 0 | J73: 0 | K73: 0 | M73: 0 | P73: 0 | Q73: 0 | S73: 0 | U73: 0 | W73: 0 | X73: 0 | Z73: 0 | AC73: 0 | AL73: 0 | AP73: 3P | AQ73: Residential | AR73: No | AS73: New | AT73: Residential Programs
B74: SW Emerging Technologies Programs | C74: 0 | D74: 0 | E74: 0 | F74: 0 | G74: 0 | H74: 0 | I74: 0 | J74: 0 | K74: 0 | L74: 0 | M74: 0 | N74: 0 | O74: 0 | P74: 0 | Q74: 0 | R74: 0 | S74: 0 | T74: 0
A75: SDGE3246 | B75: SW-ET-Technology Introduction Support | AP75: Core - SW | AQ75: Cross Cutting | AR75: No | AS75: Revised | AT75: Emerging Technology Programs
A76: SDGE3247 | B76: SW-ET-Technology Assessment Support | AP76: Core - SW | AQ76: Cross Cutting | AR76: No | AS76: Revised | AT76: Emerging Technology Programs
A77: SDGE3248 | B77: SW-ET-Technology Deployment Support | AP77: Core - SW | AQ77: Cross Cutting | AR77: No | AS77: Revised | AT77: Emerging Technology Programs
B78: SW Finance | C78: 18900000 | D78: 0 | E78: 0 | F78: 90000000 | G78: 0 | H78: 0 | I78: 2423.243797 | J78: 0 | K78: 0 | L78: 12122.18647 | M78: 0 | N78: 0 | O78: 127.7871266 | P78: 0 | Q78: 0 | R78: 697.0206903 | S78: 0 | T78: 0
A79: SDGE3262 | B79: SW-FIN-On-Bill Finance | C79: 0 | D79: 0 | E79: 0 | F79: 0 | G79: 0 | H79: 0 | I79: 0 | L79: 0 | M79: 0 | N79: 0 | O79: 0 | R79: 0 | S79: 0 | T79: 0 | AP79: Core - SW | AQ79: Commercial | AR79: No | AS79: Revised | AT79: Commercial Programs
A80: SDGE3263 | B80: SW-FIN-ARRA Originated Financing | C80: 5400000 | D80: 0 | E80: 0 | F80: 13500000 | G80: 0 | H80: 0 | I80: 528.4062266 | L80: 1894.837571 | M80: 0 | N80: 0 | O80: 11.61701151 | R80: 116.1701151 | S80: 0 | T80: 0 | V80: 3.536547944 | Y80: 7.368424039 | AJ80: 8.240990316 | AK80: 8.240990316 | AM80: 8.277006237 | AN80: 8.277006237 | AP80: Core - SW | AQ80: Commercial | AR80: Yes | AS80: New | AT80: Commercial Programs
A81: SDGE3264 | B81: SW-FIN-New Finance Offerings | C81: 13500000 | D81: 0 | E81: 0 | F81: 76500000 | G81: 0 | H81: 0 | I81: 1894.837571 | L81: 10227.3489 | M81: 0 | N81: 0 | O81: 116.1701151 | R81: 580.8505753 | S81: 0 | T81: 0 | V81: 3.710378571 | Y81: 6.359511787 | AJ81: 7.257861635 | AK81: 7.257861635 | AM81: 8.277006237 | AN81: 8.277006237 | AP81: Core - SW | AQ81: Commercial | AR81: Yes | AS81: New | AT81: Commercial Programs
A82: SDGE3296 | B82: Small Business Lease Off-Bill | D82: 0 | E82: 0 | AP82: Core - SW | AQ82: Commercial | AR82: No | AS82: New | AT82: Commercial Programs
A83: SDGE3297 | B83: Single-family Loan Program | D83: 0 | E83: 0 | AP83: Core - SW | AQ83: Residential | AR83: No | AS83: New | AT83: Residential Programs
A84: SDGE3298 | B84: Medium/Large OBR | D84: 0 | E84: 0 | AP84: Core - SW | AQ84: Commercial | AR84: No | AS84: New | AT84: Commercial Programs
A85: SDGE3299 | B85: Master Metered Multifamily OBR | D85: 0 | E85: 0 | AP85: Core - SW | AQ85: Residential | AR85: No | AS85: New | AT85: Residential Programs
A86: SDGE3300 | B86: Small Business Lease OBR | D86: 0 | E86: 0 | AP86: Core - SW | AQ86: Commercial | AR86: No | AS86: New | AT86: Commercial Programs
A87: SDGE3301 | B87: Small Business Loan OBR | D87: 0 | E87: 0 | AP87: Core - SW | AQ87: Commercial | AR87: No | AS87: New | AT87: Commercial Programs
B88: SW Codes & Standards | C88: 59478165 | D88: 59478164.87 | E88: 0 | F88: 55896601 | G88: 66148869.48 | H88: 0.2693633826 | I88: 7155.88 | J88: 7155.885365 | K88: 0 | L88: 7597.97 | M88: 10342.64411 | N88: 0.2583714805 | O88: 8395.16 | P88: 8395.184358 | Q88: 0 | R88: 62859.53 | S88: 125619.9379 | T88: 0.05043468987
A89: SDGE3249 | B89: SW C&S - Building Codes & Compliance Advocacy | C89: 59478165 | D89: 59478164.87 | E89: 0 | F89: 55896601 | G89: 66148869.48 | H89: 0.2693633826 | I89: 7155.88 | J89: 7155.885365 | K89: 0 | L89: 7597.97 | M89: 10342.64411 | N89: 0.2583714805 | O89: 8395.16 | P89: 8395.184358 | Q89: 0 | R89: 62859.53 | S89: 125619.9379 | T89: 0.05043468987 | V89: 4.364015273 | W89: 5.47 | Y89: 377.3190891 | Z89: 184.31 | AC89: 0.214410122 | AD89: 0.3204367527 | AF89: 0.172285804 | AI89: 4.302990675 | AJ89: 9.073631515 | AK89: 9.073631515 | AL89: 12.14534299 | AM89: 15.53624031 | AN89: 15.53624031 | AO89: 15.55302658 | AP89: Core - SW | AQ89: Cross Cutting | AR89: No | AS89: Revised | AT89: Codes and Standards
A90: SDGE3250 | B90: SW C&S - Appliance Standards Advocacy | D90: 0 | E90: 0 | G90: 0 | H90: 0 | J90: 0 | K90: 0 | M90: 0 | N90: 0 | P90: 0 | Q90: 0 | S90: 0 | T90: 0 | AC90: 0 | AP90: Core - SW | AQ90: Cross Cutting | AR90: No | AS90: Revised | AT90: Codes and Standards
A91: SDGE3251 | B91: SW C&S - Compliance Enhancement | D91: 0 | E91: 0 | G91: 0 | H91: 0 | J91: 0 | K91: 0 | M91: 0 | N91: 0 | P91: 0 | Q91: 0 | S91: 0 | T91: 0 | AC91: 0 | AP91: Core - SW | AQ91: Cross Cutting | AR91: No | AS91: Revised | AT91: Codes and Standards
A92: SDGE3252 | B92: SW C&S - Reach Codes | D92: 0 | E92: 0 | G92: 0 | H92: 0 | J92: 0 | K92: 0 | M92: 0 | N92: 0 | P92: 0 | Q92: 0 | S92: 0 | T92: 0 | AC92: 0 | AP92: Core - SW | AQ92: Cross Cutting | AR92: No | AS92: Revised | AT92: Codes and Standards
A93: SDGE3253 | B93: SW C&S - Planning Coordination | D93: 0 | E93: 0 | G93: 0 | H93: 0 | J93: 0 | K93: 0 | M93: 0 | N93: 0 | P93: 0 | Q93: 0 | S93: 0 | T93: 0 | AC93: 0 | AP93: Core - SW | AQ93: Cross Cutting | AR93: No | AS93: New | AT93: Codes and Standards
B94: SW Integrated Demand Side Management | C94: 0 | D94: 0 | E94: 0 | F94: 0 | G94: 0 | H94: 0 | I94: 0 | J94: 0 | K94: 0 | L94: 0 | M94: 0 | N94: 0 | O94: 0 | P94: 0 | Q94: 0 | R94: 0 | S94: 0 | T94: 0
A95: SDGE3260 | B95: Local-IDSM-ME&O-Local Marketing (EE) | AP95: Core - Local | AQ95: Cross Cutting | AR95: No | AS95: New | AT95: ME&O Programs
A96: SDGE3261 | B96: Local-IDSM-ME&O-Behavioral Programs (EE) | AP96: Core - Local | AQ96: Residential | AR96: Yes | AS96: New | AT96: Residential Programs
A97: SDGE3282 | B97: SW-IDSM-IDSM | AP97: Core - SW | AQ97: Cross Cutting | AR97: No | AS97: Revised | AT97: DSM Integration Programs
A98: SDGE3289 | B98: Local IDSM Pilot | AP98: Core - Local | AQ98: Commercial | AR98: Yes | AS98: New | AT98: Commercial Programs Programs
A99: SDGE3304 | B99: Local IDSM Small Commercial Behavior Pilot | AP99: Core - Local | AQ99: Commercial | AR99: Yes | AS99: New | AT99: DSM Integration Program
B100: SW Marketing, Education & Outreach | C100: 0 | D100: 0 | E100: 0 | F100: 0 | G100: 0 | H100: 0 | I100: 0 | J100: 0 | K100: 0 | L100: 0 | M100: 0 | N100: 0 | O100: 0 | P100: 0 | Q100: 0 | R100: 0 | S100: 0 | T100: 0
A101: SDGE3258 | B101: SW-ME&O-Strategic Plan | AP101: Core - SW | AQ101: Cross Cutting | AR101: No | AS101: Revised | AT101: Commercial Programs Programs
A102: SDGE3259 | B102: SW-ME&O | AP102: Core - SW | AQ102: Cross Cutting | AR102: No | AS102: Revised | AT102: ME&O Programs
B103: SW Workforce Education & Training | C103: 0 | D103: 0 | E103: 0 | F103: 0 | G103: 0 | H103: 0 | I103: 0 | J103: 0 | K103: 0 | L103: 0 | M103: 0 | N103: 0 | O103: 0 | P103: 0 | Q103: 0 | R103: 0 | S103: 0 | T103: 0
A104: SDGE3254 | B104: SW-WE&T-Centergies | AP104: Core - SW | AQ104: Cross Cutting | AR104: No | AS104: New | AT104: WE&T Programs
A105: SDGE3255 | B105: SW-WE&T-Connections | AP105: Core - SW | AQ105: Cross Cutting | AR105: No | AS105: New | AT105: WE&T Programs
A106: SDGE3256 | B106: SW-WE&T-Connections K-12 | AP106: 3P | AQ106: Residential | AR106: No | AS106: Revised | AT106: WE&T Programs
A107: SDGE3257 | B107: SW-WE&T-Strategic Planning | AP107: Core - SW | AQ107: Cross Cutting | AR107: No | AS107: New | AT107: WE&T Programs
A108: SDGE3288 | B108: CRM | AQ108: Cross Cutting | AR108: No | AS108: Revised | AT108: Commercial Programs
A109: SDGE3281 | B109: EM&V-Evaluation Measurement & Verification | AQ109: Cross Cutting | AT109: EM&V
A112: Low Income | B112: Low Income Energy Efficiency
B114: TOTAL | C114: 321565101.9 | D114: 195449187.5 | E114: 19088189.27 | F114: 452999242.8 | G114: 245574839.6 | H114: 1 | I114: 40282.35023 | J114: 30328.69203 | K114: 2187.70425 | L114: 70556.4513 | M114: 40030.13061 | N114: 1 | O114: 2685901.288 | P114: 365290.7186 | Q114: 43999.03222 | R114: 2568220.818 | S114: 2490744.728 | T114: 1 | AA114: 0 | AB114: 0 | AC114: 0 | AD114: 0 | AE114: 0 | AJ114: 0 | AK114: 0 | AL114: 0 | AM114: 0 | AN114: 0 | AO114: 0

Sheet App b.3 Unspent_
A1: Appendix B.3 – Budget, spent, unspent and Carryover Details | C1: Total Budget, Spent and Unspent | G1: Total 2013 Authorized minus Spent from 2013 Authorized (column H) by Category (2) | K1: Detail for pre-2010 may be shown by fund shifting category or sector/area if a matching or similar current program does not exist.
A2: ProgramCode | B2: Main Program Name / Sub-Programs | C2: 2013-14 Authorized Program Budget Annualized | D2: 2013 Spent (Preliminary) (1) | E2: pre 2013-2014 Carryover spent in 2013 | F2: 2013-14 Authorized Program Budget Annualized not Spent (E minus F plus G) | G2: 2013 Unspent but accrued for 2013(2) | H2: 2013 Committed and/or encumbered funds (3) | I2: 2013 Unspent - planned for use in 2014 | J2: 2013 Unspent - available for 2015 (4) | K2: pre 2013 CARRYOVER to 2014 and beyond | L2: 2013 CARRYOVER to 2014 and beyond | M2: TOTAL CARRYOVER | N2: Program Type | O2: Market Sector | P2: Pilot Program | Q2: Program Status | R2: Utility Grouping
B3: SW CALSPREE | C3: 20105.17 | D3: 12563.59 | E3: 253.709 | F3: 7795.289 | G3: 0 | H3: 0 | I3: 0 | J3: 0 | K3: 0 | L3: 0 | M3: 0
A4: SDGE3201 | B4: SW-CALS-Energy Advisor-HEES, UAT | C4: 410.06 | D4: 360.04 | E4: 0 | F4: 50.02 | G4: 0 | H4: 0 | I4: 0 | J4: 0 | K4: 0 | L4: 0 | M4: 0 | N4: Core - SW | O4: Residential | P4: No | Q4: Revised | R4: Residential Programs
A5: SDGE3203 | B5: SW-CALS-Plug Load and Appliances-HEER | C5: 2405.33 | D5: 1265.37 | E5: 0 | F5: 1139.96 | G5: 0 | H5: 0 | I5: 0 | J5: 0 | K5: 0 | L5: 0 | M5: 0 | N5: Core - SW | O5: Residential | P5: No | Q5: New | R5: Residential Programs
A6: SDGE3204 | B6: SW-CALS-Plug Load and Appliances-POS Rebates | C6: 430.78 | D6: 619.07 | E6: 0 | F6: -188.29 | G6: 0 | H6: 0 | I6: 0 | J6: 0 | K6: 0 | L6: 0 | M6: 0 | N6: Core - SW | O6: Residential | P6: No | Q6: New | R6: Residential Programs
A7: SDGE3205 | B7: SW-CALS-Plug Load and Appliances-BCE | C7: 400.28 | D7: 77.07 | E7: 0 | F7: 323.21 | G7: 0 | H7: 0 | I7: 0 | J7: 0 | K7: 0 | L7: 0 | M7: 0 | N7: Core - SW | O7: Residential | P7: No | Q7: New | R7: Residential Programs
A8: SDGE3206 | B8: SW-CALS-Plug Load and Appliances-ARP | C8: 2902.49 | D8: 1641.22 | E8: 0 | F8: 1261.27 | G8: 0 | H8: 0 | I8: 0 | J8: 0 | K8: 0 | L8: 0 | M8: 0 | N8: 3P | O8: Residential | P8: No | Q8: New | R8: Residential Programs
A9: SDGE3207 | B9: SW-CALS-MFEER | C9: 1701.29 | D9: 1187.88 | E9: 0 | F9: 513.41 | G9: 0 | H9: 0 | I9: 0 | J9: 0 | K9: 0 | L9: 0 | M9: 0 | N9: Core - SW | O9: Residential | P9: No | Q9: Revised | R9: Residential Programs
A10: SDGE3208 | B10: SW-CALS - EUC WHRP - Basic | C10: 0 | D10: 0 | E10: 0 | F10: 0 | G10: 0 | H10: 0 | I10: 0 | J10: 0 | K10: 0 | L10: 0 | M10: 0 | N10: Core - SW | O10: Residential | P10: No | Q10: New | R10: Residential Programs
A11: SDGE3209 | B11: SW-CALS - EUC WHRP - Advanced | C11: 5662.3 | D11: 3333.15 | E11: 0 | F11: 2329.15 | G11: 0 | H11: 0 | I11: 0 | J11: 0 | K11: 0 | L11: 0 | M11: 0 | N11: Core - SW | O11: Residential | P11: No | Q11: New | R11: Residential Programs
A12: SDGE3210 | B12: SW-CALS - EUC WHRP - Multifamily | C12: 0 | D12: 0 | E12: 0 | F12: 0 | G12: 0 | H12: 0 | I12: 0 | J12: 0 | K12: 0 | L12: 0 | M12: 0 | N12: Core - SW | O12: Residential | P12: No | Q12: Revised | R12: Residential Programs
A13: SDGE3211 | B13: Local-CALS - Middle Income Direct Install (MIDI) | C13: 2199.45 | D13: 536.05 | E13: 0 | F13: 1663.4 | G13: 0 | H13: 0 | I13: 0 | J13: 0 | K13: 0 | L13: 0 | M13: 0 | N13: Core - Local | O13: Residential | P13: No | Q13: New | R13: Residential Programs
A14: SDGE3212 | B14: SW-CALS – Residential HVAC-QI/QM | C14: 1253.64 | D14: 1177.11 | E14: 0 | F14: 76.53 | G14: 0 | H14: 0 | I14: 0 | J14: 0 | K14: 0 | L14: 0 | M14: 0 | N14: 3P | O14: Residential | P14: No | Q14: Revised | R14: HVAC
A15: SDGE3213 | B15: SW-CALS - CAHP/ESMH-CA Advanced Homes | C15: 2516.71 | D15: 2316.48 | E15: 253.709 | F15: 453.939 | G15: 0 | H15: 0 | I15: 0 | J15: 0 | K15: 0 | L15: 0 | M15: 0 | N15: Core - SW | O15: Residential | P15: No | Q15: Revised | R15: New Construction
A16: SDGE3214 | B16: SW-CALS - CAHP/ESMH-E Star Manufactured Homes | C16: 61.18 | D16: 20.08 | E16: 0 | F16: 41.1 | G16: 0 | H16: 0 | I16: 0 | J16: 0 | K16: 0 | L16: 0 | M16: 0 | N16: Core - SW | O16: Residential | P16: No | Q16: Revised | R16: New Construction
A17: SDGE3293 | B17: SW-CALS – Residential HVAC-HVAC Core | C17: 161.66 | D17: 30.07 | E17: 0 | F17: 131.59 | G17: 0 | H17: 0 | I17: 0 | J17: 0 | K17: 0 | L17: 0 | M17: 0 | N17: Core - SW | O17: Residential | P17: No | Q17: Revised | R17: HVAC
A18: SDGE3302 | B18: RES Upstream HVAC Incentive Program | C18: 0 | D18: 0 | E18: 0 | F18: 0 | G18: 0 | H18: 0 | I18: 0 | J18: 0 | K18: 0 | L18: 0 | M18: 0 | N18: Core - SW | O18: Residential | P18: No | Q18: New | R18: HVAC
A19: SDGE3303 | B19: HVAC To Code Compliance Incentive Program | C19: 0 | D19: 0 | E19: 0 | F19: 0 | G19: 0 | H19: 0 | I19: 0 | J19: 0 | K19: 0 | L19: 0 | M19: 0 | N19: Core - SW | O19: Residential | P19: yes | Q19: New | R19: HVAC
B20: SW Commercial EE Program | C20: 38120.29 | D20: 36070.52 | E20: 1844.898 | F20: 3894.668 | G20: 0 | H20: 0 | I20: 0 | J20: 0 | K20: 0 | L20: 0 | M20: 0
A21: SDGE3215 | B21: SW-COM-Continuous Energy Improvement | C21: 381.84 | D21: 149.12 | E21: 0 | F21: 232.72 | G21: 0 | H21: 0 | I21: 0 | J21: 0 | K21: 0 | L21: 0 | M21: 0 | N21: Core - SW | O21: Commercial | P21: Yes | Q21: Revised | R21: Commercial Programs
A22: SDGE3216 | B22: SW-COM-Customer Services-Benchmarking | C22: 130.55 | D22: 84.79 | E22: 0 | F22: 45.76 | G22: 0 | H22: 0 | I22: 0 | J22: 0 | K22: 0 | L22: 0 | M22: 0 | N22: Core - SW | O22: Commercial | P22: No | Q22: New | R22: Commercial Programs
A23: SDGE3217 | B23: SW-COM-Customer Services- Audits NonRes | C23: 545.45 | D23: 164.3 | E23: 0 | F23: 381.15 | G23: 0 | H23: 0 | I23: 0 | J23: 0 | K23: 0 | L23: 0 | M23: 0 | N23: Core - SW | O23: Commercial | P23: No | Q23: Revised | R23: Commercial Programs
A24: SDGE3218 | B24: SW-COM-Customer Services-Audits Healthcare Energy Efficiency (HEEP) | C24: 682.82 | D24: 813.8 | E24: 0 | F24: -130.98 | G24: 0 | H24: 0 | I24: 0 | J24: 0 | K24: 0 | L24: 0 | M24: 0 | N24: 3P | O24: Commercial | P24: No | Q24: Revised | R24: Commercial Programs
A25: SDGE3219 | B25: SW-COM-Customer Services-Audits Lodging Energy Efficiency (LEEP) | C25: 722.82 | D25: 1185.74 | E25: 0 | F25: -462.92 | G25: 0 | H25: 0 | I25: 0 | J25: 0 | K25: 0 | L25: 0 | M25: 0 | N25: 3P | O25: Commercial | P25: No | Q25: Revised | R25: Commercial Programs
A26: SDGE3220 | B26: SW-COM-Calculated Incentives-Calculated | C26: 10831.36 | D26: 8614.23 | E26: 1698.415 | F26: 3915.545 | G26: 0 | H26: 0 | I26: 0 | J26: 0 | K26: 0 | L26: 0 | M26: 0 | N26: Core - SW | O26: Commercial | P26: No | Q26: Revised | R26: Commercial Programs
A27: SDGE3221 | B27: SW-COM-Calculated Incentives-RCx | C27: 1179.77 | D27: 1820.88 | E27: 0 | F27: -641.11 | G27: 0 | H27: 0 | I27: 0 | J27: 0 | K27: 0 | L27: 0 | M27: 0 | N27: 3P | O27: Commercial | P27: No | Q27: Revised | R27: Commercial Programs
A28: SDGE3222 | B28: SW-COM-Calculated Incentives-Savings by Design | C28: 5366.21 | D28: 4244.25 | E28: 146.483 | F28: 1268.443 | G28: 0 | H28: 0 | I28: 0 | J28: 0 | K28: 0 | L28: 0 | M28: 0 | N28: Core - SW | O28: Commercial | P28: No | Q28: Revised | R28: New Construction
A29: SDGE3223 | B29: SW-COM-Deemed Incentives-Commercial Rebates | C29: 6060.31 | D29: 3426.31 | E29: 0 | F29: 2634 | G29: 0 | H29: 0 | I29: 0 | J29: 0 | K29: 0 | L29: 0 | M29: 0 | N29: Core - SW | O29: Commercial | P29: No | Q29: Revised | R29: Commercial Programs
A30: SDGE3224 | B30: SW-COM-Deemed Incentives-HVAC Commercial | C30: 2824.63 | D30: 2887.01 | E30: 0 | F30: -62.38 | G30: 0 | H30: 0 | I30: 0 | J30: 0 | K30: 0 | L30: 0 | M30: 0 | N30: 3P | O30: Commercial | P30: No | Q30: Revised | R30: HVAC
A31: SDGE3225 | B31: SW-COM-Deemed Incentives-HVAC Core | C31: 219.76 | D31: 48.28 | E31: 0 | F31: 171.48 | G31: 0 | H31: 0 | I31: 0 | J31: 0 | K31: 0 | L31: 0 | M31: 0 | N31: Core - SW | O31: Commercial | P31: No | Q31: Revised | R31: HVAC
A32: SDGE3226 | B32: SW-COM Direct Install | C32: 8941.51 | D32: 12380.65 | E32: 0 | F32: -3439.14 | G32: 0 | H32: 0 | I32: 0 | J32: 0 | K32: 0 | L32: 0 | M32: 0 | N32: 3P | O32: Commercial | P32: No | Q32: Revised | R32: Commercial Programs
A33: SDGE3227 | B33: SW-IND-Continuous Energy Improvement | C33: 197.34 | D33: 206.75 | E33: 0 | F33: -9.41 | G33: 0 | H33: 0 | I33: 0 | J33: 0 | K33: 0 | L33: 0 | M33: 0 | N33: Core - SW | O33: Industrial | P33: Yes | Q33: Revised | R33: Industrial Programs
A34: SDGE3292 | B34: SW-Com-Customer Services-Pump Test Services | C34: 35.92 | D34: 44.41 | E34: 0 | F34: -8.49 | G34: 0 | H34: 0 | I34: 0 | J34: 0 | K34: 0 | L34: 0 | M34: 0 | N34: 3P | O34: Commercial | P34: No | Q34: Revised | R34: Commercial Programs
B35: SW Industrial Programs | C35: 2879.11 | D35: 2002.27 | E35: 0 | F35: 876.84 | G35: 0 | H35: 0 | I35: 0 | J35: 0 | K35: 0 | L35: 0 | M35: 0
A36: SDGE3228 | B36: SW-IND-Customer Services-Benchmarking | C36: 28.23 | D36: 0 | E36: 0 | F36: 28.23 | G36: 0 | H36: 0 | I36: 0 | J36: 0 | K36: 0 | L36: 0 | M36: 0 | N36: Core - SW | O36: Industrial | P36: No | Q36: New | R36: Industrial Programs
A37: SDGE3229 | B37: SW-IND-Customer Services-Audits NonRes | C37: 82.05 | D37: 98.9 | E37: 0 | F37: -16.85 | G37: 0 | H37: 0 | I37: 0 | J37: 0 | K37: 0 | L37: 0 | M37: 0 | N37: Core - SW | O37: Industrial | P37: No | Q37: Revised | R37: Industrial Programs
A38: SDGE3230 | B38: SW-IND-Customer Services-Audits CIEEP | C38: 397.67 | D38: 485.01 | E38: 0 | F38: -87.34 | G38: 0 | H38: 0 | I38: 0 | J38: 0 | K38: 0 | L38: 0 | M38: 0 | N38: 3P | O38: Industrial | P38: No | Q38: Revised | R38: Industrial Programs
A39: SDGE3231 | B39: SW-IND-Calculated Incentives-Calculated | C39: 1495.8 | D39: 913.03 | E39: 0 | F39: 582.77 | G39: 0 | H39: 0 | I39: 0 | J39: 0 | K39: 0 | L39: 0 | M39: 0 | N39: Core - SW | O39: Industrial | P39: No | Q39: Revised | R39: Industrial Programs
A40: SDGE3233 | B40: SW-IND-Deemed Incentives | C40: 735.55 | D40: 389.77 | E40: 0 | F40: 345.78 | G40: 0 | H40: 0 | I40: 0 | J40: 0 | K40: 0 | L40: 0 | M40: 0 | N40: Core - SW | O40: Industrial | P40: No | Q40: Revised | R40: Industrial Programs
A41: SDGE3291 | B41: SW-IND-Customer Services-Pump Test Services | C41: 139.81 | D41: 115.56 | E41: 0 | F41: 24.25 | G41: 0 | H41: 0 | I41: 0 | J41: 0 | K41: 0 | L41: 0 | M41: 0 | N41: 3P | O41: Industrial | P41: No | Q41: Revised | R41: Industrial Programs
B42: SW Agricultural Programs | C42: 1206.16 | D42: 301.66 | E42: 0 | F42: 904.5 | G42: 0 | H42: 0 | I42: 0 | J42: 0 | K42: 0 | L42: 0 | M42: 0
A43: SDGE3234 | B43: SW-AG-Customer Services-Benchmarking | C43: 12.31 | D43: 0 | E43: 0 | F43: 12.31 | G43: 0 | H43: 0 | I43: 0 | J43: 0 | K43: 0 | L43: 0 | M43: 0 | N43: Core - SW | O43: Agricultural | P43: No | Q43: New | R43: Agricultural Programs
A44: SDGE3235 | B44: SW-AG-Customer Services-Pump Test Services | C44: 55.99 | D44: 22.95 | E44: 0 | F44: 33.04 | G44: 0 | H44: 0 | I44: 0 | J44: 0 | K44: 0 | L44: 0 | M44: 0 | N44: 3P | O44: Agricultural | P44: No | Q44: Revised | R44: Agricultural Programs
A45: SDGE3236 | B45: SW-AG-Customer Services-Audits | C45: 27.81 | D45: 16.75 | E45: 0 | F45: 11.06 | G45: 0 | H45: 0 | I45: 0 | J45: 0 | K45: 0 | L45: 0 | M45: 0 | N45: Core - SW | O45: Agricultural | P45: No | Q45: Revised | R45: Agricultural Programs
A46: SDGE3237 | B46: SW-AG-Calculated Incentives-Calculated | C46: 718.19 | D46: 161.02 | E46: 0 | F46: 557.17 | G46: 0 | H46: 0 | I46: 0 | J46: 0 | K46: 0 | L46: 0 | M46: 0 | N46: Core - SW | O46: Agricultural | P46: No | Q46: Revised | R46: Agricultural Programs
A47: SDGE3239 | B47: SW-AG-Deemed Incentives | C47: 391.86 | D47: 100.94 | E47: 0 | F47: 290.92 | G47: 0 | H47: 0 | I47: 0 | J47: 0 | K47: 0 | L47: 0 | M47: 0 | N47: Core - SW | O47: Agricultural | P47: No | Q47: Revised | R47: Agricultural Programs
B48: SW Lighting Program | C48: 5852.26 | D48: 3605.51 | E48: 0 | F48: 2246.75 | G48: 0 | H48: 0 | I48: 0 | J48: 0 | K48: 0 | L48: 0 | M48: 0
A49: SDGE3240 | B49: SW-Lighting-Lighting Market Transformation | C49: 327.74 | D49: 125.84 | E49: 0 | F49: 201.9 | G49: 0 | H49: 0 | I49: 0 | J49: 0 | K49: 0 | L49: 0 | M49: 0 | N49: Core - SW | O49: Lighting Mkt Trans | P49: No | Q49: New | R49: Lighting Market Transformation
A50: SDGE3241 | B50: SW-Lighting-Lighting Innovation-ETPC MD | C50: 592.23 | D50: 6.28 | E50: 0 | F50: 585.95 | G50: 0 | H50: 0 | I50: 0 | J50: 0 | K50: 0 | L50: 0 | M50: 0 | N50: Core - SW | O50: Residential | P50: No | Q50: New | R50: Residential Programs
A51: SDGE3242 | B51: SW-Lighting-Lighting Innovation-ETPC Pilots | C51: 584.31 | D51: 6.2 | E51: 0 | F51: 578.11 | G51: 0 | H51: 0 | I51: 0 | J51: 0 | K51: 0 | L51: 0 | M51: 0 | N51: Core - SW | O51: Commercial | P51: No | Q51: New | R51: Commercial Programs
A52: SDGE3243 | B52: SW-Lighting-Lighting Innovation-ETPC Advanced LED | C52: 533.86 | D52: 72.84 | E52: 0 | F52: 461.02 | G52: 0 | H52: 0 | I52: 0 | J52: 0 | K52: 0 | L52: 0 | M52: 0 | N52: Core - SW | O52: Commercial | P52: No | Q52: New | R52: Commercial Programs
A53: SDGE3244 | B53: SW-Lighting-Lighting Innovation-ETPC Plug-In Lamp Exchange | C53: 0 | D53: 0 | E53: 0 | F53: 0 | G53: 0 | H53: 0 | I53: 0 | J53: 0 | K53: 0 | L53: 0 | M53: 0 | N53: Core - SW | O53: Residential | P53: No | Q53: Revised | R53: Residential Programs
A54: SDGE3245 | B54: SW-Lighting-Primary Lighting | C54: 3814.12 | D54: 3394.35 | E54: 0 | F54: 419.77 | G54: 0 | H54: 0 | I54: 0 | J54: 0 | K54: 0 | L54: 0 | M54: 0 | N54: Core - SW | O54: Cross Cutting | P54: No | Q54: New | R54: Residential Programs
B55: Local Partnerships | C55: 8788.75 | D55: 5661.14 | E55: 0 | F55: 3127.61 | G55: 0 | H55: 0 | I55: 0 | J55: 0 | K55: 0 | L55: 0 | M55: 0
A56: SDGE3266 | B56: LInstP-CA Department of Corrections Partnership | C56: 146.69 | D56: 68.46 | E56: 0 | F56: 78.23 | G56: 0 | H56: 0 | I56: 0 | J56: 0 | K56: 0 | L56: 0 | M56: 0 | N56: Core - Local | O56: Govt Partnerships | P56: No | Q56: Revised | R56: Commercial Programs
A57: SDGE3267 | B57: LInstP-California Community College Partnership | C57: 355.23 | D57: 152.13 | E57: 0 | F57: 203.1 | G57: 0 | H57: 0 | I57: 0 | J57: 0 | K57: 0 | L57: 0 | M57: 0 | N57: Core - SW | O57: Govt Partnerships | P57: No | Q57: Revised | R57: Government Partnerships
A58: SDGE3268 | B58: LInstP-UC/CSU/IOU Partnership | C58: 702.08 | D58: 335.39 | E58: 0 | F58: 366.69 | G58: 0 | H58: 0 | I58: 0 | J58: 0 | K58: 0 | L58: 0 | M58: 0 | N58: Core - SW | O58: Govt Partnerships | P58: No | Q58: Revised | R58: Government Partnerships
A59: SDGE3269 | B59: LInstP-State of California /IOU | C59: 175.93 | D59: 63.05 | E59: 0 | F59: 112.88 | G59: 0 | H59: 0 | I59: 0 | J59: 0 | K59: 0 | L59: 0 | M59: 0 | N59: Core - SW | O59: Govt Partnerships | P59: No | Q59: Revised | R59: Commercial Programs
A60: SDGE3270 | B60: LInstP-University of San Diego Partnership | C60: 263.69 | D60: 167.08 | E60: 0 | F60: 96.61 | G60: 0 | H60: 0 | I60: 0 | J60: 0 | K60: 0 | L60: 0 | M60: 0 | N60: Core - Local | O60: Govt Partnerships | P60: No | Q60: Revised | R60: Commercial Programs
A61: SDGE3271 | B61: LInstP-San Diego County Water Authority Partnership | C61: 461.32 | D61: 90.83 | E61: 0 | F61: 370.49 | G61: 0 | H61: 0 | I61: 0 | J61: 0 | K61: 0 | L61: 0 | M61: 0 | N61: Core - Local | O61: Govt Partnerships | P61: No | Q61: Revised | R61: Residential Programs
A62: SDGE3272 | B62: LGP- City of Chula Vista Partnership | C62: 1782.2 | D62: 1282.46 | E62: 0 | F62: 499.74 | G62: 0 | H62: 0 | I62: 0 | J62: 0 | K62: 0 | L62: 0 | M62: 0 | N62: Govt Partnerships | O62: Govt Partnerships | P62: No | Q62: Revised | R62: Government Partnerships
A63: SDGE3273 | B63: LGP- City of San Diego Partnership | C63: 1489.32 | D63: 1104.06 | E63: 0 | F63: 385.26 | G63: 0 | H63: 0 | I63: 0 | J63: 0 | K63: 0 | L63: 0 | M63: 0 | N63: Govt Partnerships | O63: Govt Partnerships | P63: No | Q63: Revised | R63: Government Partnerships
A64: SDGE3274 | B64: LGP- County of San Diego Partnership | C64: 1229.13 | D64: 770.18 | E64: 0 | F64: 458.95 | G64: 0 | H64: 0 | I64: 0 | J64: 0 | K64: 0 | L64: 0 | M64: 0 | N64: Govt Partnerships | O64: Govt Partnerships | P64: No | Q64: Revised | R64: Government Partnerships
A65: SDGE3275 | B65: LGP- Port of San Diego Partnership | C65: 865.11 | D65: 699.28 | E65: 0 | F65: 165.83 | G65: 0 | H65: 0 | I65: 0 | J65: 0 | K65: 0 | L65: 0 | M65: 0 | N65: Govt Partnerships | O65: Govt Partnerships | P65: No | Q65: Revised | R65: Government Partnerships
A66: SDGE3276 | B66: LGP- SANDAG Partnership | C66: 765.92 | D66: 646.02 | E66: 0 | F66: 119.9 | G66: 0 | H66: 0 | I66: 0 | J66: 0 | K66: 0 | L66: 0 | M66: 0 | N66: Govt Partnerships | O66: Govt Partnerships | P66: No | Q66: Revised | R66: Government Partnerships
A67: SDGE3277 | B67: LGP- SEEC Partnership | C67: 172.52 | D67: 193.42 | E67: 0 | F67: -20.9 | G67: 0 | H67: 0 | I67: 0 | J67: 0 | K67: 0 | L67: 0 | M67: 0 | N67: Govt Partnerships | O67: Govt Partnerships | P67: No | Q67: Revised | R67: Government Partnerships
A68: SDGE3278 | B68: LGP- Emerging Cities Partnership | C68: 379.61 | D68: 88.78 | E68: 0 | F68: 290.83 | G68: 0 | H68: 0 | I68: 0 | J68: 0 | K68: 0 | L68: 0 | M68: 0 | N68: Govt Partnerships | O68: Govt Partnerships | P68: No | Q68: Revised | R68: Government Partnerships
B69: SDG&E Third Party Programs | C69: 2640.41 | D69: 2474.99 | E69: 0 | F69: 165.42 | G69: 0 | H69: 0 | I69: 0 | J69: 0 | K69: 0 | L69: 0 | M69: 0
A70: SDGE3279 | B70: 3P-Res-Comprehensive Manufactured-Mobile Home | C70: 2207 | D70: 2468.43 | E70: 0 | F70: -261.43 | G70: 0 | H70: 0 | I70: 0 | J70: 0 | K70: 0 | L70: 0 | M70: 0 | N70: 3P | O70: Residential | P70: No | Q70: Revised | R70: Residential Programs
A71: SDGE3280 | B71: 3P-IDEA | C71: 433.41 | D71: 6.56 | E71: 0 | F71: 426.85 | G71: 0 | H71: 0 | I71: 0 | J71: 0 | K71: 0 | L71: 0 | M71: 0 | N71: 3P | O71: Cross Cutting | P71: No | Q71: New | R71: Commercial Programs
A72: SDGE3290 | B72: 3P-Res-Electric Resistance Heating Thermostat | C72: 0 | D72: 0 | E72: 0 | F72: 0 | G72: 0 | H72: 0 | I72: 0 | J72: 0 | K72: 0 | L72: 0 | M72: 0 | N72: 3P | O72: Residential | P72: No | Q72: Revised | R72: Residential Programs
A73: SDGE3306 | B73: 3P-RES-Splash | C73: 0 | D73: 0 | E73: 0 | F73: 0 | G73: 0 | H73: 0 | I73: 0 | J73: 0 | K73: 0 | L73: 0 | M73: 0 | N73: 3P | O73: Residential | P73: No | Q73: New | R73: Residential Programs
B74: SW Emerging Technologies Programs | C74: 1350.04 | D74: 656.28 | E74: 0 | F74: 693.76 | G74: 0 | H74: 0 | I74: 0 | J74: 0 | K74: 0 | L74: 0 | M74: 0
A75: SDGE3246 | B75: SW-ET-Technology Introduction Support | C75: 418.5 | D75: 71.42 | E75: 0 | F75: 347.08 | G75: 0 | H75: 0 | I75: 0 | J75: 0 | K75: 0 | L75: 0 | M75: 0 | N75: Core - SW | O75: Cross Cutting | P75: No | Q75: Revised | R75: Emerging Technology Programs
A76: SDGE3247 | B76: SW-ET-Technology Assessment Support | C76: 729.04 | D76: 358.19 | E76: 0 | F76: 370.85 | G76: 0 | H76: 0 | I76: 0 | J76: 0 | K76: 0 | L76: 0 | M76: 0 | N76: Core - SW | O76: Cross Cutting | P76: No | Q76: Revised | R76: Emerging Technology Programs
A77: SDGE3248 | B77: SW-ET-Technology Deployment Support | C77: 202.5 | D77: 226.67 | E77: 0 | F77: -24.17 | G77: 0 | H77: 0 | I77: 0 | J77: 0 | K77: 0 | L77: 0 | M77: 0 | N77: Core - SW | O77: Cross Cutting | P77: No | Q77: Revised | R77: Emerging Technology Programs
B78: SW Finance | C78: 7499.98 | D78: 1013.72 | E78: 0 | F78: 6486.26 | G78: 0 | H78: 0 | I78: 0 | J78: 0 | K78: 0 | L78: 0 | M78: 0
A79: SDGE3262 | B79: SW-FIN-On-Bill Finance | C79: 348.72 | D79: 218.69 | E79: 0 | F79: 130.03 | G79: 0 | H79: 0 | I79: 0 | J79: 0 | K79: 0 | L79: 0 | M79: 0 | N79: Core - SW | O79: Commercial | P79: No | Q79: Revised | R79: Commercial Programs
A80: SDGE3263 | B80: SW-FIN-ARRA Originated Financing | C80: 1112.61 | D80: 475.02 | E80: 0 | F80: 637.59 | G80: 0 | H80: 0 | I80: 0 | J80: 0 | K80: 0 | L80: 0 | M80: 0 | N80: Core - SW | O80: Commercial | P80: Yes | Q80: New | R80: Commercial Programs
A81: SDGE3264 | B81: SW-FIN-New Finance Offerings | C81: 6038.65 | D81: 320.01 | E81: 0 | F81: 5718.64 | G81: 0 | H81: 0 | I81: 0 | J81: 0 | K81: 0 | L81: 0 | M81: 0 | N81: Core - SW | O81: Commercial | P81: Yes | Q81: New | R81: Commercial Programs
A82: SDGE3296 | B82: Small Business Lease Off-Bill | C82: 0 | D82: 0 | E82: 0 | F82: 0 | G82: 0 | H82: 0 | I82: 0 | J82: 0 | K82: 0 | L82: 0 | M82: 0 | N82: Core - SW | O82: Commercial | P82: No | Q82: New | R82: Commercial Programs
A83: SDGE3297 | B83: Single-family Loan Program | C83: 0 | D83: 0 | E83: 0 | F83: 0 | G83: 0 | H83: 0 | I83: 0 | J83: 0 | K83: 0 | L83: 0 | M83: 0 | N83: Core - SW | O83: Residential | P83: No | Q83: New | R83: Residential Programs
A84: SDGE3298 | B84: Medium/Large OBR | C84: 0 | D84: 0 | E84: 0 | F84: 0 | G84: 0 | H84: 0 | I84: 0 | J84: 0 | K84: 0 | L84: 0 | M84: 0 | N84: Core - SW | O84: Commercial | P84: No | Q84: New | R84: Commercial Programs
A85: SDGE3299 | B85: Master Metered Multifamily OBR | C85: 0 | D85: 0 | E85: 0 | F85: 0 | G85: 0 | H85: 0 | I85: 0 | J85: 0 | K85: 0 | L85: 0 | M85: 0 | N85: Core - SW | O85: Residential | P85: No | Q85: New | R85: Residential Programs
A86: SDGE3300 | B86: Small Business Lease OBR | C86: 0 | D86: 0 | E86: 0 | F86: 0 | G86: 0 | H86: 0 | I86: 0 | J86: 0 | K86: 0 | L86: 0 | M86: 0 | N86: Core - SW | O86: Commercial | P86: No | Q86: New | R86: Commercial Programs
A87: SDGE3301 | B87: Small Business Loan OBR | C87: 0 | D87: 0 | E87: 0 | F87: 0 | G87: 0 | H87: 0 | I87: 0 | J87: 0 | K87: 0 | L87: 0 | M87: 0 | N87: Core - SW | O87: Commercial | P87: No | Q87: New | R87: Commercial Programs
B88: SW Codes & Standards | C88: 1049.23 | D88: 319.89 | E88: 0 | F88: 729.34 | G88: 0 | H88: 0 | I88: 0 | J88: 0 | K88: 0 | L88: 0 | M88: 0
A89: SDGE3249 | B89: SW C&S - Building Codes & Compliance Advocacy | C89: 270.97 | D89: 98.28 | E89: 0 | F89: 172.69 | G89: 0 | H89: 0 | I89: 0 | J89: 0 | K89: 0 | L89: 0 | M89: 0 | N89: Core - SW | O89: Cross Cutting | P89: No | Q89: Revised | R89: Codes and Standards
A90: SDGE3250 | B90: SW C&S - Appliance Standards Advocacy | C90: 212.59 | D90: 115.69 | E90: 0 | F90: 96.9 | G90: 0 | H90: 0 | I90: 0 | J90: 0 | K90: 0 | L90: 0 | M90: 0 | N90: Core - SW | O90: Cross Cutting | P90: No | Q90: Revised | R90: Codes and Standards
A91: SDGE3251 | B91: SW C&S - Compliance Enhancement | C91: 320.94 | D91: 72.69 | E91: 0 | F91: 248.25 | G91: 0 | H91: 0 | I91: 0 | J91: 0 | K91: 0 | L91: 0 | M91: 0 | N91: Core - SW | O91: Cross Cutting | P91: No | Q91: Revised | R91: Codes and Standards
A92: SDGE3252 | B92: SW C&S - Reach Codes | C92: 94.76 | D92: 15.28 | E92: 0 | F92: 79.48 | G92: 0 | H92: 0 | I92: 0 | J92: 0 | K92: 0 | L92: 0 | M92: 0 | N92: Core - SW | O92: Cross Cutting | P92: No | Q92: Revised | R92: Codes and Standards
A93: SDGE3253 | B93: SW C&S - Planning Coordination | C93: 149.97 | D93: 17.95 | E93: 0 | F93: 132.02 | G93: 0 | H93: 0 | I93: 0 | J93: 0 | K93: 0 | L93: 0 | M93: 0 | N93: Core - SW | O93: Cross Cutting | P93: No | Q93: New | R93: Codes and Standards
B94: SW Integrated Demand Side Management | C94: 2265.94 | D94: 1679.327 | E94: 0 | F94: 586.613 | G94: 0 | H94: 0 | I94: 0 | J94: 0 | K94: 0 | L94: 0 | M94: 0
A95: SDGE3260 | B95: Local-IDSM-ME&O-Local Marketing (EE) | C95: 946.38 | D95: 706.047 | E95: 0 | F95: 240.333 | G95: 0 | H95: 0 | I95: 0 | J95: 0 | K95: 0 | L95: 0 | M95: 0 | N95: Core - Local | O95: Cross Cutting | P95: No | Q95: New | R95: ME&O Programs
A96: SDGE3261 | B96: Local-IDSM-ME&O-Behavioral Programs (EE) | C96: 1112.03 | D96: 706.01 | E96: 0 | F96: 406.02 | G96: 0 | H96: 0 | I96: 0 | J96: 0 | K96: 0 | L96: 0 | M96: 0 | N96: Core - Local | O96: Residential | P96: Yes | Q96: New | R96: Residential Programs
A97: SDGE3282 | B97: SW-IDSM-IDSM | C97: 207.53 | D97: 267.27 | E97: 0 | F97: -59.74 | G97: 0 | H97: 0 | I97: 0 | J97: 0 | K97: 0 | L97: 0 | M97: 0 | N97: Core - SW | O97: Cross Cutting | P97: No | Q97: Revised | R97: DSM Integration Programs
A98: SDGE3289 | B98: Local IDSM Pilot | C98: 0 | D98: 0 | E98: 0 | F98: 0 | G98: 0 | H98: 0 | I98: 0 | J98: 0 | K98: 0 | L98: 0 | M98: 0 | N98: Core - Local | O98: Commercial | P98: Yes | Q98: New | R98: Commercial Programs Programs
A99: SDGE3304 | B99: Local IDSM Small Commercial Behavior Pilot | C99: 0 | D99: 0 | E99: 0 | F99: 0 | G99: 0 | H99: 0 | I99: 0 | J99: 0 | K99: 0 | L99: 0 | M99: 0 | N99: Core - Local | O99: Commercial | P99: Yes | Q99: New | R99: DSM Integration Program
B100: SW Marketing, Education & Outreach | C100: 2973.23 | D100: 1441.64 | E100: 0 | F100: 1531.59 | G100: 0 | H100: 0 | I100: 0 | J100: 0 | K100: 0 | L100: 0 | M100: 0
A101: SDGE3258 | B101: SW-ME&O-Strategic Plan | C101: 0 | D101: 0 | E101: 0 | F101: 0 | G101: 0 | H101: 0 | I101: 0 | J101: 0 | K101: 0 | L101: 0 | M101: 0 | N101: Core - SW | O101: Cross Cutting | P101: No | Q101: Revised | R101: Commercial Programs Programs
A102: SDGE3259 | B102: SW-ME&O | C102: 2973.23 | D102: 1441.64 | E102: 0 | F102: 1531.59 | G102: 0 | H102: 0 | I102: 0 | J102: 0 | K102: 0 | L102: 0 | M102: 0 | N102: Core - SW | O102: Cross Cutting | P102: No | Q102: Revised | R102: ME&O Programs
B103: SW Workforce Education & Training | C103: 5535.88 | D103: 3523.23 | E103: 0 | F103: 2012.65 | G103: 0 | H103: 25598.65537 | I103: 0 | J103: 0 | K103: 4018.89774 | L103: 25598.65537 | M103: 29617.55311
A104: SDGE3254 | B104: SW-WE&T-Centergies | C104: 4616.69 | D104: 2809.55 | E104: 0 | F104: 1807.14 | G104: 0 | H104: 0 | I104: 0 | J104: 0 | K104: 0 | L104: 0 | M104: 0 | N104: Core - SW | O104: Cross Cutting | P104: No | Q104: New | R104: WE&T Programs
A105: SDGE3255 | B105: SW-WE&T-Connections | C105: 443.18 | D105: 497.86 | E105: 0 | F105: -54.68 | G105: 0 | H105: 0 | I105: 0 | J105: 0 | K105: 0 | L105: 0 | M105: 0 | N105: Core - SW | O105: Cross Cutting | P105: No | Q105: New | R105: WE&T Programs
A106: SDGE3256 | B106: SW-WE&T-Connections K-12 | C106: 427.47 | D106: 215.82 | E106: 0 | F106: 211.65 | G106: 0 | H106: 0 | I106: 0 | J106: 0 | K106: 0 | L106: 0 | M106: 0 | N106: 3P | O106: Residential | P106: No | Q106: Revised | R106: WE&T Programs
A107: SDGE3257 | B107: SW-WE&T-Strategic Planning | C107: 48.54 | D107: 0 | E107: 0 | F107: 48.54 | G107: 0 | H107: 0 | I107: 0 | J107: 0 | K107: 0 | L107: 0 | M107: 0 | N107: Core - SW | O107: Cross Cutting | P107: No | Q107: New | R107: WE&T Programs
A108: SDGE3288 | B108: CRM | C108: 1057.53 | D108: 1613.27 | E108: 0 | F108: -555.74 | G108: 0 | H108: 0 | I108: 0 | J108: 0 | K108: 0 | L108: 0 | M108: 0 | O108: Cross Cutting | P108: No | Q108: Revised | R108: Commercial Programs
A109: SDGE3281 | B109: EM&V-Evaluation Measurement & Verification | C109: 4263.5 | D109: 467.67 | E109: 1707.749 | F109: 5503.579 | G109: 0 | H109: 8059.3306 | I109: 0 | J109: 0 | K109: 3728.24009 | L109: 8059.3306 | M109: 11787.57069 | O109: Cross Cutting | R109: EM&V
A112: Low Income | B112: Low Income Energy Efficiency
B114: TOTAL | C114: 105587.48 | D114: 73394.707 | E114: 3806.356 | F114: 35999.129 | G114: 0 | H114: 33657.98597 | I114: 0 | J114: 13381.05405 | K114: 7747.13783 | L114: 33657.98597 | M114: 41405.1238
